{"text_format":"1","workbook":"xlsx","n_sheets":9,"sheets":["Personale","Entrate - Altri costi","Bilancio terza annualità","STUDI_RendicontoAnnualeInd","RASSEGNE_RendicontoAnnualeInd","PREMI_RendicontoAnnualeInd","MANIF.ESP_RendicontoAnnualeInd","EDITORIA_RendicontoAnnualeInd","CONVEGNI_RendicontoAnnualeInd"],"not_rendered":{"charts":0,"images":0,"macros":1,"external_links":1,"defined_names":5,"comments":0,"pivot_tables":0},"unopened":[],"bounds":{"document_bytes":16777216,"sheet_cells":100000,"rows_first":2000,"rows_last":500,"rows_between":2000,"halvings":0,"cell_chars":16384,"cell_head_chars":4096},"cells_cut":0,"cells_raw":0,"read":"whole","date_system":"1900"}

{"sheet":"Personale","index":0,"n_rows":856,"n_cols":38,"rows_kept":856,"cut":false,"hidden":false,"merged":[[0,2,0,26],[1,2,1,26],[127,6,128,6],[132,4,138,6],[127,4,128,4],[127,5,128,5],[127,12,128,14],[127,2,128,2],[127,3,128,3],[129,12,129,14],[4,15,4,21],[5,15,5,21]]}
[null,null,"FSC Fondo di Sviluppo e Coesione 2014/2020 – “Patto per la Puglia”\nAVVISO PUBBLICO PER PRESENTARE INIZIATIVE PROGETTUALI RIGUARDANTI LE ATTIVITA' CULTURALI\nRISORSE UMANE PRODUZIONE E REALIZZAZIONE DELLE ATTIVITA' - BILANCIO CONSUNTIVO ANNUALE TERZA ANNUALITA' (ALL. L DELL'AVVISO)"]
[null,null,"Indicare le risorse umane utilizzate per la terza annualità. Devono essere indicate sia le figure professionali di cui il soggetto richiedente è titolare della posizione previdenziale e assicurativa Inps Gestione ex ENPALS sia le altre figure professionali. In caso di coproduzioni indicare solo le quote di propria competenza in base agli accordi di coproduzione               \n"]
[]
[]
[null,null,null,null,null,null,null,null,null,null,null,null,null,null,{"$f":"SUM(O8:O122)","v":0},"TOTALI",null,null,null,null,null,null,{"$f":"SUM(W8:W122)","v":0},{"$f":"SUM(X8:X122)","v":0},{"$f":"SUM(Y8:Y122)","v":0},null,null,null,null,null,null,{"$f":"SUM(AF8:AF122)","v":0},{"$f":"SUM(AG8:AG122)","v":0},{"$f":"SUM(AH8:AH122)","v":0}]
[null,null,null,null,null,null,null,null,null,null,null,null,null,null,{"$f":"SUMIF($AK$8:$AK$122,\"si\",O8:O122)","v":0},"di cui UNDER 35",null,null,null,null,null,null,{"$f":"SUMIF($AK$8:$AK$122,\"si\",W8:W122)","v":0},0,0,null,null,null,null,null,null,0,0,0]
["Progr","Codice di \nimputazione","Soggetto \nassuntore del costo","Cognome","Nome","Data di nascita","Nucleo Stabile (PERSONALE IMPIEGATO ANCHE NEI DUE ANNI PRECEDENTI)","Tipologia rapporto","Data \ninizio \nPrestazione","Luogo prevalente della prestazione","Provincia","Fuori regione Indicare solo la Regione","Contratto","Mansione","Giornate lavorative","Documento ","N.","Del","Liquidazione","DATA PAGAMENTO","N","DATA PAGAMENTO ONERI FISCALI E CONTRBUTIVI","Compenso Lordo","Oneri contributivi","Importo a rendiconto - Cambiare importo se diverso dal compenso lordo (ad es. pro-quota)","Spesa riferibile\nal progetto","Contratto","Documento di spesa","Liquidazione","Quietanza","Doc identità","Giornate validate","Importo  \nValidato per Compenso","Importo  \nValidato per Oneri e ritenute","Annotazioni","Importo inserito sul sistema MIRWEB","Under \n35","Nome attività / evento a cui si riferisce la prestazione"]
[null,null,null,null,null,null,null,null,null,null,{"$f":"VLOOKUP(J8,$J$599:$L$856,2)","v":{"$error":"#N/A"}},null,null,null,null,null,null,null,null,null,null,null,null,null,{"$f":"W8","v":0},null,null,null,null,null,null,{"$f":"IF(Z8=\"si\",IF(AA8=\"si\",IF(AB8=\"si\",IF(AC8=\"si\",IF(AD8=\"si\",IF(AE8=\"si\",O8,0))))))","v":false},{"$f":"IF(Z8=\"si\",IF(AA8=\"si\",IF(AB8=\"si\",IF(AC8=\"si\",IF(AD8=\"si\",IF(AE8=\"si\",Y8,0))))))","v":false},{"$f":"IF(Z8=\"si\",IF(AA8=\"si\",IF(AB8=\"si\",IF(AC8=\"si\",IF(AD8=\"si\",IF(AE8=\"si\",X8,0))))))","v":false},null,null,{"$f":"IF(((YEAR(I8)-(YEAR(F8))))<35,\"si\",\"no\")","v":"si"}]
[null,null,null,null,null,null,null,null,null,null,{"$error":"#N/A"},null,null,null,null,null,null,null,null,null,null,null,null,null,{"$f":"W9","v":0},null,null,null,null,null,null,{"$f":"IF(Z9=\"si\",IF(AA9=\"si\",IF(AB9=\"si\",IF(AC9=\"si\",IF(AD9=\"si\",IF(AE9=\"si\",O9,0))))))","v":false},{"$f":"IF(Z9=\"si\",IF(AA9=\"si\",IF(AB9=\"si\",IF(AC9=\"si\",IF(AD9=\"si\",IF(AE9=\"si\",Y9,0))))))","v":false},{"$f":"IF(Z9=\"si\",IF(AA9=\"si\",IF(AB9=\"si\",IF(AC9=\"si\",IF(AD9=\"si\",IF(AE9=\"si\",X9,0))))))","v":false},null,null,"si"]
[null,null,null,null,null,null,null,null,null,null,{"$error":"#N/A"},null,null,null,null,null,null,null,null,null,null,null,null,null,0,null,null,null,null,null,null,false,false,false,null,null,"si"]
[null,null,null,null,null,null,null,null,null,null,{"$error":"#N/A"},null,null,null,null,null,null,null,null,null,null,null,null,null,0,null,null,null,null,null,null,false,false,false,null,null,"si"]
[null,null,null,null,null,null,null,null,null,null,{"$error":"#N/A"},null,null,null,null,null,null,null,null,null,null,null,null,null,0,null,null,null,null,null,null,false,false,false,null,null,"si"]
[null,null,null,null,null,null,null,null,null,null,{"$error":"#N/A"},null,null,null,null,null,null,null,null,null,null,null,null,null,0,null,null,null,null,null,null,false,false,false,null,null,"si"]
[null,null,null,null,null,null,null,null,null,null,{"$error":"#N/A"},null,null,null,null,null,null,null,null,null,null,null,null,null,0,null,null,null,null,null,null,false,false,false,null,null,"si"]
[null,null,null,null,null,null,null,null,null,null,{"$error":"#N/A"},null,null,null,null,null,null,null,null,null,null,null,null,null,0,null,null,null,null,null,null,false,false,false,null,null,"si"]
[null,null,null,null,null,null,null,null,null,null,{"$error":"#N/A"},null,null,null,null,null,null,null,null,null,null,null,null,null,0,null,null,null,null,null,null,false,false,false,null,null,"si"]
[null,null,null,null,null,null,null,null,null,null,{"$error":"#N/A"},null,null,null,null,null,null,null,null,null,null,null,null,null,0,null,null,null,null,null,null,false,false,false,null,null,"si"]
[null,null,null,null,null,null,null,null,null,null,{"$error":"#N/A"},null,null,null,null,null,null,null,null,null,null,null,null,null,0,null,null,null,null,null,null,false,false,false,null,null,"si"]
[null,null,null,null,null,null,null,null,null,null,{"$error":"#N/A"},null,null,null,null,null,null,null,null,null,null,null,null,null,0,null,null,null,null,null,null,false,false,false,null,null,"si"]
[null,null,null,null,null,null,null,null,null,null,{"$error":"#N/A"},null,null,null,null,null,null,null,null,null,null,null,null,null,0,null,null,null,null,null,null,false,false,false,null,null,"si"]
[null,null,null,null,null,null,null,null,null,null,{"$error":"#N/A"},null,null,null,null,null,null,null,null,null,null,null,null,null,0,null,null,null,null,null,null,false,false,false,null,null,"si"]
[null,null,null,null,null,null,null,null,null,null,{"$error":"#N/A"},null,null,null,null,null,null,null,null,null,null,null,null,null,0,null,null,null,null,null,null,false,false,false,null,null,"si"]
[null,null,null,null,null,null,null,null,null,null,{"$error":"#N/A"},null,null,null,null,null,null,null,null,null,null,null,null,null,0,null,null,null,null,null,null,false,false,false,null,null,"si"]
[null,null,null,null,null,null,null,null,null,null,{"$error":"#N/A"},null,null,null,null,null,null,null,null,null,null,null,null,null,0,null,null,null,null,null,null,false,false,false,null,null,"si"]
[null,null,null,null,null,null,null,null,null,null,{"$error":"#N/A"},null,null,null,null,null,null,null,null,null,null,null,null,null,0,null,null,null,null,null,null,false,false,false,null,null,"si"]
[null,null,null,null,null,null,null,null,null,null,{"$error":"#N/A"},null,null,null,null,null,null,null,null,null,null,null,null,null,0,null,null,null,null,null,null,false,false,false,null,null,"si"]
[null,null,null,null,null,null,null,null,null,null,{"$error":"#N/A"},null,null,null,null,null,null,null,null,null,null,null,null,null,0,null,null,null,null,null,null,false,false,false,null,null,"si"]
[null,null,null,null,null,null,null,null,null,null,{"$error":"#N/A"},null,null,null,null,null,null,null,null,null,null,null,null,null,0,null,null,null,null,null,null,false,false,false,null,null,"si"]
[null,null,null,null,null,null,null,null,null,null,{"$error":"#N/A"},null,null,null,null,null,null,null,null,null,null,null,null,null,0,null,null,null,null,null,null,false,false,false,null,null,"si"]
[null,null,null,null,null,null,null,null,null,null,{"$error":"#N/A"},null,null,null,null,null,null,null,null,null,null,null,null,null,0,null,null,null,null,null,null,false,false,false,null,null,"si"]
[null,null,null,null,null,null,null,null,null,null,{"$error":"#N/A"},null,null,null,null,null,null,null,null,null,null,null,null,null,0,null,null,null,null,null,null,false,false,false,null,null,"si"]
[null,null,null,null,null,null,null,null,null,null,{"$error":"#N/A"},null,null,null,null,null,null,null,null,null,null,null,null,null,0,null,null,null,null,null,null,false,false,false,null,null,"si"]
[null,null,null,null,null,null,null,null,null,null,{"$error":"#N/A"},null,null,null,null,null,null,null,null,null,null,null,null,null,0,null,null,null,null,null,null,false,false,false,null,null,"si"]
[null,null,null,null,null,null,null,null,null,null,{"$error":"#N/A"},null,null,null,null,null,null,null,null,null,null,null,null,null,0,null,null,null,null,null,null,false,false,false,null,null,"si"]
[null,null,null,null,null,null,null,null,null,null,{"$error":"#N/A"},null,null,null,null,null,null,null,null,null,null,null,null,null,0,null,null,null,null,null,null,false,false,false,null,null,"si"]
[null,null,null,null,null,null,null,null,null,null,{"$error":"#N/A"},null,null,null,null,null,null,null,null,null,null,null,null,null,0,null,null,null,null,null,null,false,false,false,null,null,"si"]
[null,null,null,null,null,null,null,null,null,null,{"$error":"#N/A"},null,null,null,null,null,null,null,null,null,null,null,null,null,0,null,null,null,null,null,null,false,false,false,null,null,"si"]
[null,null,null,null,null,null,null,null,null,null,{"$error":"#N/A"},null,null,null,null,null,null,null,null,null,null,null,null,null,0,null,null,null,null,null,null,false,false,false,null,null,"si"]
[null,null,null,null,null,null,null,null,null,null,{"$error":"#N/A"},null,null,null,null,null,null,null,null,null,null,null,null,null,0,null,null,null,null,null,null,false,false,false,null,null,"si"]
[null,null,null,null,null,null,null,null,null,null,{"$f":"VLOOKUP(J40,$J$599:$L$856,2)","v":{"$error":"#N/A"}},null,null,null,null,null,null,null,null,null,null,null,null,null,0,null,null,null,null,null,null,false,false,false,null,null,"si"]
[null,null,null,null,null,null,null,null,null,null,{"$error":"#N/A"},null,null,null,null,null,null,null,null,null,null,null,null,null,0,null,null,null,null,null,null,false,false,false,null,null,"si"]
[null,null,null,null,null,null,null,null,null,null,{"$error":"#N/A"},null,null,null,null,null,null,null,null,null,null,null,null,null,0,null,null,null,null,null,null,false,false,false,null,null,"si"]
[null,null,null,null,null,null,null,null,null,null,{"$error":"#N/A"},null,null,null,null,null,null,null,null,null,null,null,null,null,0,null,null,null,null,null,null,false,false,false,null,null,"si"]
[null,null,null,null,null,null,null,null,null,null,{"$error":"#N/A"},null,null,null,null,null,null,null,null,null,null,null,null,null,0,null,null,null,null,null,null,false,false,false,null,null,"si"]
[null,null,null,null,null,null,null,null,null,null,{"$error":"#N/A"},null,null,null,null,null,null,null,null,null,null,null,null,null,0,null,null,null,null,null,null,false,false,false,null,null,"si"]
[null,null,null,null,null,null,null,null,null,null,{"$error":"#N/A"},null,null,null,null,null,null,null,null,null,null,null,null,null,0,null,null,null,null,null,null,false,false,false,null,null,"si"]
[null,null,null,null,null,null,null,null,null,null,{"$error":"#N/A"},null,null,null,null,null,null,null,null,null,null,null,null,null,0,null,null,null,null,null,null,false,false,false,null,null,"si"]
[null,null,null,null,null,null,null,null,null,null,{"$error":"#N/A"},null,null,null,null,null,null,null,null,null,null,null,null,null,0,null,null,null,null,null,null,false,false,false,null,null,"si"]
[null,null,null,null,null,null,null,null,null,null,{"$error":"#N/A"},null,null,null,null,null,null,null,null,null,null,null,null,null,0,null,null,null,null,null,null,false,false,false,null,null,"si"]
[null,null,null,null,null,null,null,null,null,null,{"$error":"#N/A"},null,null,null,null,null,null,null,null,null,null,null,null,null,0,null,null,null,null,null,null,false,false,false,null,null,"si"]
[null,null,null,null,null,null,null,null,null,null,{"$error":"#N/A"},null,null,null,null,null,null,null,null,null,null,null,null,null,0,null,null,null,null,null,null,false,false,false,null,null,"si"]
[null,null,null,null,null,null,null,null,null,null,{"$error":"#N/A"},null,null,null,null,null,null,null,null,null,null,null,null,null,0,null,null,null,null,null,null,false,false,false,null,null,"si"]
[null,null,null,null,null,null,null,null,null,null,{"$error":"#N/A"},null,null,null,null,null,null,null,null,null,null,null,null,null,0,null,null,null,null,null,null,false,false,false,null,null,"si"]
[null,null,null,null,null,null,null,null,null,null,{"$error":"#N/A"},null,null,null,null,null,null,null,null,null,null,null,null,null,0,null,null,null,null,null,null,false,false,false,null,null,"si"]
[null,null,null,null,null,null,null,null,null,null,{"$error":"#N/A"},null,null,null,null,null,null,null,null,null,null,null,null,null,0,null,null,null,null,null,null,false,false,false,null,null,"si"]
[null,null,null,null,null,null,null,null,null,null,{"$error":"#N/A"},null,null,null,null,null,null,null,null,null,null,null,null,null,0,null,null,null,null,null,null,false,false,false,null,null,"si"]
[null,null,null,null,null,null,null,null,null,null,{"$error":"#N/A"},null,null,null,null,null,null,null,null,null,null,null,null,null,0,null,null,null,null,null,null,false,false,false,null,null,"si"]
[null,null,null,null,null,null,null,null,null,null,{"$error":"#N/A"},null,null,null,null,null,null,null,null,null,null,null,null,null,0,null,null,null,null,null,null,false,false,false,null,null,"si"]
[null,null,null,null,null,null,null,null,null,null,{"$error":"#N/A"},null,null,null,null,null,null,null,null,null,null,null,null,null,0,null,null,null,null,null,null,false,false,false,null,null,"si"]
[null,null,null,null,null,null,null,null,null,null,{"$error":"#N/A"},null,null,null,null,null,null,null,null,null,null,null,null,null,0,null,null,null,null,null,null,false,false,false,null,null,"si"]
[null,null,null,null,null,null,null,null,null,null,{"$error":"#N/A"},null,null,null,null,null,null,null,null,null,null,null,null,null,0,null,null,null,null,null,null,false,false,false,null,null,"si"]
[null,null,null,null,null,null,null,null,null,null,{"$error":"#N/A"},null,null,null,null,null,null,null,null,null,null,null,null,null,0,null,null,null,null,null,null,false,false,false,null,null,"si"]
[null,null,null,null,null,null,null,null,null,null,{"$error":"#N/A"},null,null,null,null,null,null,null,null,null,null,null,null,null,0,null,null,null,null,null,null,false,false,false,null,null,"si"]
[null,null,null,null,null,null,null,null,null,null,{"$error":"#N/A"},null,null,null,null,null,null,null,null,null,null,null,null,null,0,null,null,null,null,null,null,false,false,false,null,null,"si"]
[null,null,null,null,null,null,null,null,null,null,{"$error":"#N/A"},null,null,null,null,null,null,null,null,null,null,null,null,null,0,null,null,null,null,null,null,false,false,false,null,null,"si"]
[null,null,null,null,null,null,null,null,null,null,{"$error":"#N/A"},null,null,null,null,null,null,null,null,null,null,null,null,null,0,null,null,null,null,null,null,false,false,false,null,null,"si"]
[null,null,null,null,null,null,null,null,null,null,{"$error":"#N/A"},null,null,null,null,null,null,null,null,null,null,null,null,null,0,null,null,null,null,null,null,false,false,false,null,null,"si"]
[null,null,null,null,null,null,null,null,null,null,{"$error":"#N/A"},null,null,null,null,null,null,null,null,null,null,null,null,null,0,null,null,null,null,null,null,false,false,false,null,null,"si"]
[null,null,null,null,null,null,null,null,null,null,{"$error":"#N/A"},null,null,null,null,null,null,null,null,null,null,null,null,null,0,null,null,null,null,null,null,false,false,false,null,null,"si"]
[null,null,null,null,null,null,null,null,null,null,{"$error":"#N/A"},null,null,null,null,null,null,null,null,null,null,null,null,null,0,null,null,null,null,null,null,false,false,false,null,null,"si"]
[null,null,null,null,null,null,null,null,null,null,{"$error":"#N/A"},null,null,null,null,null,null,null,null,null,null,null,null,null,0,null,null,null,null,null,null,false,false,false,null,null,"si"]
[null,null,null,null,null,null,null,null,null,null,{"$f":"VLOOKUP(J72,$J$599:$L$856,2)","v":{"$error":"#N/A"}},null,null,null,null,null,null,null,null,null,null,null,null,null,0,null,null,null,null,null,null,false,false,false,null,null,{"$f":"IF(((YEAR(I72)-(YEAR(F72))))<35,\"si\",\"no\")","v":"si"}]
[null,null,null,null,null,null,null,null,null,null,{"$error":"#N/A"},null,null,null,null,null,null,null,null,null,null,null,null,null,{"$f":"W73","v":0},null,null,null,null,null,null,{"$f":"IF(Z73=\"si\",IF(AA73=\"si\",IF(AB73=\"si\",IF(AC73=\"si\",IF(AD73=\"si\",IF(AE73=\"si\",O73,0))))))","v":false},{"$f":"IF(Z73=\"si\",IF(AA73=\"si\",IF(AB73=\"si\",IF(AC73=\"si\",IF(AD73=\"si\",IF(AE73=\"si\",Y73,0))))))","v":false},{"$f":"IF(Z73=\"si\",IF(AA73=\"si\",IF(AB73=\"si\",IF(AC73=\"si\",IF(AD73=\"si\",IF(AE73=\"si\",X73,0))))))","v":false},null,null,"si"]
[null,null,null,null,null,null,null,null,null,null,{"$error":"#N/A"},null,null,null,null,null,null,null,null,null,null,null,null,null,0,null,null,null,null,null,null,false,false,false,null,null,"si"]
[null,null,null,null,null,null,null,null,null,null,{"$error":"#N/A"},null,null,null,null,null,null,null,null,null,null,null,null,null,0,null,null,null,null,null,null,false,false,false,null,null,"si"]
[null,null,null,null,null,null,null,null,null,null,{"$error":"#N/A"},null,null,null,null,null,null,null,null,null,null,null,null,null,0,null,null,null,null,null,null,false,false,false,null,null,"si"]
[null,null,null,null,null,null,null,null,null,null,{"$error":"#N/A"},null,null,null,null,null,null,null,null,null,null,null,null,null,0,null,null,null,null,null,null,false,false,false,null,null,"si"]
[null,null,null,null,null,null,null,null,null,null,{"$error":"#N/A"},null,null,null,null,null,null,null,null,null,null,null,null,null,0,null,null,null,null,null,null,false,false,false,null,null,"si"]
[null,null,null,null,null,null,null,null,null,null,{"$error":"#N/A"},null,null,null,null,null,null,null,null,null,null,null,null,null,0,null,null,null,null,null,null,false,false,false,null,null,"si"]
[null,null,null,null,null,null,null,null,null,null,{"$error":"#N/A"},null,null,null,null,null,null,null,null,null,null,null,null,null,0,null,null,null,null,null,null,false,false,false,null,null,"si"]
[null,null,null,null,null,null,null,null,null,null,{"$error":"#N/A"},null,null,null,null,null,null,null,null,null,null,null,null,null,0,null,null,null,null,null,null,false,false,false,null,null,"si"]
[null,null,null,null,null,null,null,null,null,null,{"$error":"#N/A"},null,null,null,null,null,null,null,null,null,null,null,null,null,0,null,null,null,null,null,null,false,false,false,null,null,"si"]
[null,null,null,null,null,null,null,null,null,null,{"$error":"#N/A"},null,null,null,null,null,null,null,null,null,null,null,null,null,0,null,null,null,null,null,null,false,false,false,null,null,"si"]
[null,null,null,null,null,null,null,null,null,null,{"$error":"#N/A"},null,null,null,null,null,null,null,null,null,null,null,null,null,0,null,null,null,null,null,null,false,false,false,null,null,"si"]
[null,null,null,null,null,null,null,null,null,null,{"$error":"#N/A"},null,null,null,null,null,null,null,null,null,null,null,null,null,0,null,null,null,null,null,null,false,false,false,null,null,"si"]
[null,null,null,null,null,null,null,null,null,null,{"$error":"#N/A"},null,null,null,null,null,null,null,null,null,null,null,null,null,0,null,null,null,null,null,null,false,false,false,null,null,"si"]
[null,null,null,null,null,null,null,null,null,null,{"$error":"#N/A"},null,null,null,null,null,null,null,null,null,null,null,null,null,0,null,null,null,null,null,null,false,false,false,null,null,"si"]
[null,null,null,null,null,null,null,null,null,null,{"$error":"#N/A"},null,null,null,null,null,null,null,null,null,null,null,null,null,{"$f":"W88","v":0},null,null,null,null,null,null,{"$f":"IF(Z88=\"si\",IF(AA88=\"si\",IF(AB88=\"si\",IF(AC88=\"si\",IF(AD88=\"si\",IF(AE88=\"si\",O88,0))))))","v":false},{"$f":"IF(Z88=\"si\",IF(AA88=\"si\",IF(AB88=\"si\",IF(AC88=\"si\",IF(AD88=\"si\",IF(AE88=\"si\",Y88,0))))))","v":false},{"$f":"IF(Z88=\"si\",IF(AA88=\"si\",IF(AB88=\"si\",IF(AC88=\"si\",IF(AD88=\"si\",IF(AE88=\"si\",X88,0))))))","v":false},null,null,"si"]
[null,null,null,null,null,null,null,null,null,null,{"$error":"#N/A"},null,null,null,null,null,null,null,null,null,null,null,null,null,0,null,null,null,null,null,null,false,false,false,null,null,"si"]
[null,null,null,null,null,null,null,null,null,null,{"$error":"#N/A"},null,null,null,null,null,null,null,null,null,null,null,null,null,0,null,null,null,null,null,null,false,false,false,null,null,"si"]
[null,null,null,null,null,null,null,null,null,null,{"$error":"#N/A"},null,null,null,null,null,null,null,null,null,null,null,null,null,0,null,null,null,null,null,null,false,false,false,null,null,"si"]
[null,null,null,null,null,null,null,null,null,null,{"$error":"#N/A"},null,null,null,null,null,null,null,null,null,null,null,null,null,0,null,null,null,null,null,null,false,false,false,null,null,"si"]
[null,null,null,null,null,null,null,null,null,null,{"$error":"#N/A"},null,null,null,null,null,null,null,null,null,null,null,null,null,0,null,null,null,null,null,null,false,false,false,null,null,"si"]
[null,null,null,null,null,null,null,null,null,null,{"$error":"#N/A"},null,null,null,null,null,null,null,null,null,null,null,null,null,0,null,null,null,null,null,null,false,false,false,null,null,"si"]
[null,null,null,null,null,null,null,null,null,null,{"$error":"#N/A"},null,null,null,null,null,null,null,null,null,null,null,null,null,0,null,null,null,null,null,null,false,false,false,null,null,"si"]
[null,null,null,null,null,null,null,null,null,null,{"$error":"#N/A"},null,null,null,null,null,null,null,null,null,null,null,null,null,0,null,null,null,null,null,null,false,false,false,null,null,"si"]
[null,null,null,null,null,null,null,null,null,null,{"$error":"#N/A"},null,null,null,null,null,null,null,null,null,null,null,null,null,0,null,null,null,null,null,null,false,false,false,null,null,"si"]
[null,null,null,null,null,null,null,null,null,null,{"$error":"#N/A"},null,null,null,null,null,null,null,null,null,null,null,null,null,0,null,null,null,null,null,null,false,false,false,null,null,"si"]
[null,null,null,null,null,null,null,null,null,null,{"$error":"#N/A"},null,null,null,null,null,null,null,null,null,null,null,null,null,0,null,null,null,null,null,null,false,false,false,null,null,"si"]
[null,null,null,null,null,null,null,null,null,null,{"$error":"#N/A"},null,null,null,null,null,null,null,null,null,null,null,null,null,0,null,null,null,null,null,null,false,false,false,null,null,"si"]
[null,null,null,null,null,null,null,null,null,null,{"$error":"#N/A"},null,null,null,null,null,null,null,null,null,null,null,null,null,0,null,null,null,null,null,null,false,false,false,null,null,"si"]
[null,null,null,null,null,null,null,null,null,null,{"$error":"#N/A"},null,null,null,null,null,null,null,null,null,null,null,null,null,0,null,null,null,null,null,null,false,false,false,null,null,"si"]
[null,null,null,null,null,null,null,null,null,null,{"$error":"#N/A"},null,null,null,null,null,null,null,null,null,null,null,null,null,0,null,null,null,null,null,null,false,false,false,null,null,"si"]
[null,null,null,null,null,null,null,null,null,null,{"$f":"VLOOKUP(J104,$J$599:$L$856,2)","v":{"$error":"#N/A"}},null,null,null,null,null,null,null,null,null,null,null,null,null,0,null,null,null,null,null,null,false,false,false,null,null,"si"]
[null,null,null,null,null,null,null,null,null,null,{"$error":"#N/A"},null,null,null,null,null,null,null,null,null,null,null,null,null,0,null,null,null,null,null,null,false,false,false,null,null,"si"]
[null,null,null,null,null,null,null,null,null,null,{"$error":"#N/A"},null,null,null,null,null,null,null,null,null,null,null,null,null,0,null,null,null,null,null,null,false,false,false,null,null,"si"]
[null,null,null,null,null,null,null,null,null,null,{"$error":"#N/A"},null,null,null,null,null,null,null,null,null,null,null,null,null,0,null,null,null,null,null,null,false,false,false,null,null,"si"]
[null,null,null,null,null,null,null,null,null,null,{"$error":"#N/A"},null,null,null,null,null,null,null,null,null,null,null,null,null,0,null,null,null,null,null,null,false,false,false,null,null,"si"]
[null,null,null,null,null,null,null,null,null,null,{"$error":"#N/A"},null,null,null,null,null,null,null,null,null,null,null,null,null,0,null,null,null,null,null,null,false,false,false,null,null,"si"]
[null,null,null,null,null,null,null,null,null,null,{"$error":"#N/A"},null,null,null,null,null,null,null,null,null,null,null,null,null,0,null,null,null,null,null,null,false,false,false,null,null,"si"]
[null,null,null,null,null,null,null,null,null,null,{"$error":"#N/A"},null,null,null,null,null,null,null,null,null,null,null,null,null,0,null,null,null,null,null,null,false,false,false,null,null,"si"]
[null,null,null,null,null,null,null,null,null,null,{"$f":"VLOOKUP(J112,$J$599:$L$856,2)","v":{"$error":"#N/A"}},null,null,null,null,null,null,null,null,null,null,null,null,null,0,null,null,null,null,null,null,false,false,false,null,null,"si"]
[null,null,null,null,null,null,null,null,null,null,{"$f":"VLOOKUP(J113,$J$599:$L$856,2)","v":{"$error":"#N/A"}},null,null,null,null,null,null,null,null,null,null,null,null,null,0,null,null,null,null,null,null,false,false,false,null,null,"si"]
[null,null,null,null,null,null,null,null,null,null,{"$error":"#N/A"},null,null,null,null,null,null,null,null,null,null,null,null,null,0,null,null,null,null,null,null,false,false,false,null,null,"si"]
[null,null,null,null,null,null,null,null,null,null,{"$error":"#N/A"},null,null,null,null,null,null,null,null,null,null,null,null,null,0,null,null,null,null,null,null,false,false,false,null,null,"si"]
[null,null,null,null,null,null,null,null,null,null,{"$error":"#N/A"},null,null,null,null,null,null,null,null,null,null,null,null,null,0,null,null,null,null,null,null,false,false,false,null,null,"si"]
[null,null,null,null,null,null,null,null,null,null,{"$error":"#N/A"},null,null,null,null,null,null,null,null,null,null,null,null,null,0,null,null,null,null,null,null,false,false,false,null,null,"si"]
[null,null,null,null,null,null,null,null,null,null,{"$error":"#N/A"},null,null,null,null,null,null,null,null,null,null,null,null,null,0,null,null,null,null,null,null,false,false,false,null,null,"si"]
[null,null,null,null,null,null,null,null,null,null,{"$error":"#N/A"},null,null,null,null,null,null,null,null,null,null,null,null,null,0,null,null,null,null,null,null,false,false,false,null,null,"si"]
[null,null,null,null,null,null,null,null,null,null,{"$error":"#N/A"},null,null,null,null,null,null,null,null,null,null,null,null,null,0,null,null,null,null,null,null,false,false,false,null,null,"si"]
[null,null,null,null,null,null,null,null,null,null,{"$error":"#N/A"},null,null,null,null,null,null,null,null,null,null,null,null,null,0,null,null,null,null,null,null,false,false,false,null,null,"si"]
[null,null,null,null,null,null,null,null,null,null,{"$error":"#N/A"},null,null,null,null,null,null,null,null,null,null,null,null,null,{"$f":"W122","v":0},null,null,null,null,null,null,{"$f":"IF(Z122=\"si\",IF(AA122=\"si\",IF(AB122=\"si\",IF(AC122=\"si\",IF(AD122=\"si\",IF(AE122=\"si\",O122,0))))))","v":false},{"$f":"IF(Z122=\"si\",IF(AA122=\"si\",IF(AB122=\"si\",IF(AC122=\"si\",IF(AD122=\"si\",IF(AE122=\"si\",Y122,0))))))","v":false},{"$f":"IF(Z122=\"si\",IF(AA122=\"si\",IF(AB122=\"si\",IF(AC122=\"si\",IF(AD122=\"si\",IF(AE122=\"si\",X122,0))))))","v":false},null,null,{"$f":"IF(((YEAR(I122)-(YEAR(F122))))<35,\"si\",\"no\")","v":"si"}]
[]
[]
[]
[]
[]
[null,null,"Dati Complessivi consuntivo - risorse umane terza annualità","Giornate lavorative generate (n)","di cui giornate lavorative UNDER 35",null,"Totale oneri sociali versati (euro)  ",null,null,null,null,null,"Costo complessivo del personale\n(euro)"]
[]
[null,null,null,{"$f":"O5","v":0},{"$f":"O6","v":0},null,{"$f":"'Bilancio terza annualità'!S50+'Bilancio terza annualità'!S52+'Bilancio terza annualità'!S42+'Bilancio terza annualità'!S44","v":0},null,null,null,null,null,{"$f":"'Bilancio terza annualità'!S39+'Bilancio terza annualità'!S40+'Bilancio terza annualità'!S41+'Bilancio terza annualità'!S43+'Bilancio terza annualità'!S47+'Bilancio terza annualità'!S48+'Bilancio terza annualità'!S49+'Bilancio terza annualità'!S51","v":0}]
[null,null,"ACCERTATO",{"$f":"AF5","v":0},{"$f":"AF6","v":0},null,{"$f":"'Bilancio terza annualità'!T42+'Bilancio terza annualità'!T44+'Bilancio terza annualità'!T50+'Bilancio terza annualità'!T52","v":0}]
[]
[null,null,"Luogo e data",null,"\n__________________________________\nFirma digitale / timbro e firma del legale rappresentante / del soggetto munito dei poteri di mandato e di firma (allegare sempre copia fotostatica del documento di identità del sottoscrittore, tranne caso firma digitale)"]
[]
[null,null,"______________________________"]
[]
[]
[]
[null,null,"______________________________"]
[]
[]
[]
[]
[]
[]
[]
[]
[]
[]
[]
[]
[]
[]
[]
[]
[]
[]
[]
[]
[]
[]
[]
[]
[]
[]
[]
[]
[]
[]
[]
[]
[]
[]
[]
[]
[]
[]
[]
[]
[]
[]
[]
[]
[]
[]
[]
[]
[]
[]
[]
[]
[]
[]
[]
[]
[]
[]
[]
[]
[]
[]
[]
[]
[]
[]
[]
[]
[]
[]
[]
[]
[]
[]
[]
[]
[]
[]
[]
[]
[]
[]
[]
[]
[]
[]
[]
[]
[]
[]
[]
[]
[]
[]
[]
[]
[]
[]
[]
[]
[]
[]
[]
[]
[]
[]
[]
[]
[]
[]
[]
[]
[]
[]
[]
[]
[]
[]
[]
[]
[]
[]
[]
[]
[]
[]
[]
[]
[]
[]
[]
[]
[]
[]
[]
[]
[]
[]
[]
[]
[]
[]
[]
[]
[]
[]
[]
[]
[]
[]
[]
[]
[]
[]
[]
[]
[]
[]
[]
[]
[]
[]
[]
[]
[]
[]
[]
[]
[]
[]
[]
[]
[]
[]
[]
[]
[]
[]
[]
[]
[]
[]
[]
[]
[]
[]
[]
[]
[]
[]
[]
[]
[]
[]
[]
[]
[]
[]
[]
[]
[]
[]
[]
[]
[]
[]
[]
[]
[]
[]
[]
[]
[]
[]
[]
[]
[]
[]
[]
[]
[]
[]
[]
[]
[]
[]
[]
[]
[]
[]
[]
[]
[]
[]
[]
[]
[]
[]
[]
[]
[]
[]
[]
[]
[]
[]
[]
[]
[]
[]
[]
[]
[]
[]
[]
[]
[]
[]
[]
[]
[]
[]
[]
[]
[]
[]
[]
[]
[]
[]
[]
[]
[]
[]
[]
[]
[]
[]
[]
[]
[]
[]
[]
[]
[]
[]
[]
[]
[]
[]
[]
[]
[]
[]
[]
[]
[]
[]
[]
[]
[]
[]
[]
[]
[]
[]
[]
[]
[]
[]
[]
[]
[]
[]
[]
[]
[]
[]
[]
[]
[]
[]
[]
[]
[]
[]
[]
[]
[]
[]
[]
[]
[]
[]
[]
[]
[]
[]
[]
[]
[]
[]
[]
[]
[]
[]
[]
[]
[]
[]
[]
[]
[]
[]
[]
[]
[]
[]
[]
[]
[]
[]
[]
[]
[]
[]
[]
[]
[]
[]
[]
[]
[]
[]
[]
[]
[]
[]
[]
[]
[]
[]
[]
[]
[]
[]
[]
[]
[]
[]
[]
[]
[]
[]
[]
[]
[]
[]
[]
[]
[]
[]
[]
[]
[]
[]
[]
[]
[]
[]
[]
[]
[]
[]
[]
[]
[]
[]
[]
[]
[]
[]
[]
[]
[]
[]
[]
[]
[]
[]
[]
[]
[]
[]
[]
[]
[]
[]
[]
[]
[]
[]
[]
[]
[]
[]
[]
[]
[]
[]
[]
[]
[]
[]
[]
[]
[]
[]
[null,"Codici","Soggetto assuntore del costo","REGIONI",null,null,null,"Tipologia prestazione",null,"Comune","PROV","REGIONE","Contratto",null,null,"Tipo documento",null,null,"Liquidazione",null,null,null,null,null,null,null,null,null,null,null,null,null,null,null,null,"A Rendiconto per Residenza"]
[null,"U1 - COSTI DEL PERSONALE","CAPOFILA","Abruzzo",null,null,null,"tempo indeterminato",null,"ACCADIA","FG","Puglia","Contratto",null,null,"Busta paga",null,null,"Bonifico",null,null,null,null,null,null,null,null,null,null,null,null,null,null,null,null,"si"]
[null,"U11 - Responsabile Artistico - Organizzativo","PARTNER 1","Basilicata",null,null,null,"tempo determinato/scrittura",null,"ACQUARICA DEL CAPO","LE","Puglia","Lettera di incarico",null,null,"Fattura",null,null,"Assegno",null,null,null,null,null,null,null,null,null,null,null,null,null,null,null,null,"no"]
[null,"U12 - Personale Artistico - Esperti","PARTNER 2","Calabria",null,null,null,"occasionale-fino a 30 giorni",null,"ACQUAVIVA DELLE FONTI","BA","Puglia","Preventivo",null,null,"Ricevuta",null,null,"Carta di credito"]
[null,"U13 - Personale Tecnico","PARTNER 3","Campania",null,null,null,"contratto a progetto",null,"ADELFIA","BA","Puglia","e - mail ",null,null,"Nota spese",null,null,"Contante"]
[null,"U15 - Personale amministrativo","PARTNER 4","Emilia-Romagna",null,null,null,"professionale",null,"ALBEROBELLO","BA","Puglia",null,null,null,"Altro"]
[null,"U2 - COSTI PER COMPENSI PROFESSIONALI",null,"Friuli-Venezia Giulia",null,null,null,"altro",null,"ALBERONA","FG","Puglia"]
[null,"U21 - Responsabile Artistico - Organizzativo",null,"Lazio",null,null,null,null,null,"ALESSANO","LE","Puglia"]
[null,"U22 - Profilo Artistico",null,"Liguria",null,null,null,null,null,"ALEZIO","LE","Puglia"]
[null,"U23 - Profilo Tecnico",null,"Lombardia",null,null,null,null,null,"ALLISTE","LE","Puglia"]
[null,"U25 - Profilo amministrativo",null,"Marche",null,null,null,null,null,"ALTAMURA","BA","Puglia"]
[null,null,null,"Molise",null,null,null,null,null,"ANDRANO","LE","Puglia"]
[null,null,null,"Piemonte",null,null,null,null,null,"ANDRIA","BT","Puglia"]
[null,null,null,"Sardegna",null,null,null,null,null,"ANZANO DI PUGLIA","FG","Puglia"]
[null,null,null,"Sicilia",null,null,null,null,null,"APRICENA","FG","Puglia"]
[null,null,null,"Toscana",null,null,null,null,null,"ARADEO","LE","Puglia"]
[null,null,null,"Trentino-Alto Adige",null,null,null,null,null,"ARNESANO","LE","Puglia"]
[null,null,null,"Umbria",null,null,null,null,null,"ASCOLI SATRIANO","FG","Puglia"]
[null,null,null,"Valle d'Aosta",null,null,null,null,null,"AVETRANA","TA","Puglia"]
[null,null,null,"Veneto",null,null,null,null,null,"BAGNOLO DEL SALENTO","LE","Puglia"]
[null,null,null,null,null,null,null,null,null,"BARI","BA","Puglia"]
[null,null,null,null,null,null,null,null,null,"BARLETTA","BT","Puglia"]
[null,null,null,null,null,null,null,null,null,"BICCARI","FG","Puglia"]
[null,null,null,null,null,null,null,null,null,"BINETTO","BA","Puglia"]
[null,null,null,null,null,null,null,null,null,"BISCEGLIE","BT","Puglia"]
[null,null,null,null,null,null,null,null,null,"BITETTO","BA","Puglia"]
[null,null,null,null,null,null,null,null,null,"BITONTO","BA","Puglia"]
[null,null,null,null,null,null,null,null,null,"BITRITTO","BA","Puglia"]
[null,null,null,null,null,null,null,null,null,"BOTRUGNO","LE","Puglia"]
[null,null,null,null,null,null,null,null,null,"BOVINO","FG","Puglia"]
[null,null,null,null,null,null,null,null,null,"BRINDISI","BR","Puglia"]
[null,null,null,null,null,null,null,null,null,"CAGNANO VARANO","FG","Puglia"]
[null,null,null,null,null,null,null,null,null,"CALIMERA","LE","Puglia"]
[null,null,null,null,null,null,null,null,null,"CAMPI SALENTINA","LE","Puglia"]
[null,null,null,null,null,null,null,null,null,"CANDELA","FG","Puglia"]
[null,null,null,null,null,null,null,null,null,"CANNOLE","LE","Puglia"]
[null,null,null,null,null,null,null,null,null,"CANOSA DI PUGLIA","BT","Puglia"]
[null,null,null,null,null,null,null,null,null,"CAPRARICA DI LECCE","LE","Puglia"]
[null,null,null,null,null,null,null,null,null,"CAPURSO","BA","Puglia"]
[null,null,null,null,null,null,null,null,null,"CARAPELLE","FG","Puglia"]
[null,null,null,null,null,null,null,null,null,"CARLANTINO","FG","Puglia"]
[null,null,null,null,null,null,null,null,null,"CARMIANO","LE","Puglia"]
[null,null,null,null,null,null,null,null,null,"CAROSINO","TA","Puglia"]
[null,null,null,null,null,null,null,null,null,"CAROVIGNO","BR","Puglia"]
[null,null,null,null,null,null,null,null,null,"CARPIGNANO SALENTINO","LE","Puglia"]
[null,null,null,null,null,null,null,null,null,"CARPINO","FG","Puglia"]
[null,null,null,null,null,null,null,null,null,"CASALNUOVO MONTEROTARO","FG","Puglia"]
[null,null,null,null,null,null,null,null,null,"CASALVECCHIO DI PUGLIA","FG","Puglia"]
[null,null,null,null,null,null,null,null,null,"CASAMASSIMA","BA","Puglia"]
[null,null,null,null,null,null,null,null,null,"CASARANO","LE","Puglia"]
[null,null,null,null,null,null,null,null,null,"CASSANO DELLE MURGE","BA","Puglia"]
[null,null,null,null,null,null,null,null,null,"CASTELLANA GROTTE","BA","Puglia"]
[null,null,null,null,null,null,null,null,null,"CASTELLANETA","TA","Puglia"]
[null,null,null,null,null,null,null,null,null,"CASTELLUCCIO DEI SAURI","FG","Puglia"]
[null,null,null,null,null,null,null,null,null,"CASTELLUCCIO VALMAGGIORE","FG","Puglia"]
[null,null,null,null,null,null,null,null,null,"CASTELNUOVO DELLA DAUNIA","FG","Puglia"]
[null,null,null,null,null,null,null,null,null,"CASTRI DI LECCE","LE","Puglia"]
[null,null,null,null,null,null,null,null,null,"CASTRIGNANO DE' GRECI","LE","Puglia"]
[null,null,null,null,null,null,null,null,null,"CASTRIGNANO DEL CAPO","LE","Puglia"]
[null,null,null,null,null,null,null,null,null,"CASTRO","LE","Puglia"]
[null,null,null,null,null,null,null,null,null,"CAVALLINO","LE","Puglia"]
[null,null,null,null,null,null,null,null,null,"CEGLIE MESSAPICA","BR","Puglia"]
[null,null,null,null,null,null,null,null,null,"CELENZA VALFORTORE","FG","Puglia"]
[null,null,null,null,null,null,null,null,null,"CELLAMARE","BA","Puglia"]
[null,null,null,null,null,null,null,null,null,"CELLE DI SAN VITO","FG","Puglia"]
[null,null,null,null,null,null,null,null,null,"CELLINO SAN MARCO","BR","Puglia"]
[null,null,null,null,null,null,null,null,null,"CERIGNOLA","FG","Puglia"]
[null,null,null,null,null,null,null,null,null,"CHIEUTI","FG","Puglia"]
[null,null,null,null,null,null,null,null,null,"CISTERNINO","BR","Puglia"]
[null,null,null,null,null,null,null,null,null,"COLLEPASSO","LE","Puglia"]
[null,null,null,null,null,null,null,null,null,"CONVERSANO","BA","Puglia"]
[null,null,null,null,null,null,null,null,null,"COPERTINO","LE","Puglia"]
[null,null,null,null,null,null,null,null,null,"CORATO","BA","Puglia"]
[null,null,null,null,null,null,null,null,null,"CORIGLIANO D'OTRANTO","LE","Puglia"]
[null,null,null,null,null,null,null,null,null,"CORSANO","LE","Puglia"]
[null,null,null,null,null,null,null,null,null,"CRISPIANO","TA","Puglia"]
[null,null,null,null,null,null,null,null,null,"CURSI","LE","Puglia"]
[null,null,null,null,null,null,null,null,null,"CUTROFIANO","LE","Puglia"]
[null,null,null,null,null,null,null,null,null,"DELICETO","FG","Puglia"]
[null,null,null,null,null,null,null,null,null,"DISO","LE","Puglia"]
[null,null,null,null,null,null,null,null,null,"ERCHIE","BR","Puglia"]
[null,null,null,null,null,null,null,null,null,"FAETO","FG","Puglia"]
[null,null,null,null,null,null,null,null,null,"FAGGIANO","TA","Puglia"]
[null,null,null,null,null,null,null,null,null,"FASANO","BR","Puglia"]
[null,null,null,null,null,null,null,null,null,"FOGGIA","FG","Puglia"]
[null,null,null,null,null,null,null,null,null,"FRAGAGNANO","TA","Puglia"]
[null,null,null,null,null,null,null,null,null,"FRANCAVILLA FONTANA","BR","Puglia"]
[null,null,null,null,null,null,null,null,null,"GAGLIANO DEL CAPO","LE","Puglia"]
[null,null,null,null,null,null,null,null,null,"GALATINA","LE","Puglia"]
[null,null,null,null,null,null,null,null,null,"GALATONE","LE","Puglia"]
[null,null,null,null,null,null,null,null,null,"GALLIPOLI","LE","Puglia"]
[null,null,null,null,null,null,null,null,null,"GINOSA","TA","Puglia"]
[null,null,null,null,null,null,null,null,null,"GIOIA DEL COLLE","BA","Puglia"]
[null,null,null,null,null,null,null,null,null,"GIOVINAZZO","BA","Puglia"]
[null,null,null,null,null,null,null,null,null,"GIUGGIANELLO","LE","Puglia"]
[null,null,null,null,null,null,null,null,null,"GIURDIGNANO","LE","Puglia"]
[null,null,null,null,null,null,null,null,null,"GRAVINA IN PUGLIA","BA","Puglia"]
[null,null,null,null,null,null,null,null,null,"GROTTAGLIE","TA","Puglia"]
[null,null,null,null,null,null,null,null,null,"GRUMO APPULA","BA","Puglia"]
[null,null,null,null,null,null,null,null,null,"GUAGNANO","LE","Puglia"]
[null,null,null,null,null,null,null,null,null,"ISCHITELLA","FG","Puglia"]
[null,null,null,null,null,null,null,null,null,"ISOLE TREMITI","FG","Puglia"]
[null,null,null,null,null,null,null,null,null,"LATERZA","TA","Puglia"]
[null,null,null,null,null,null,null,null,null,"LATIANO","BR","Puglia"]
[null,null,null,null,null,null,null,null,null,"LECCE","LE","Puglia"]
[null,null,null,null,null,null,null,null,null,"LEPORANO","TA","Puglia"]
[null,null,null,null,null,null,null,null,null,"LEQUILE","LE","Puglia"]
[null,null,null,null,null,null,null,null,null,"LESINA","FG","Puglia"]
[null,null,null,null,null,null,null,null,null,"LEVERANO","LE","Puglia"]
[null,null,null,null,null,null,null,null,null,"LIZZANELLO","LE","Puglia"]
[null,null,null,null,null,null,null,null,null,"LIZZANO","TA","Puglia"]
[null,null,null,null,null,null,null,null,null,"LOCOROTONDO","BA","Puglia"]
[null,null,null,null,null,null,null,null,null,"LUCERA","FG","Puglia"]
[null,null,null,null,null,null,null,null,null,"MAGLIE","LE","Puglia"]
[null,null,null,null,null,null,null,null,null,"MANDURIA","TA","Puglia"]
[null,null,null,null,null,null,null,null,null,"MANFREDONIA","FG","Puglia"]
[null,null,null,null,null,null,null,null,null,"MARGHERITA DI SAVOIA","BT","Puglia"]
[null,null,null,null,null,null,null,null,null,"MARTANO","LE","Puglia"]
[null,null,null,null,null,null,null,null,null,"MARTIGNANO","LE","Puglia"]
[null,null,null,null,null,null,null,null,null,"MARTINA FRANCA","TA","Puglia"]
[null,null,null,null,null,null,null,null,null,"MARUGGIO","TA","Puglia"]
[null,null,null,null,null,null,null,null,null,"MASSAFRA","TA","Puglia"]
[null,null,null,null,null,null,null,null,null,"MATINO","LE","Puglia"]
[null,null,null,null,null,null,null,null,null,"MATTINATA","FG","Puglia"]
[null,null,null,null,null,null,null,null,null,"MELENDUGNO","LE","Puglia"]
[null,null,null,null,null,null,null,null,null,"MELISSANO","LE","Puglia"]
[null,null,null,null,null,null,null,null,null,"MELPIGNANO","LE","Puglia"]
[null,null,null,null,null,null,null,null,null,"MESAGNE","BR","Puglia"]
[null,null,null,null,null,null,null,null,null,"MIGGIANO","LE","Puglia"]
[null,null,null,null,null,null,null,null,null,"MINERVINO DI LECCE","LE","Puglia"]
[null,null,null,null,null,null,null,null,null,"MINERVINO MURGE","BT","Puglia"]
[null,null,null,null,null,null,null,null,null,"MODUGNO","BA","Puglia"]
[null,null,null,null,null,null,null,null,null,"MOLA DI BARI","BA","Puglia"]
[null,null,null,null,null,null,null,null,null,"MOLFETTA","BA","Puglia"]
[null,null,null,null,null,null,null,null,null,"MONOPOLI","BA","Puglia"]
[null,null,null,null,null,null,null,null,null,"MONTE SANT'ANGELO","FG","Puglia"]
[null,null,null,null,null,null,null,null,null,"MONTEIASI","TA","Puglia"]
[null,null,null,null,null,null,null,null,null,"MONTELEONE DI PUGLIA","FG","Puglia"]
[null,null,null,null,null,null,null,null,null,"MONTEMESOLA","TA","Puglia"]
[null,null,null,null,null,null,null,null,null,"MONTEPARANO","TA","Puglia"]
[null,null,null,null,null,null,null,null,null,"MONTERONI DI LECCE","LE","Puglia"]
[null,null,null,null,null,null,null,null,null,"MONTESANO SALENTINO","LE","Puglia"]
[null,null,null,null,null,null,null,null,null,"MORCIANO DI LEUCA","LE","Puglia"]
[null,null,null,null,null,null,null,null,null,"MOTTA MONTECORVINO","FG","Puglia"]
[null,null,null,null,null,null,null,null,null,"MOTTOLA","TA","Puglia"]
[null,null,null,null,null,null,null,null,null,"MURO LECCESE","LE","Puglia"]
[null,null,null,null,null,null,null,null,null,"NARDO'","LE","Puglia"]
[null,null,null,null,null,null,null,null,null,"NEVIANO","LE","Puglia"]
[null,null,null,null,null,null,null,null,null,"NOCI","BA","Puglia"]
[null,null,null,null,null,null,null,null,null,"NOCIGLIA","LE","Puglia"]
[null,null,null,null,null,null,null,null,null,"NOICATTARO","BA","Puglia"]
[null,null,null,null,null,null,null,null,null,"NOVOLI","LE","Puglia"]
[null,null,null,null,null,null,null,null,null,"ORDONA","FG","Puglia"]
[null,null,null,null,null,null,null,null,null,"ORIA","BR","Puglia"]
[null,null,null,null,null,null,null,null,null,"ORSARA DI PUGLIA","FG","Puglia"]
[null,null,null,null,null,null,null,null,null,"ORTA NOVA","FG","Puglia"]
[null,null,null,null,null,null,null,null,null,"ORTELLE","LE","Puglia"]
[null,null,null,null,null,null,null,null,null,"OSTUNI","BR","Puglia"]
[null,null,null,null,null,null,null,null,null,"OTRANTO","LE","Puglia"]
[null,null,null,null,null,null,null,null,null,"PALAGIANELLO","TA","Puglia"]
[null,null,null,null,null,null,null,null,null,"PALAGIANO","TA","Puglia"]
[null,null,null,null,null,null,null,null,null,"PALMARIGGI","LE","Puglia"]
[null,null,null,null,null,null,null,null,null,"PALO DEL COLLE","BA","Puglia"]
[null,null,null,null,null,null,null,null,null,"PANNI","FG","Puglia"]
[null,null,null,null,null,null,null,null,null,"PARABITA","LE","Puglia"]
[null,null,null,null,null,null,null,null,null,"PATU'","LE","Puglia"]
[null,null,null,null,null,null,null,null,null,"PESCHICI","FG","Puglia"]
[null,null,null,null,null,null,null,null,null,"PIETRAMONTECORVINO","FG","Puglia"]
[null,null,null,null,null,null,null,null,null,"POGGIARDO","LE","Puglia"]
[null,null,null,null,null,null,null,null,null,"POGGIO IMPERIALE","FG","Puglia"]
[null,null,null,null,null,null,null,null,null,"POGGIORSINI","BA","Puglia"]
[null,null,null,null,null,null,null,null,null,"POLIGNANO A MARE","BA","Puglia"]
[null,null,null,null,null,null,null,null,null,"PORTO CESAREO","LE","Puglia"]
[null,null,null,null,null,null,null,null,null,"PRESICCE","LE","Puglia"]
[null,null,null,null,null,null,null,null,null,"PULSANO","TA","Puglia"]
[null,null,null,null,null,null,null,null,null,"PUTIGNANO","BA","Puglia"]
[null,null,null,null,null,null,null,null,null,"RACALE","LE","Puglia"]
[null,null,null,null,null,null,null,null,null,"RIGNANO GARGANICO","FG","Puglia"]
[null,null,null,null,null,null,null,null,null,"ROCCAFORZATA","TA","Puglia"]
[null,null,null,null,null,null,null,null,null,"ROCCHETTA SANT'ANTONIO","FG","Puglia"]
[null,null,null,null,null,null,null,null,null,"RODI GARGANICO","FG","Puglia"]
[null,null,null,null,null,null,null,null,null,"ROSETO VALFORTORE","FG","Puglia"]
[null,null,null,null,null,null,null,null,null,"RUFFANO","LE","Puglia"]
[null,null,null,null,null,null,null,null,null,"RUTIGLIANO","BA","Puglia"]
[null,null,null,null,null,null,null,null,null,"RUVO DI PUGLIA","BA","Puglia"]
[null,null,null,null,null,null,null,null,null,"SALICE SALENTINO","LE","Puglia"]
[null,null,null,null,null,null,null,null,null,"SALVE","LE","Puglia"]
[null,null,null,null,null,null,null,null,null,"SAMMICHELE DI BARI","BA","Puglia"]
[null,null,null,null,null,null,null,null,null,"SAN CASSIANO","LE","Puglia"]
[null,null,null,null,null,null,null,null,null,"SAN CESARIO DI LECCE","LE","Puglia"]
[null,null,null,null,null,null,null,null,null,"SAN DONACI","BR","Puglia"]
[null,null,null,null,null,null,null,null,null,"SAN DONATO DI LECCE","LE","Puglia"]
[null,null,null,null,null,null,null,null,null,"SAN FERDINANDO PUGLIA","BT","Puglia"]
[null,null,null,null,null,null,null,null,null,"SAN GIORGIO IONICO","TA","Puglia"]
[null,null,null,null,null,null,null,null,null,"SAN GIOVANNI ROTONDO","FG","Puglia"]
[null,null,null,null,null,null,null,null,null,"SAN MARCO IN LAMIS","FG","Puglia"]
[null,null,null,null,null,null,null,null,null,"SAN MARCO LA CATOLA","FG","Puglia"]
[null,null,null,null,null,null,null,null,null,"SAN MARZANO DI SAN GIUSEPPE","TA","Puglia"]
[null,null,null,null,null,null,null,null,null,"SAN MICHELE SALENTINO","BR","Puglia"]
[null,null,null,null,null,null,null,null,null,"SAN PANCRAZIO SALENTINO","BR","Puglia"]
[null,null,null,null,null,null,null,null,null,"SAN PAOLO DI CIVITATE","FG","Puglia"]
[null,null,null,null,null,null,null,null,null,"SAN PIETRO IN LAMA","LE","Puglia"]
[null,null,null,null,null,null,null,null,null,"SAN PIETRO VERNOTICO","BR","Puglia"]
[null,null,null,null,null,null,null,null,null,"SAN SEVERO","FG","Puglia"]
[null,null,null,null,null,null,null,null,null,"SAN VITO DEI NORMANNI","BR","Puglia"]
[null,null,null,null,null,null,null,null,null,"SANARICA","LE","Puglia"]
[null,null,null,null,null,null,null,null,null,"SANNICANDRO DI BARI","BA","Puglia"]
[null,null,null,null,null,null,null,null,null,"SANNICANDRO GARGAN.","FG","Puglia"]
[null,null,null,null,null,null,null,null,null,"SANNICOLA","LE","Puglia"]
[null,null,null,null,null,null,null,null,null,"SANTA CESAREA TERME","LE","Puglia"]
[null,null,null,null,null,null,null,null,null,"SANT'AGATA DI PUGLIA","FG","Puglia"]
[null,null,null,null,null,null,null,null,null,"SANTERAMO IN COLLE","BA","Puglia"]
[null,null,null,null,null,null,null,null,null,"SAVA","TA","Puglia"]
[null,null,null,null,null,null,null,null,null,"SCORRANO","LE","Puglia"]
[null,null,null,null,null,null,null,null,null,"SECLI'","LE","Puglia"]
[null,null,null,null,null,null,null,null,null,"SERRACAPRIOLA","FG","Puglia"]
[null,null,null,null,null,null,null,null,null,"SOGLIANO CAVOUR","LE","Puglia"]
[null,null,null,null,null,null,null,null,null,"SOLETO","LE","Puglia"]
[null,null,null,null,null,null,null,null,null,"SPECCHIA","LE","Puglia"]
[null,null,null,null,null,null,null,null,null,"SPINAZZOLA","BT","Puglia"]
[null,null,null,null,null,null,null,null,null,"SPONGANO","LE","Puglia"]
[null,null,null,null,null,null,null,null,null,"SQUINZANO","LE","Puglia"]
[null,null,null,null,null,null,null,null,null,"STATTE","TA","Puglia"]
[null,null,null,null,null,null,null,null,null,"STERNATIA","LE","Puglia"]
[null,null,null,null,null,null,null,null,null,"STORNARA","FG","Puglia"]
[null,null,null,null,null,null,null,null,null,"STORNARELLA","FG","Puglia"]
[null,null,null,null,null,null,null,null,null,"SUPERSANO","LE","Puglia"]
[null,null,null,null,null,null,null,null,null,"SURANO","LE","Puglia"]
[null,null,null,null,null,null,null,null,null,"SURBO","LE","Puglia"]
[null,null,null,null,null,null,null,null,null,"TARANTO","TA","Puglia"]
[null,null,null,null,null,null,null,null,null,"TAURISANO","LE","Puglia"]
[null,null,null,null,null,null,null,null,null,"TAVIANO","LE","Puglia"]
[null,null,null,null,null,null,null,null,null,"TERLIZZI","BA","Puglia"]
[null,null,null,null,null,null,null,null,null,"TIGGIANO","LE","Puglia"]
[null,null,null,null,null,null,null,null,null,"TORCHIAROLO","BR","Puglia"]
[null,null,null,null,null,null,null,null,null,"TORITTO","BA","Puglia"]
[null,null,null,null,null,null,null,null,null,"TORRE SANTA SUSANNA","BR","Puglia"]
[null,null,null,null,null,null,null,null,null,"TORREMAGGIORE","FG","Puglia"]
[null,null,null,null,null,null,null,null,null,"TORRICELLA","TA","Puglia"]
[null,null,null,null,null,null,null,null,null,"TRANI","BT","Puglia"]
[null,null,null,null,null,null,null,null,null,"TREPUZZI","LE","Puglia"]
[null,null,null,null,null,null,null,null,null,"TRICASE","LE","Puglia"]
[null,null,null,null,null,null,null,null,null,"TRIGGIANO","BA","Puglia"]
[null,null,null,null,null,null,null,null,null,"TRINITAPOLI","BT","Puglia"]
[null,null,null,null,null,null,null,null,null,"TROIA","FG","Puglia"]
[null,null,null,null,null,null,null,null,null,"TUGLIE","LE","Puglia"]
[null,null,null,null,null,null,null,null,null,"TURI","BA","Puglia"]
[null,null,null,null,null,null,null,null,null,"UGENTO","LE","Puglia"]
[null,null,null,null,null,null,null,null,null,"UGGIANO LA CHIESA","LE","Puglia"]
[null,null,null,null,null,null,null,null,null,"VALENZANO","BA","Puglia"]
[null,null,null,null,null,null,null,null,null,"VEGLIE","LE","Puglia"]
[null,null,null,null,null,null,null,null,null,"VERNOLE","LE","Puglia"]
[null,null,null,null,null,null,null,null,null,"VICO DEL GARGANO","FG","Puglia"]
[null,null,null,null,null,null,null,null,null,"VIESTE","FG","Puglia"]
[null,null,null,null,null,null,null,null,null,"VILLA CASTELLI","BR","Puglia"]
[null,null,null,null,null,null,null,null,null,"VOLTURARA APPULA","FG","Puglia"]
[null,null,null,null,null,null,null,null,null,"VOLTURINO","FG","Puglia"]
[null,null,null,null,null,null,null,null,null,"ZAPPONETA","FG","Puglia"]
[null,null,null,null,null,null,null,null,null,"ZOLLINO","LE","Puglia"]

{"sheet":"Entrate - Altri costi","index":1,"n_rows":948,"n_cols":34,"rows_kept":948,"cut":false,"hidden":false,"merged":[[3,26,3,32],[258,8,264,10],[0,2,0,26],[1,2,1,12],[2,2,2,26]]}
[null,null,"FSC Fondo di Sviluppo e Coesione 2014/2020 – “Patto per la Puglia”\nAVVISO PUBBLICO PER PRESENTARE INIZIATIVE PROGETTUALI RIGUARDANTI LE ATTIVITA' CULTURALI\nENTRATE ED ALTRI COSTI PER LA REALIZZAZIONE DELLE ATTIVITA' - BILANCIO CONSUNTIVO ANNUALE TERZA ANNUALITA' (ALL. L DELL'AVVISO)"]
[]
[null,null,"Indicare le Entrate e gli altri costi relativi alla terza annualità.              \n"]
[]
["Progr","Codice di \nimputazione","Soggetto\nassuntore \ndel \ncosto","Tipologia Ente /\nNome","Ragione sociale \nDenominazione /\nCognome","Data\ninizio Prestazione","Luogo prevalente della prestazione","provincia","Fuori regione Indicare solo la Regione","Contratto","Tipologia prestazione","Tipo Documento ","N.","Del","Tipo Pagamento","Data","N","Importo Netto","Importi fuori campo IVA","Aliquota IVA","Regime IVA","IVA","Importo a rendiconto","Annotazioni","Spesa riferibile\nal progetto","Contratto","Documento di spesa","Liquidazione","Quietanza","Doc identità","Importo \nAmmesso","Annotazioni","Importo inserito sul sistema MIRWEB","Nome attività / evento a cui si riferisce la prestazione"]
[null,null,null,null,null,null,null,{"$f":"VLOOKUP(G6,G$691:H$948,2)","v":{"$error":"#N/A"}},null,null,null,null,null,null,null,null,null,null,null,null,null,{"$f":"R6*T6","v":0},{"$f":"IF(U6=\"no\",(R6+S6+V6),R6+S6)","v":0},null,null,null,null,null,null,null,{"$f":"IF(Y6=\"si\",IF(Z6=\"si\",IF(AA6=\"si\",IF(AB6=\"si\",IF(AC6=\"si\",IF(AD6=\"si\",W6,0))))))","v":false}]
[null,null,null,null,null,null,null,{"$error":"#N/A"},null,null,null,null,null,null,null,null,null,null,null,null,null,0,0,null,null,null,null,null,null,null,false]
[null,null,null,null,null,null,null,{"$error":"#N/A"},null,null,null,null,null,null,null,null,null,null,null,null,null,0,0,null,null,null,null,null,null,null,false]
[null,null,null,null,null,null,null,{"$error":"#N/A"},null,null,null,null,null,null,null,null,null,null,null,null,null,0,0,null,null,null,null,null,null,null,false]
[null,null,null,null,null,null,null,{"$error":"#N/A"},null,null,null,null,null,null,null,null,null,null,null,null,null,0,0,null,null,null,null,null,null,null,false]
[null,null,null,null,null,null,null,{"$error":"#N/A"},null,null,null,null,null,null,null,null,null,null,null,null,null,0,0,null,null,null,null,null,null,null,false]
[null,null,null,null,null,null,null,{"$error":"#N/A"},null,null,null,null,null,null,null,null,null,null,null,null,null,0,0,null,null,null,null,null,null,null,{"$f":"IF(Y12=\"si\",IF(Z12=\"si\",IF(AA12=\"si\",IF(AB12=\"si\",IF(AC12=\"si\",IF(AD12=\"si\",W12,0))))))","v":false}]
[null,null,null,null,null,null,null,{"$error":"#N/A"},null,null,null,null,null,null,null,null,null,null,null,null,null,0,0,null,null,null,null,null,null,null,false]
[null,null,null,null,null,null,null,{"$error":"#N/A"},null,null,null,null,null,null,null,null,null,null,null,null,null,0,0,null,null,null,null,null,null,null,false]
[null,null,null,null,null,null,null,{"$error":"#N/A"},null,null,null,null,null,null,null,null,null,null,null,null,null,0,0,null,null,null,null,null,null,null,false]
[null,null,null,null,null,null,null,{"$error":"#N/A"},null,null,null,null,null,null,null,null,null,null,null,null,null,0,0,null,null,null,null,null,null,null,false]
[null,null,null,null,null,null,null,{"$error":"#N/A"},null,null,null,null,null,null,null,null,null,null,null,null,null,0,0,null,null,null,null,null,null,null,false]
[null,null,null,null,null,null,null,{"$error":"#N/A"},null,null,null,null,null,null,null,null,null,null,null,null,null,0,0,null,null,null,null,null,null,null,false]
[null,null,null,null,null,null,null,{"$f":"VLOOKUP(G19,G$691:H$948,2)","v":{"$error":"#N/A"}},null,null,null,null,null,null,null,null,null,null,null,null,null,{"$f":"R19*T19","v":0},{"$f":"IF(U19=\"no\",(R19+S19+V19),R19+S19)","v":0},null,null,null,null,null,null,null,{"$f":"IF(Y19=\"si\",IF(Z19=\"si\",IF(AA19=\"si\",IF(AB19=\"si\",IF(AC19=\"si\",IF(AD19=\"si\",W19,0))))))","v":false}]
[null,null,null,null,null,null,null,{"$error":"#N/A"},null,null,null,null,null,null,null,null,null,null,null,null,null,0,0,null,null,null,null,null,null,null,false]
[null,null,null,null,null,null,null,{"$error":"#N/A"},null,null,null,null,null,null,null,null,null,null,null,null,null,0,0,null,null,null,null,null,null,null,false]
[null,null,null,null,null,null,null,{"$error":"#N/A"},null,null,null,null,null,null,null,null,null,null,null,null,null,0,0,null,null,null,null,null,null,null,false]
[null,null,null,null,null,null,null,{"$error":"#N/A"},null,null,null,null,null,null,null,null,null,null,null,null,null,0,0,null,null,null,null,null,null,null,false]
[null,null,null,null,null,null,null,{"$error":"#N/A"},null,null,null,null,null,null,null,null,null,null,null,null,null,0,0,null,null,null,null,null,null,null,false]
[null,null,null,null,null,null,null,{"$error":"#N/A"},null,null,null,null,null,null,null,null,null,null,null,null,null,0,0,null,null,null,null,null,null,null,false]
[null,null,null,null,null,null,null,{"$error":"#N/A"},null,null,null,null,null,null,null,null,null,null,null,null,null,0,0,null,null,null,null,null,null,null,false]
[null,null,null,null,null,null,null,{"$error":"#N/A"},null,null,null,null,null,null,null,null,null,null,null,null,null,0,0,null,null,null,null,null,null,null,false]
[null,null,null,null,null,null,null,{"$error":"#N/A"},null,null,null,null,null,null,null,null,null,null,null,null,null,0,0,null,null,null,null,null,null,null,false]
[null,null,null,null,null,null,null,{"$f":"VLOOKUP(G29,G$691:H$948,2)","v":{"$error":"#N/A"}},null,null,null,null,null,null,null,null,null,null,null,null,null,0,0,null,null,null,null,null,null,null,false]
[null,null,null,null,null,null,null,{"$error":"#N/A"},null,null,null,null,null,null,null,null,null,null,null,null,null,0,0,null,null,null,null,null,null,null,false]
[null,null,null,null,null,null,null,{"$error":"#N/A"},null,null,null,null,null,null,null,null,null,null,null,null,null,0,0,null,null,null,null,null,null,null,false]
[null,null,null,null,null,null,null,{"$error":"#N/A"},null,null,null,null,null,null,null,null,null,null,null,null,null,0,0,null,null,null,null,null,null,null,false]
[null,null,null,null,null,null,null,{"$error":"#N/A"},null,null,null,null,null,null,null,null,null,null,null,null,null,0,0,null,null,null,null,null,null,null,false]
[null,null,null,null,null,null,null,{"$error":"#N/A"},null,null,null,null,null,null,null,null,null,null,null,null,null,0,0,null,null,null,null,null,null,null,false]
[null,null,null,null,null,null,null,{"$error":"#N/A"},null,null,null,null,null,null,null,null,null,null,null,null,null,0,0,null,null,null,null,null,null,null,false]
[null,null,null,null,null,null,null,{"$error":"#N/A"},null,null,null,null,null,null,null,null,null,null,null,null,null,0,0,null,null,null,null,null,null,null,false]
[null,null,null,null,null,null,null,{"$error":"#N/A"},null,null,null,null,null,null,null,null,null,null,null,null,null,0,0,null,null,null,null,null,null,null,false]
[null,null,null,null,null,null,null,{"$error":"#N/A"},null,null,null,null,null,null,null,null,null,null,null,null,null,0,0,null,null,null,null,null,null,null,false]
[null,null,null,null,null,null,null,{"$error":"#N/A"},null,null,null,null,null,null,null,null,null,null,null,null,null,0,0,null,null,null,null,null,null,null,false]
[null,null,null,null,null,null,null,{"$error":"#N/A"},null,null,null,null,null,null,null,null,null,null,null,null,null,0,0,null,null,null,null,null,null,null,false]
[null,null,null,null,null,null,null,{"$error":"#N/A"},null,null,null,null,null,null,null,null,null,null,null,null,null,0,0,null,null,null,null,null,null,null,false]
[null,null,null,null,null,null,null,{"$error":"#N/A"},null,null,null,null,null,null,null,null,null,null,null,null,null,0,0,null,null,null,null,null,null,null,false]
[null,null,null,null,null,null,null,{"$error":"#N/A"},null,null,null,null,null,null,null,null,null,null,null,null,null,0,0,null,null,null,null,null,null,null,false]
[null,null,null,null,null,null,null,{"$error":"#N/A"},null,null,null,null,null,null,null,null,null,null,null,null,null,0,0,null,null,null,null,null,null,null,false]
[null,null,null,null,null,null,null,{"$error":"#N/A"},null,null,null,null,null,null,null,null,null,null,null,null,null,0,0,null,null,null,null,null,null,null,false]
[null,null,null,null,null,null,null,{"$error":"#N/A"},null,null,null,null,null,null,null,null,null,null,null,null,null,0,0,null,null,null,null,null,null,null,false]
[null,null,null,null,null,null,null,{"$error":"#N/A"},null,null,null,null,null,null,null,null,null,null,null,null,null,0,0,null,null,null,null,null,null,null,false]
[null,null,null,null,null,null,null,{"$error":"#N/A"},null,null,null,null,null,null,null,null,null,null,null,null,null,0,0,null,null,null,null,null,null,null,false]
[null,null,null,null,null,null,null,{"$error":"#N/A"},null,null,null,null,null,null,null,null,null,null,null,null,null,{"$f":"R49*T49","v":0},{"$f":"IF(U49=\"no\",(R49+S49+V49),R49+S49)","v":0},null,null,null,null,null,null,null,false]
[null,null,null,null,null,null,null,{"$error":"#N/A"},null,null,null,null,null,null,null,null,null,null,null,null,null,0,0,null,null,null,null,null,null,null,false]
[null,null,null,null,null,null,null,{"$error":"#N/A"},null,null,null,null,null,null,null,null,null,null,null,null,null,0,0,null,null,null,null,null,null,null,false]
[null,null,null,null,null,null,null,{"$error":"#N/A"},null,null,null,null,null,null,null,null,null,null,null,null,null,0,0,null,null,null,null,null,null,null,false]
[null,null,null,null,null,null,null,{"$error":"#N/A"},null,null,null,null,null,null,null,null,null,null,null,null,null,0,0,null,null,null,null,null,null,null,false]
[null,null,null,null,null,null,null,{"$error":"#N/A"},null,null,null,null,null,null,null,null,null,null,null,null,null,0,0,null,null,null,null,null,null,null,false]
[null,null,null,null,null,null,null,{"$error":"#N/A"},null,null,null,null,null,null,null,null,null,null,null,null,null,0,0,null,null,null,null,null,null,null,false]
[null,null,null,null,null,null,null,{"$error":"#N/A"},null,null,null,null,null,null,null,null,null,null,null,null,null,0,0,null,null,null,null,null,null,null,false]
[null,null,null,null,null,null,null,{"$error":"#N/A"},null,null,null,null,null,null,null,null,null,null,null,null,null,0,0,null,null,null,null,null,null,null,false]
[null,null,null,null,null,null,null,{"$error":"#N/A"},null,null,null,null,null,null,null,null,null,null,null,null,null,0,0,null,null,null,null,null,null,null,false]
[null,null,null,null,null,null,null,{"$error":"#N/A"},null,null,null,null,null,null,null,null,null,null,null,null,null,0,0,null,null,null,null,null,null,null,false]
[null,null,null,null,null,null,null,{"$error":"#N/A"},null,null,null,null,null,null,null,null,null,null,null,null,null,0,0,null,null,null,null,null,null,null,false]
[null,null,null,null,null,null,null,{"$error":"#N/A"},null,null,null,null,null,null,null,null,null,null,null,null,null,0,0,null,null,null,null,null,null,null,false]
[null,null,null,null,null,null,null,{"$error":"#N/A"},null,null,null,null,null,null,null,null,null,null,null,null,null,0,0,null,null,null,null,null,null,null,false]
[null,null,null,null,null,null,null,{"$error":"#N/A"},null,null,null,null,null,null,null,null,null,null,null,null,null,0,0,null,null,null,null,null,null,null,false]
[null,null,null,null,null,null,null,{"$error":"#N/A"},null,null,null,null,null,null,null,null,null,null,null,null,null,0,0,null,null,null,null,null,null,null,false]
[null,null,null,null,null,null,null,{"$error":"#N/A"},null,null,null,null,null,null,null,null,null,null,null,null,null,0,0,null,null,null,null,null,null,null,false]
[null,null,null,null,null,null,null,{"$error":"#N/A"},null,null,null,null,null,null,null,null,null,null,null,null,null,0,0,null,null,null,null,null,null,null,false]
[null,null,null,null,null,null,null,{"$error":"#N/A"},null,null,null,null,null,null,null,null,null,null,null,null,null,0,0,null,null,null,null,null,null,null,false]
[null,null,null,null,null,null,null,{"$error":"#N/A"},null,null,null,null,null,null,null,null,null,null,null,null,null,0,0,null,null,null,null,null,null,null,false]
[null,null,null,null,null,null,null,{"$error":"#N/A"},null,null,null,null,null,null,null,null,null,null,null,null,null,0,0,null,null,null,null,null,null,null,false]
[null,null,null,null,null,null,null,{"$error":"#N/A"},null,null,null,null,null,null,null,null,null,null,null,null,null,0,0,null,null,null,null,null,null,null,false]
[null,null,null,null,null,null,null,{"$error":"#N/A"},null,null,null,null,null,null,null,null,null,null,null,null,null,0,0,null,null,null,null,null,null,null,false]
[null,null,null,null,null,null,null,{"$error":"#N/A"},null,null,null,null,null,null,null,null,null,null,null,null,null,0,0,null,null,null,null,null,null,null,false]
[null,null,null,null,null,null,null,{"$error":"#N/A"},null,null,null,null,null,null,null,null,null,null,null,null,null,0,0,null,null,null,null,null,null,null,false]
[null,null,null,null,null,null,null,{"$error":"#N/A"},null,null,null,null,null,null,null,null,null,null,null,null,null,0,0,null,null,null,null,null,null,null,false]
[null,null,null,null,null,null,null,{"$error":"#N/A"},null,null,null,null,null,null,null,null,null,null,null,null,null,0,0,null,null,null,null,null,null,null,false]
[null,null,null,null,null,null,null,{"$error":"#N/A"},null,null,null,null,null,null,null,null,null,null,null,null,null,0,0,null,null,null,null,null,null,null,false]
[null,null,null,null,null,null,null,{"$error":"#N/A"},null,null,null,null,null,null,null,null,null,null,null,null,null,0,0,null,null,null,null,null,null,null,{"$f":"IF(Y77=\"si\",IF(Z77=\"si\",IF(AA77=\"si\",IF(AB77=\"si\",IF(AC77=\"si\",IF(AD77=\"si\",W77,0))))))","v":false}]
[null,null,null,null,null,null,null,{"$error":"#N/A"},null,null,null,null,null,null,null,null,null,null,null,null,null,0,0,null,null,null,null,null,null,null,false]
[null,null,null,null,null,null,null,{"$error":"#N/A"},null,null,null,null,null,null,null,null,null,null,null,null,null,0,0,null,null,null,null,null,null,null,false]
[null,null,null,null,null,null,null,{"$error":"#N/A"},null,null,null,null,null,null,null,null,null,null,null,null,null,0,0,null,null,null,null,null,null,null,false]
[null,null,null,null,null,null,null,{"$error":"#N/A"},null,null,null,null,null,null,null,null,null,null,null,null,null,0,0,null,null,null,null,null,null,null,false]
[null,null,null,null,null,null,null,{"$error":"#N/A"},null,null,null,null,null,null,null,null,null,null,null,null,null,0,0,null,null,null,null,null,null,null,false]
[null,null,null,null,null,null,null,{"$error":"#N/A"},null,null,null,null,null,null,null,null,null,null,null,null,null,0,0,null,null,null,null,null,null,null,false]
[null,null,null,null,null,null,null,{"$error":"#N/A"},null,null,null,null,null,null,null,null,null,null,null,null,null,0,0,null,null,null,null,null,null,null,false]
[null,null,null,null,null,null,null,{"$error":"#N/A"},null,null,null,null,null,null,null,null,null,null,null,null,null,0,0,null,null,null,null,null,null,null,false]
[null,null,null,null,null,null,null,{"$error":"#N/A"},null,null,null,null,null,null,null,null,null,null,null,null,null,{"$f":"R86*T86","v":0},{"$f":"IF(U86=\"no\",(R86+S86+V86),R86+S86)","v":0},null,null,null,null,null,null,null,false]
[null,null,null,null,null,null,null,{"$error":"#N/A"},null,null,null,null,null,null,null,null,null,null,null,null,null,0,0,null,null,null,null,null,null,null,false]
[null,null,null,null,null,null,null,{"$error":"#N/A"},null,null,null,null,null,null,null,null,null,null,null,null,null,0,0,null,null,null,null,null,null,null,false]
[null,null,null,null,null,null,null,{"$error":"#N/A"},null,null,null,null,null,null,null,null,null,null,null,null,null,0,0,null,null,null,null,null,null,null,false]
[null,null,null,null,null,null,null,{"$error":"#N/A"},null,null,null,null,null,null,null,null,null,null,null,null,null,0,0,null,null,null,null,null,null,null,false]
[null,null,null,null,null,null,null,{"$error":"#N/A"},null,null,null,null,null,null,null,null,null,null,null,null,null,0,0,null,null,null,null,null,null,null,false]
[null,null,null,null,null,null,null,{"$error":"#N/A"},null,null,null,null,null,null,null,null,null,null,null,null,null,0,0,null,null,null,null,null,null,null,false]
[null,null,null,null,null,null,null,{"$f":"VLOOKUP(G93,G$691:H$948,2)","v":{"$error":"#N/A"}},null,null,null,null,null,null,null,null,null,null,null,null,null,0,0,null,null,null,null,null,null,null,false]
[null,null,null,null,null,null,null,{"$error":"#N/A"},null,null,null,null,null,null,null,null,null,null,null,null,null,0,0,null,null,null,null,null,null,null,false]
[null,null,null,null,null,null,null,{"$error":"#N/A"},null,null,null,null,null,null,null,null,null,null,null,null,null,0,0,null,null,null,null,null,null,null,false]
[null,null,null,null,null,null,null,{"$error":"#N/A"},null,null,null,null,null,null,null,null,null,null,null,null,null,0,0,null,null,null,null,null,null,null,false]
[null,null,null,null,null,null,null,{"$error":"#N/A"},null,null,null,null,null,null,null,null,null,null,null,null,null,0,0,null,null,null,null,null,null,null,false]
[null,null,null,null,null,null,null,{"$error":"#N/A"},null,null,null,null,null,null,null,null,null,null,null,null,null,0,0,null,null,null,null,null,null,null,false]
[null,null,null,null,null,null,null,{"$error":"#N/A"},null,null,null,null,null,null,null,null,null,null,null,null,null,0,0,null,null,null,null,null,null,null,false]
[null,null,null,null,null,null,null,{"$error":"#N/A"},null,null,null,null,null,null,null,null,null,null,null,null,null,0,0,null,null,null,null,null,null,null,false]
[null,null,null,null,null,null,null,{"$error":"#N/A"},null,null,null,null,null,null,null,null,null,null,null,null,null,0,0,null,null,null,null,null,null,null,false]
[null,null,null,null,null,null,null,{"$error":"#N/A"},null,null,null,null,null,null,null,null,null,null,null,null,null,0,0,null,null,null,null,null,null,null,false]
[null,null,null,null,null,null,null,{"$error":"#N/A"},null,null,null,null,null,null,null,null,null,null,null,null,null,0,0,null,null,null,null,null,null,null,false]
[null,null,null,null,null,null,null,{"$error":"#N/A"},null,null,null,null,null,null,null,null,null,null,null,null,null,0,0,null,null,null,null,null,null,null,false]
[null,null,null,null,null,null,null,{"$error":"#N/A"},null,null,null,null,null,null,null,null,null,null,null,null,null,0,0,null,null,null,null,null,null,null,false]
[null,null,null,null,null,null,null,{"$error":"#N/A"},null,null,null,null,null,null,null,null,null,null,null,null,null,{"$f":"R106*T106","v":0},{"$f":"IF(U106=\"no\",(R106+S106+V106),R106+S106)","v":0},null,null,null,null,null,null,null,false]
[null,null,null,null,null,null,null,{"$error":"#N/A"},null,null,null,null,null,null,null,null,null,null,null,null,null,0,0,null,null,null,null,null,null,null,false]
[null,null,null,null,null,null,null,{"$error":"#N/A"},null,null,null,null,null,null,null,null,null,null,null,null,null,0,0,null,null,null,null,null,null,null,false]
[null,null,null,null,null,null,null,{"$error":"#N/A"},null,null,null,null,null,null,null,null,null,null,null,null,null,0,0,null,null,null,null,null,null,null,false]
[null,null,null,null,null,null,null,{"$error":"#N/A"},null,null,null,null,null,null,null,null,null,null,null,null,null,0,0,null,null,null,null,null,null,null,false]
[null,null,null,null,null,null,null,{"$error":"#N/A"},null,null,null,null,null,null,null,null,null,null,null,null,null,0,0,null,null,null,null,null,null,null,false]
[null,null,null,null,null,null,null,{"$error":"#N/A"},null,null,null,null,null,null,null,null,null,null,null,null,null,0,0,null,null,null,null,null,null,null,false]
[null,null,null,null,null,null,null,{"$error":"#N/A"},null,null,null,null,null,null,null,null,null,null,null,null,null,0,0,null,null,null,null,null,null,null,false]
[null,null,null,null,null,null,null,{"$error":"#N/A"},null,null,null,null,null,null,null,null,null,null,null,null,null,0,0,null,null,null,null,null,null,null,false]
[null,null,null,null,null,null,null,{"$error":"#N/A"},null,null,null,null,null,null,null,null,null,null,null,null,null,0,0,null,null,null,null,null,null,null,false]
[null,null,null,null,null,null,null,{"$error":"#N/A"},null,null,null,null,null,null,null,null,null,null,null,null,null,0,0,null,null,null,null,null,null,null,false]
[null,null,null,null,null,null,null,{"$error":"#N/A"},null,null,null,null,null,null,null,null,null,null,null,null,null,0,0,null,null,null,null,null,null,null,false]
[null,null,null,null,null,null,null,{"$error":"#N/A"},null,null,null,null,null,null,null,null,null,null,null,null,null,0,0,null,null,null,null,null,null,null,false]
[null,null,null,null,null,null,null,{"$error":"#N/A"},null,null,null,null,null,null,null,null,null,null,null,null,null,0,0,null,null,null,null,null,null,null,false]
[null,null,null,null,null,null,null,{"$error":"#N/A"},null,null,null,null,null,null,null,null,null,null,null,null,null,0,0,null,null,null,null,null,null,null,false]
[null,null,null,null,null,null,null,{"$error":"#N/A"},null,null,null,null,null,null,null,null,null,null,null,null,null,0,0,null,null,null,null,null,null,null,false]
[null,null,null,null,null,null,null,{"$error":"#N/A"},null,null,null,null,null,null,null,null,null,null,null,null,null,0,0,null,null,null,null,null,null,null,false]
[null,null,null,null,null,null,null,{"$error":"#N/A"},null,null,null,null,null,null,null,null,null,null,null,null,null,0,0,null,null,null,null,null,null,null,false]
[null,null,null,null,null,null,null,{"$error":"#N/A"},null,null,null,null,null,null,null,null,null,null,null,null,null,0,0,null,null,null,null,null,null,null,false]
[null,null,null,null,null,null,null,{"$error":"#N/A"},null,null,null,null,null,null,null,null,null,null,null,null,null,0,0,null,null,null,null,null,null,null,false]
[null,null,null,null,null,null,null,{"$error":"#N/A"},null,null,null,null,null,null,null,null,null,null,null,null,null,0,0,null,null,null,null,null,null,null,false]
[null,null,null,null,null,null,null,{"$error":"#N/A"},null,null,null,null,null,null,null,null,null,null,null,null,null,0,0,null,null,null,null,null,null,null,false]
[null,null,null,null,null,null,null,{"$error":"#N/A"},null,null,null,null,null,null,null,null,null,null,null,null,null,0,0,null,null,null,null,null,null,null,false]
[null,null,null,null,null,null,null,{"$error":"#N/A"},null,null,null,null,null,null,null,null,null,null,null,null,null,0,0,null,null,null,null,null,null,null,false]
[null,null,null,null,null,null,null,{"$error":"#N/A"},null,null,null,null,null,null,null,null,null,null,null,null,null,0,0,null,null,null,null,null,null,null,false]
[null,null,null,null,null,null,null,{"$error":"#N/A"},null,null,null,null,null,null,null,null,null,null,null,null,null,0,0,null,null,null,null,null,null,null,false]
[null,null,null,null,null,null,null,{"$error":"#N/A"},null,null,null,null,null,null,null,null,null,null,null,null,null,0,0,null,null,null,null,null,null,null,false]
[null,null,null,null,null,null,null,{"$error":"#N/A"},null,null,null,null,null,null,null,null,null,null,null,null,null,0,0,null,null,null,null,null,null,null,false]
[null,null,null,null,null,null,null,{"$error":"#N/A"},null,null,null,null,null,null,null,null,null,null,null,null,null,0,0,null,null,null,null,null,null,null,false]
[null,null,null,null,null,null,null,{"$error":"#N/A"},null,null,null,null,null,null,null,null,null,null,null,null,null,0,0,null,null,null,null,null,null,null,false]
[null,null,null,null,null,null,null,{"$error":"#N/A"},null,null,null,null,null,null,null,null,null,null,null,null,null,0,0,null,null,null,null,null,null,null,false]
[null,null,null,null,null,null,null,{"$error":"#N/A"},null,null,null,null,null,null,null,null,null,null,null,null,null,0,0,null,null,null,null,null,null,null,false]
[null,null,null,null,null,null,null,{"$error":"#N/A"},null,null,null,null,null,null,null,null,null,null,null,null,null,0,0,null,null,null,null,null,null,null,false]
[null,null,null,null,null,null,null,{"$error":"#N/A"},null,null,null,null,null,null,null,null,null,null,null,null,null,0,0,null,null,null,null,null,null,null,false]
[null,null,null,null,null,null,null,{"$error":"#N/A"},null,null,null,null,null,null,null,null,null,null,null,null,null,0,0,null,null,null,null,null,null,null,false]
[null,null,null,null,null,null,null,{"$error":"#N/A"},null,null,null,null,null,null,null,null,null,null,null,null,null,0,0,null,null,null,null,null,null,null,{"$f":"IF(Y141=\"si\",IF(Z141=\"si\",IF(AA141=\"si\",IF(AB141=\"si\",IF(AC141=\"si\",IF(AD141=\"si\",W141,0))))))","v":false}]
[null,null,null,null,null,null,null,{"$error":"#N/A"},null,null,null,null,null,null,null,null,null,null,null,null,null,0,0,null,null,null,null,null,null,null,false]
[null,null,null,null,null,null,null,{"$error":"#N/A"},null,null,null,null,null,null,null,null,null,null,null,null,null,0,0,null,null,null,null,null,null,null,false]
[null,null,null,null,null,null,null,{"$error":"#N/A"},null,null,null,null,null,null,null,null,null,null,null,null,null,0,0,null,null,null,null,null,null,null,false]
[null,null,null,null,null,null,null,{"$error":"#N/A"},null,null,null,null,null,null,null,null,null,null,null,null,null,0,0,null,null,null,null,null,null,null,false]
[null,null,null,null,null,null,null,{"$error":"#N/A"},null,null,null,null,null,null,null,null,null,null,null,null,null,0,0,null,null,null,null,null,null,null,false]
[null,null,null,null,null,null,null,{"$error":"#N/A"},null,null,null,null,null,null,null,null,null,null,null,null,null,0,0,null,null,null,null,null,null,null,false]
[null,null,null,null,null,null,null,{"$error":"#N/A"},null,null,null,null,null,null,null,null,null,null,null,null,null,0,0,null,null,null,null,null,null,null,false]
[null,null,null,null,null,null,null,{"$error":"#N/A"},null,null,null,null,null,null,null,null,null,null,null,null,null,0,0,null,null,null,null,null,null,null,false]
[null,null,null,null,null,null,null,{"$error":"#N/A"},null,null,null,null,null,null,null,null,null,null,null,null,null,{"$f":"R150*T150","v":0},{"$f":"IF(U150=\"no\",(R150+S150+V150),R150+S150)","v":0},null,null,null,null,null,null,null,false]
[null,null,null,null,null,null,null,{"$error":"#N/A"},null,null,null,null,null,null,null,null,null,null,null,null,null,0,0,null,null,null,null,null,null,null,false]
[null,null,null,null,null,null,null,{"$error":"#N/A"},null,null,null,null,null,null,null,null,null,null,null,null,null,0,0,null,null,null,null,null,null,null,false]
[null,null,null,null,null,null,null,{"$error":"#N/A"},null,null,null,null,null,null,null,null,null,null,null,null,null,0,0,null,null,null,null,null,null,null,false]
[null,null,null,null,null,null,null,{"$error":"#N/A"},null,null,null,null,null,null,null,null,null,null,null,null,null,0,0,null,null,null,null,null,null,null,false]
[null,null,null,null,null,null,null,{"$error":"#N/A"},null,null,null,null,null,null,null,null,null,null,null,null,null,0,0,null,null,null,null,null,null,null,false]
[null,null,null,null,null,null,null,{"$error":"#N/A"},null,null,null,null,null,null,null,null,null,null,null,null,null,0,0,null,null,null,null,null,null,null,false]
[null,null,null,null,null,null,null,{"$f":"VLOOKUP(G157,G$691:H$948,2)","v":{"$error":"#N/A"}},null,null,null,null,null,null,null,null,null,null,null,null,null,0,0,null,null,null,null,null,null,null,false]
[null,null,null,null,null,null,null,{"$error":"#N/A"},null,null,null,null,null,null,null,null,null,null,null,null,null,0,0,null,null,null,null,null,null,null,false]
[null,null,null,null,null,null,null,{"$error":"#N/A"},null,null,null,null,null,null,null,null,null,null,null,null,null,0,0,null,null,null,null,null,null,null,false]
[null,null,null,null,null,null,null,{"$error":"#N/A"},null,null,null,null,null,null,null,null,null,null,null,null,null,0,0,null,null,null,null,null,null,null,false]
[null,null,null,null,null,null,null,{"$error":"#N/A"},null,null,null,null,null,null,null,null,null,null,null,null,null,0,0,null,null,null,null,null,null,null,false]
[null,null,null,null,null,null,null,{"$error":"#N/A"},null,null,null,null,null,null,null,null,null,null,null,null,null,0,0,null,null,null,null,null,null,null,false]
[null,null,null,null,null,null,null,{"$error":"#N/A"},null,null,null,null,null,null,null,null,null,null,null,null,null,0,0,null,null,null,null,null,null,null,false]
[null,null,null,null,null,null,null,{"$error":"#N/A"},null,null,null,null,null,null,null,null,null,null,null,null,null,0,0,null,null,null,null,null,null,null,false]
[null,null,null,null,null,null,null,{"$error":"#N/A"},null,null,null,null,null,null,null,null,null,null,null,null,null,0,0,null,null,null,null,null,null,null,false]
[null,null,null,null,null,null,null,{"$error":"#N/A"},null,null,null,null,null,null,null,null,null,null,null,null,null,0,0,null,null,null,null,null,null,null,false]
[null,null,null,null,null,null,null,{"$error":"#N/A"},null,null,null,null,null,null,null,null,null,null,null,null,null,0,0,null,null,null,null,null,null,null,false]
[null,null,null,null,null,null,null,{"$error":"#N/A"},null,null,null,null,null,null,null,null,null,null,null,null,null,0,0,null,null,null,null,null,null,null,false]
[null,null,null,null,null,null,null,{"$error":"#N/A"},null,null,null,null,null,null,null,null,null,null,null,null,null,0,0,null,null,null,null,null,null,null,false]
[null,null,null,null,null,null,null,{"$error":"#N/A"},null,null,null,null,null,null,null,null,null,null,null,null,null,0,0,null,null,null,null,null,null,null,false]
[null,null,null,null,null,null,null,{"$error":"#N/A"},null,null,null,null,null,null,null,null,null,null,null,null,null,0,0,null,null,null,null,null,null,null,false]
[null,null,null,null,null,null,null,{"$error":"#N/A"},null,null,null,null,null,null,null,null,null,null,null,null,null,0,0,null,null,null,null,null,null,null,false]
[null,null,null,null,null,null,null,{"$error":"#N/A"},null,null,null,null,null,null,null,null,null,null,null,null,null,0,0,null,null,null,null,null,null,null,false]
[null,null,null,null,null,null,null,{"$error":"#N/A"},null,null,null,null,null,null,null,null,null,null,null,null,null,0,0,null,null,null,null,null,null,null,false]
[null,null,null,null,null,null,null,{"$error":"#N/A"},null,null,null,null,null,null,null,null,null,null,null,null,null,0,0,null,null,null,null,null,null,null,false]
[null,null,null,null,null,null,null,{"$error":"#N/A"},null,null,null,null,null,null,null,null,null,null,null,null,null,0,0,null,null,null,null,null,null,null,false]
[null,null,null,null,null,null,null,{"$error":"#N/A"},null,null,null,null,null,null,null,null,null,null,null,null,null,0,0,null,null,null,null,null,null,null,false]
[null,null,null,null,null,null,null,{"$error":"#N/A"},null,null,null,null,null,null,null,null,null,null,null,null,null,0,0,null,null,null,null,null,null,null,false]
[null,null,null,null,null,null,null,{"$error":"#N/A"},null,null,null,null,null,null,null,null,null,null,null,null,null,0,0,null,null,null,null,null,null,null,false]
[null,null,null,null,null,null,null,{"$error":"#N/A"},null,null,null,null,null,null,null,null,null,null,null,null,null,0,0,null,null,null,null,null,null,null,false]
[null,null,null,null,null,null,null,{"$error":"#N/A"},null,null,null,null,null,null,null,null,null,null,null,null,null,0,0,null,null,null,null,null,null,null,false]
[null,null,null,null,null,null,null,{"$error":"#N/A"},null,null,null,null,null,null,null,null,null,null,null,null,null,0,0,null,null,null,null,null,null,null,false]
[null,null,null,null,null,null,null,{"$error":"#N/A"},null,null,null,null,null,null,null,null,null,null,null,null,null,0,0,null,null,null,null,null,null,null,false]
[null,null,null,null,null,null,null,{"$error":"#N/A"},null,null,null,null,null,null,null,null,null,null,null,null,null,0,0,null,null,null,null,null,null,null,false]
[null,null,null,null,null,null,null,{"$error":"#N/A"},null,null,null,null,null,null,null,null,null,null,null,null,null,0,0,null,null,null,null,null,null,null,false]
[null,null,null,null,null,null,null,{"$error":"#N/A"},null,null,null,null,null,null,null,null,null,null,null,null,null,0,0,null,null,null,null,null,null,null,false]
[null,null,null,null,null,null,null,{"$error":"#N/A"},null,null,null,null,null,null,null,null,null,null,null,null,null,0,0,null,null,null,null,null,null,null,false]
[null,null,null,null,null,null,null,{"$error":"#N/A"},null,null,null,null,null,null,null,null,null,null,null,null,null,0,0,null,null,null,null,null,null,null,false]
[null,null,null,null,null,null,null,{"$error":"#N/A"},null,null,null,null,null,null,null,null,null,null,null,null,null,0,0,null,null,null,null,null,null,null,false]
[null,null,null,null,null,null,null,{"$error":"#N/A"},null,null,null,null,null,null,null,null,null,null,null,null,null,0,0,null,null,null,null,null,null,null,false]
[null,null,null,null,null,null,null,{"$error":"#N/A"},null,null,null,null,null,null,null,null,null,null,null,null,null,0,0,null,null,null,null,null,null,null,false]
[null,null,null,null,null,null,null,{"$error":"#N/A"},null,null,null,null,null,null,null,null,null,null,null,null,null,0,0,null,null,null,null,null,null,null,false]
[null,null,null,null,null,null,null,{"$error":"#N/A"},null,null,null,null,null,null,null,null,null,null,null,null,null,0,0,null,null,null,null,null,null,null,false]
[null,null,null,null,null,null,null,{"$error":"#N/A"},null,null,null,null,null,null,null,null,null,null,null,null,null,0,0,null,null,null,null,null,null,null,false]
[null,null,null,null,null,null,null,{"$error":"#N/A"},null,null,null,null,null,null,null,null,null,null,null,null,null,0,0,null,null,null,null,null,null,null,false]
[null,null,null,null,null,null,null,{"$error":"#N/A"},null,null,null,null,null,null,null,null,null,null,null,null,null,0,0,null,null,null,null,null,null,null,false]
[null,null,null,null,null,null,null,{"$error":"#N/A"},null,null,null,null,null,null,null,null,null,null,null,null,null,0,0,null,null,null,null,null,null,null,false]
[null,null,null,null,null,null,null,{"$error":"#N/A"},null,null,null,null,null,null,null,null,null,null,null,null,null,0,0,null,null,null,null,null,null,null,false]
[null,null,null,null,null,null,null,{"$error":"#N/A"},null,null,null,null,null,null,null,null,null,null,null,null,null,0,0,null,null,null,null,null,null,null,false]
[null,null,null,null,null,null,null,{"$error":"#N/A"},null,null,null,null,null,null,null,null,null,null,null,null,null,0,0,null,null,null,null,null,null,null,false]
[null,null,null,null,null,null,null,{"$error":"#N/A"},null,null,null,null,null,null,null,null,null,null,null,null,null,0,0,null,null,null,null,null,null,null,false]
[null,null,null,null,null,null,null,{"$error":"#N/A"},null,null,null,null,null,null,null,null,null,null,null,null,null,0,0,null,null,null,null,null,null,null,false]
[null,null,null,null,null,null,null,{"$error":"#N/A"},null,null,null,null,null,null,null,null,null,null,null,null,null,0,0,null,null,null,null,null,null,null,false]
[null,null,null,null,null,null,null,{"$error":"#N/A"},null,null,null,null,null,null,null,null,null,null,null,null,null,0,0,null,null,null,null,null,null,null,false]
[null,null,null,null,null,null,null,{"$error":"#N/A"},null,null,null,null,null,null,null,null,null,null,null,null,null,0,0,null,null,null,null,null,null,null,{"$f":"IF(Y205=\"si\",IF(Z205=\"si\",IF(AA205=\"si\",IF(AB205=\"si\",IF(AC205=\"si\",IF(AD205=\"si\",W205,0))))))","v":false}]
[null,null,null,null,null,null,null,{"$error":"#N/A"},null,null,null,null,null,null,null,null,null,null,null,null,null,0,0,null,null,null,null,null,null,null,false]
[null,null,null,null,null,null,null,{"$error":"#N/A"},null,null,null,null,null,null,null,null,null,null,null,null,null,0,0,null,null,null,null,null,null,null,false]
[null,null,null,null,null,null,null,{"$error":"#N/A"},null,null,null,null,null,null,null,null,null,null,null,null,null,0,0,null,null,null,null,null,null,null,false]
[null,null,null,null,null,null,null,{"$error":"#N/A"},null,null,null,null,null,null,null,null,null,null,null,null,null,0,0,null,null,null,null,null,null,null,false]
[null,null,null,null,null,null,null,{"$error":"#N/A"},null,null,null,null,null,null,null,null,null,null,null,null,null,0,0,null,null,null,null,null,null,null,false]
[null,null,null,null,null,null,null,{"$error":"#N/A"},null,null,null,null,null,null,null,null,null,null,null,null,null,0,0,null,null,null,null,null,null,null,false]
[null,null,null,null,null,null,null,{"$error":"#N/A"},null,null,null,null,null,null,null,null,null,null,null,null,null,0,0,null,null,null,null,null,null,null,false]
[null,null,null,null,null,null,null,{"$error":"#N/A"},null,null,null,null,null,null,null,null,null,null,null,null,null,0,0,null,null,null,null,null,null,null,false]
[null,null,null,null,null,null,null,{"$error":"#N/A"},null,null,null,null,null,null,null,null,null,null,null,null,null,0,0,null,null,null,null,null,null,null,false]
[null,null,null,null,null,null,null,{"$error":"#N/A"},null,null,null,null,null,null,null,null,null,null,null,null,null,0,0,null,null,null,null,null,null,null,false]
[null,null,null,null,null,null,null,{"$error":"#N/A"},null,null,null,null,null,null,null,null,null,null,null,null,null,0,0,null,null,null,null,null,null,null,false]
[null,null,null,null,null,null,null,{"$error":"#N/A"},null,null,null,null,null,null,null,null,null,null,null,null,null,0,0,null,null,null,null,null,null,null,false]
[null,null,null,null,null,null,null,{"$error":"#N/A"},null,null,null,null,null,null,null,null,null,null,null,null,null,0,0,null,null,null,null,null,null,null,false]
[null,null,null,null,null,null,null,{"$error":"#N/A"},null,null,null,null,null,null,null,null,null,null,null,null,null,0,0,null,null,null,null,null,null,null,false]
[null,null,null,null,null,null,null,{"$error":"#N/A"},null,null,null,null,null,null,null,null,null,null,null,null,null,0,0,null,null,null,null,null,null,null,false]
[null,null,null,null,null,null,null,{"$error":"#N/A"},null,null,null,null,null,null,null,null,null,null,null,null,null,0,0,null,null,null,null,null,null,null,false]
[null,null,null,null,null,null,null,{"$error":"#N/A"},null,null,null,null,null,null,null,null,null,null,null,null,null,0,0,null,null,null,null,null,null,null,false]
[null,null,null,null,null,null,null,{"$error":"#N/A"},null,null,null,null,null,null,null,null,null,null,null,null,null,0,0,null,null,null,null,null,null,null,false]
[null,null,null,null,null,null,null,{"$error":"#N/A"},null,null,null,null,null,null,null,null,null,null,null,null,null,0,0,null,null,null,null,null,null,null,false]
[null,null,null,null,null,null,null,{"$error":"#N/A"},null,null,null,null,null,null,null,null,null,null,null,null,null,0,0,null,null,null,null,null,null,null,false]
[null,null,null,null,null,null,null,{"$error":"#N/A"},null,null,null,null,null,null,null,null,null,null,null,null,null,0,0,null,null,null,null,null,null,null,false]
[null,null,null,null,null,null,null,{"$error":"#N/A"},null,null,null,null,null,null,null,null,null,null,null,null,null,0,0,null,null,null,null,null,null,null,false]
[null,null,null,null,null,null,null,{"$error":"#N/A"},null,null,null,null,null,null,null,null,null,null,null,null,null,0,0,null,null,null,null,null,null,null,false]
[null,null,null,null,null,null,null,{"$error":"#N/A"},null,null,null,null,null,null,null,null,null,null,null,null,null,0,0,null,null,null,null,null,null,null,false]
[null,null,null,null,null,null,null,{"$error":"#N/A"},null,null,null,null,null,null,null,null,null,null,null,null,null,0,0,null,null,null,null,null,null,null,false]
[null,null,null,null,null,null,null,{"$error":"#N/A"},null,null,null,null,null,null,null,null,null,null,null,null,null,0,0,null,null,null,null,null,null,null,false]
[null,null,null,null,null,null,null,{"$error":"#N/A"},null,null,null,null,null,null,null,null,null,null,null,null,null,0,0,null,null,null,null,null,null,null,false]
[null,null,null,null,null,null,null,{"$error":"#N/A"},null,null,null,null,null,null,null,null,null,null,null,null,null,0,0,null,null,null,null,null,null,null,false]
[null,null,null,null,null,null,null,{"$error":"#N/A"},null,null,null,null,null,null,null,null,null,null,null,null,null,0,0,null,null,null,null,null,null,null,false]
[null,null,null,null,null,null,null,{"$error":"#N/A"},null,null,null,null,null,null,null,null,null,null,null,null,null,0,0,null,null,null,null,null,null,null,false]
[null,null,null,null,null,null,null,{"$error":"#N/A"},null,null,null,null,null,null,null,null,null,null,null,null,null,0,0,null,null,null,null,null,null,null,false]
[null,null,null,null,null,null,null,{"$error":"#N/A"},null,null,null,null,null,null,null,null,null,null,null,null,null,0,0,null,null,null,null,null,null,null,false]
[null,null,null,null,null,null,null,{"$error":"#N/A"},null,null,null,null,null,null,null,null,null,null,null,null,null,{"$f":"R238*T238","v":0},{"$f":"IF(U238=\"no\",(R238+S238+V238),R238+S238)","v":0},null,null,null,null,null,null,null,false]
[null,null,null,null,null,null,null,{"$error":"#N/A"},null,null,null,null,null,null,null,null,null,null,null,null,null,0,0,null,null,null,null,null,null,null,false]
[null,null,null,null,null,null,null,{"$error":"#N/A"},null,null,null,null,null,null,null,null,null,null,null,null,null,0,0,null,null,null,null,null,null,null,false]
[null,null,null,null,null,null,null,{"$error":"#N/A"},null,null,null,null,null,null,null,null,null,null,null,null,null,0,0,null,null,null,null,null,null,null,false]
[null,null,null,null,null,null,null,{"$error":"#N/A"},null,null,null,null,null,null,null,null,null,null,null,null,null,0,0,null,null,null,null,null,null,null,false]
[null,null,null,null,null,null,null,{"$error":"#N/A"},null,null,null,null,null,null,null,null,null,null,null,null,null,0,0,null,null,null,null,null,null,null,false]
[null,null,null,null,null,null,null,{"$error":"#N/A"},null,null,null,null,null,null,null,null,null,null,null,null,null,0,0,null,null,null,null,null,null,null,false]
[null,null,null,null,null,null,null,{"$f":"VLOOKUP(G245,G$691:H$948,2)","v":{"$error":"#N/A"}},null,null,null,null,null,null,null,null,null,null,null,null,null,{"$f":"R245*T245","v":0},0,null,null,null,null,null,null,null,false]
[null,null,null,null,null,null,null,{"$error":"#N/A"},null,null,null,null,null,null,null,null,null,null,null,null,null,0,0,null,null,null,null,null,null,null,false]
[null,null,null,null,null,null,null,{"$error":"#N/A"},null,null,null,null,null,null,null,null,null,null,null,null,null,0,0,null,null,null,null,null,null,null,false]
[null,null,null,null,null,null,null,{"$error":"#N/A"},null,null,null,null,null,null,null,null,null,null,null,null,null,0,0,null,null,null,null,null,null,null,false]
[null,null,null,null,null,null,null,{"$error":"#N/A"},null,null,null,null,null,null,null,null,null,null,null,null,null,0,{"$f":"IF(U249=\"no\",(R249+S249+V249),R249+S249)","v":0},null,null,null,null,null,null,null,false]
[null,null,null,null,null,null,null,{"$error":"#N/A"},null,null,null,null,null,null,null,null,null,null,null,null,null,0,0,null,null,null,null,null,null,null,false]
[null,null,null,null,null,null,null,{"$error":"#N/A"},null,null,null,null,null,null,null,null,null,null,null,null,null,0,0,null,null,null,null,null,null,null,false]
[null,null,null,null,null,null,null,{"$error":"#N/A"},null,null,null,null,null,null,null,null,null,null,null,null,null,{"$f":"R252*T252","v":0},{"$f":"IF(U252=\"no\",(R252+S252+V252),R252+S252)","v":0},null,null,null,null,null,null,null,{"$f":"IF(Y252=\"si\",IF(Z252=\"si\",IF(AA252=\"si\",IF(AB252=\"si\",IF(AC252=\"si\",IF(AD252=\"si\",W252,0))))))","v":false}]
[]
[]
[]
[]
[]
[]
[null,null,null,null,null,null,"Luogo e data",null,"\n__________________________________\nFirma digitale / timbro e firma del legale rappresentante / del soggetto munito dei poteri di mandato e di firma (allegare sempre copia fotostatica del documento di identità del sottoscrittore, tranne caso firma digitale)"]
[]
[null,null,null,null,null,null,"______________________________"]
[]
[]
[]
[null,null,null,null,null,null,"______________________________"]
[]
[]
[]
[]
[]
[]
[]
[]
[]
[]
[]
[]
[]
[]
[]
[]
[]
[]
[]
[]
[]
[]
[]
[]
[]
[]
[]
[]
[]
[]
[]
[]
[]
[]
[]
[]
[]
[]
[]
[]
[]
[]
[]
[]
[]
[]
[]
[]
[]
[]
[]
[]
[]
[]
[]
[]
[]
[]
[]
[]
[]
[]
[]
[]
[]
[]
[]
[]
[]
[]
[]
[]
[]
[]
[]
[]
[]
[]
[]
[]
[]
[]
[]
[]
[]
[]
[]
[]
[]
[]
[]
[]
[]
[]
[]
[]
[]
[]
[]
[]
[]
[]
[]
[]
[]
[]
[]
[]
[]
[]
[]
[]
[]
[]
[]
[]
[]
[]
[]
[]
[]
[]
[]
[]
[]
[]
[]
[]
[]
[]
[]
[]
[]
[]
[]
[]
[]
[]
[]
[]
[]
[]
[]
[]
[]
[]
[]
[]
[]
[]
[]
[]
[]
[]
[]
[]
[]
[]
[]
[]
[]
[]
[]
[]
[]
[]
[]
[]
[]
[]
[]
[]
[]
[]
[]
[]
[]
[]
[]
[]
[]
[]
[]
[]
[]
[]
[]
[]
[]
[]
[]
[]
[]
[]
[]
[]
[]
[]
[]
[]
[]
[]
[]
[]
[]
[]
[]
[]
[]
[]
[]
[]
[]
[]
[]
[]
[]
[]
[]
[]
[]
[]
[]
[]
[]
[]
[]
[]
[]
[]
[]
[]
[]
[]
[]
[]
[]
[]
[]
[]
[]
[]
[]
[]
[]
[]
[]
[]
[]
[]
[]
[]
[]
[]
[]
[]
[]
[]
[]
[]
[]
[]
[]
[]
[]
[]
[]
[]
[]
[]
[]
[]
[]
[]
[]
[]
[]
[]
[]
[]
[]
[]
[]
[]
[]
[]
[]
[]
[]
[]
[]
[]
[]
[]
[]
[]
[]
[]
[]
[]
[]
[]
[]
[]
[]
[]
[]
[]
[]
[]
[]
[]
[]
[]
[]
[]
[]
[]
[]
[]
[]
[]
[]
[]
[]
[]
[]
[]
[]
[]
[]
[]
[]
[]
[]
[]
[]
[]
[]
[]
[]
[]
[]
[]
[]
[]
[]
[]
[]
[]
[]
[]
[]
[]
[]
[]
[]
[]
[]
[]
[]
[]
[]
[]
[]
[]
[]
[]
[]
[]
[]
[]
[]
[]
[]
[]
[]
[]
[]
[]
[]
[]
[]
[]
[]
[]
[]
[]
[]
[]
[]
[]
[]
[]
[]
[]
[]
[]
[]
[]
[]
[]
[]
[]
[]
[]
[]
[]
[]
[]
[]
[]
[]
[]
[]
[]
[]
[]
[]
[]
[]
[]
[]
[]
[null,"Codici Costo del Personale","Soggetto assuntore del costo",null,"REGIONI",null,"Comune","PROV","REGIONE","Contratto","Tipologia prestazione","Tipo documento",null,null,"Liquidazione",null,null,null,null,null,"IVA",null,null,"IVA",null,null,null,null,null,null,null,null,"A Rendiconto per Residenza"]
[null,"E1 - PROVENTI DA CONTIBUTI PUBBLICI","CAPOFILA",null,"Abruzzo",null,"ACCADIA","FG","Puglia","Contratto","tempo indeterminato","Busta paga",null,null,"Bonifico",null,null,null,null,null,"Si",null,null,"Si",null,null,null,null,null,null,null,null,"si"]
[null,"E11 - Unione Europea","PARTNER 1",null,"Basilicata",null,"ACQUARICA DEL CAPO","LE","Puglia","Lettera di incarico","tempo determinato/scrittura","Fattura",null,null,"Assegno",null,null,null,null,null,"No",null,null,"No",null,null,null,null,null,null,null,null,"no"]
[null,"E12 - Stato","PARTNER 2",null,"Calabria",null,"ACQUAVIVA DELLE FONTI","BA","Puglia","Preventivo","occasionale-fino a 30 giorni","Ricevuta",null,null,"Carta di credito",null,null,null,null,null,"Forfettario",null,null,"Forfettario"]
[null,"E13 - Regione","PARTNER 3",null,"Campania",null,"ADELFIA","BA","Puglia","Internet","contratto a progetto","Nota spese",null,null,"Contante"]
[null,"E14 - Comuni","PARTNER 4",null,"Emilia-Romagna",null,"ALBEROBELLO","BA","Puglia",null,"professionale","Altro"]
[null,"E15 - Altri soggetti pubblici","AFFILIATI",null,"Friuli-Venezia Giulia",null,"ALBERONA","FG","Puglia",null,"altro"]
[null,"E2 - PROVENTI DA CONTRIBUTI PRIVATI",null,null,"Lazio",null,"ALESSANO","LE","Puglia"]
[null,"E21 - Fondazioni e Istituzioni Bancarie",null,null,"Liguria",null,"ALEZIO","LE","Puglia"]
[null,"E22 - Aziende",null,null,"Lombardia",null,"ALLISTE","LE","Puglia"]
[null,"E23 - Altri enti non commerciali",null,null,"Marche",null,"ALTAMURA","BA","Puglia"]
[null,"E24 - Persone fisiche",null,null,"Molise",null,"ANDRANO","LE","Puglia"]
[null,"E25 - Sponsorizzazioni finanziarie",null,null,"Piemonte",null,"ANDRIA","BT","Puglia"]
[null,"E26 - Altro",null,null,"Sardegna",null,"ANZANO DI PUGLIA","FG","Puglia"]
[null,"E3 - APPORTI IN NATURA",null,null,"Sicilia",null,"APRICENA","FG","Puglia"]
[null,"E31 - Valore apporti in natura Capofila e Partner",null,null,"Toscana",null,"ARADEO","LE","Puglia"]
[null,"E32 - Valore apporti in natura Affiliati",null,null,"Trentino-Alto Adige",null,"ARNESANO","LE","Puglia"]
[null,"E4 - RICAVI DA VENDITE E DA PRESTAZIONI",null,null,"Umbria",null,"ASCOLI SATRIANO","FG","Puglia"]
[null,"E42 - Entrate da Biglietteria",null,null,"Valle d'Aosta",null,"AVETRANA","TA","Puglia"]
[null,"E45 - Entrate derivanti da compensi per attività",null,null,"Veneto",null,"BAGNOLO DEL SALENTO","LE","Puglia"]
[null,"E46 - Altri proventi da vendite e prestazioni",null,null,null,null,"BARI","BA","Puglia"]
[null,"E5 - ALTRE ENTRATE",null,null,null,null,"BARLETTA","BT","Puglia"]
[null,"E51 - Quote associative, offerte, erogazioni e liberalità",null,null,null,null,"BICCARI","FG","Puglia"]
[null,"E52 - Altro",null,null,null,null,"BINETTO","BA","Puglia"]
[null,"U3 - COSTI DI OSPITALITA'",null,null,null,null,"BISCEGLIE","BT","Puglia"]
[null,"U31 - Compensi a ospiti italiani o esteri",null,null,null,null,"BITETTO","BA","Puglia"]
[null,"U32 - Costi di viaggi, trasporti, alloggio, vitto, ecc., degli organismi ospitati",null,null,null,null,"BITONTO","BA","Puglia"]
[null,"U33 - Noleggio per scenografie, costumi, strumenti, ecc.",null,null,null,null,"BITRITTO","BA","Puglia"]
[null,"U34 - Acquisti strumentazione tecnica luce e suono",null,null,null,null,"BOTRUGNO","LE","Puglia"]
[null,"U35 - Noleggi strumentazione tecnica luce e suono",null,null,null,null,"BOVINO","FG","Puglia"]
[null,"U36 - Prestazioni di terzi per allestimenti",null,null,null,null,"BRINDISI","BR","Puglia"]
[null,"U37 - SIAE",null,null,null,null,"CAGNANO VARANO","FG","Puglia"]
[null,"U38 - Vigili del fuoco",null,null,null,null,"CALIMERA","LE","Puglia"]
[null,"U39 - Altri costi di ospitalità",null,null,null,null,"CAMPI SALENTINA","LE","Puglia"]
[null,"U4 - COSTI DI ATTIVITA'",null,null,null,null,"CANDELA","FG","Puglia"]
[null,"U40 - Costi di viaggi, trasporti, alloggio,",null,null,null,null,"CANNOLE","LE","Puglia"]
[null,"U41 - Acquisti strumentazione tecnica luce e suono",null,null,null,null,"CANOSA DI PUGLIA","BT","Puglia"]
[null,"U42 - Noleggi strumentazione tecnica luce e suono",null,null,null,null,"CAPRARICA DI LECCE","LE","Puglia"]
[null,"U43 - Prestazioni di terzi per allestimenti ",null,null,null,null,"CAPURSO","BA","Puglia"]
[null,"U44 - Trasporto e oneri assicurativi per opere",null,null,null,null,"CARAPELLE","FG","Puglia"]
[null,"U45 - Spese di pubblicazione di atti o cataloghi",null,null,null,null,"CARLANTINO","FG","Puglia"]
[null,"U46 - Premi e Borse di studi",null,null,null,null,"CARMIANO","LE","Puglia"]
[null,"U47 - SIAE",null,null,null,null,"CAROSINO","TA","Puglia"]
[null,"U48 - Vigili del fuoco",null,null,null,null,"CAROVIGNO","BR","Puglia"]
[null,"U49 - Altri costi di attività",null,null,null,null,"CARPIGNANO SALENTINO","LE","Puglia"]
[null,"U5 - PUBBLICITA' E PROMOZIONE",null,null,null,null,"CARPINO","FG","Puglia"]
[null,"U51 - Servizi di ufficio stampa",null,null,null,null,"CASALNUOVO MONTEROTARO","FG","Puglia"]
[null,"U52 - Costi per stampe, distribuzione e affissione",null,null,null,null,"CASALVECCHIO DI PUGLIA","FG","Puglia"]
[null,"U53 - Costi per prestazioni professionali",null,null,null,null,"CASAMASSIMA","BA","Puglia"]
[null,"U54 - Costi per pubblicità",null,null,null,null,"CASARANO","LE","Puglia"]
[null,"U55 - Costi per gestione e manutenzione sito web",null,null,null,null,"CASSANO DELLE MURGE","BA","Puglia"]
[null,"U56 - Altri costi pubblicità e promozione",null,null,null,null,"CASTELLANA GROTTE","BA","Puglia"]
[null,"U6 - COSTI DI GESTIONE SPAZI",null,null,null,null,"CASTELLANETA","TA","Puglia"]
[null,"U61 - Affitto spazi per realizzazione attività",null,null,null,null,"CASTELLUCCIO DEI SAURI","FG","Puglia"]
[null,"U62 - Costi di manutenzione ordinaria spazi per attività",null,null,null,null,"CASTELLUCCIO VALMAGGIORE","FG","Puglia"]
[null,"U63 - Utenze",null,null,null,null,"CASTELNUOVO DELLA DAUNIA","FG","Puglia"]
[null,"U64 - Pulizie",null,null,null,null,"CASTRI DI LECCE","LE","Puglia"]
[null,"U65 - Altri costi di gestione spazi",null,null,null,null,"CASTRIGNANO DE' GRECI","LE","Puglia"]
[null,"U7 - COSTI GENERALI",null,null,null,null,"CASTRIGNANO DEL CAPO","LE","Puglia"]
[null,"U71 - Materiale di consumo",null,null,null,null,"CASTRO","LE","Puglia"]
[null,"U72 - Affitto uffici",null,null,null,null,"CAVALLINO","LE","Puglia"]
[null,"U73 - Altre prestazioni professionali per consulenze",null,null,null,null,"CEGLIE MESSAPICA","BR","Puglia"]
[null,"U74 - Utenze",null,null,null,null,"CELENZA VALFORTORE","FG","Puglia"]
[null,"U75 - Pulizie",null,null,null,null,"CELLAMARE","BA","Puglia"]
[null,"U76 - Altri costi generali",null,null,null,null,"CELLE DI SAN VITO","FG","Puglia"]
[null,"U8 - COSTI IN NATURA",null,null,null,null,"CELLINO SAN MARCO","BR","Puglia"]
[null,"U81 - Valore apporti in natura Capofila e Partner",null,null,null,null,"CERIGNOLA","FG","Puglia"]
[null,"U82 - Valore apporti in natura Affiliati",null,null,null,null,"CHIEUTI","FG","Puglia"]
[null,"IVA",null,null,null,null,"CISTERNINO","BR","Puglia"]
[null,null,null,null,null,null,"COLLEPASSO","LE","Puglia"]
[null,null,null,null,null,null,"CONVERSANO","BA","Puglia"]
[null,null,null,null,null,null,"COPERTINO","LE","Puglia"]
[null,null,null,null,null,null,"CORATO","BA","Puglia"]
[null,null,null,null,null,null,"CORIGLIANO D'OTRANTO","LE","Puglia"]
[null,null,null,null,null,null,"CORSANO","LE","Puglia"]
[null,null,null,null,null,null,"CRISPIANO","TA","Puglia"]
[null,null,null,null,null,null,"CURSI","LE","Puglia"]
[null,null,null,null,null,null,"CUTROFIANO","LE","Puglia"]
[null,null,null,null,null,null,"DELICETO","FG","Puglia"]
[null,null,null,null,null,null,"DISO","LE","Puglia"]
[null,null,null,null,null,null,"ERCHIE","BR","Puglia"]
[null,null,null,null,null,null,"FAETO","FG","Puglia"]
[null,null,null,null,null,null,"FAGGIANO","TA","Puglia"]
[null,null,null,null,null,null,"FASANO","BR","Puglia"]
[null,null,null,null,null,null,"FOGGIA","FG","Puglia"]
[null,null,null,null,null,null,"FRAGAGNANO","TA","Puglia"]
[null,null,null,null,null,null,"FRANCAVILLA FONTANA","BR","Puglia"]
[null,null,null,null,null,null,"GAGLIANO DEL CAPO","LE","Puglia"]
[null,null,null,null,null,null,"GALATINA","LE","Puglia"]
[null,null,null,null,null,null,"GALATONE","LE","Puglia"]
[null,null,null,null,null,null,"GALLIPOLI","LE","Puglia"]
[null,null,null,null,null,null,"GINOSA","TA","Puglia"]
[null,null,null,null,null,null,"GIOIA DEL COLLE","BA","Puglia"]
[null,null,null,null,null,null,"GIOVINAZZO","BA","Puglia"]
[null,null,null,null,null,null,"GIUGGIANELLO","LE","Puglia"]
[null,null,null,null,null,null,"GIURDIGNANO","LE","Puglia"]
[null,null,null,null,null,null,"GRAVINA IN PUGLIA","BA","Puglia"]
[null,null,null,null,null,null,"GROTTAGLIE","TA","Puglia"]
[null,null,null,null,null,null,"GRUMO APPULA","BA","Puglia"]
[null,null,null,null,null,null,"GUAGNANO","LE","Puglia"]
[null,null,null,null,null,null,"ISCHITELLA","FG","Puglia"]
[null,null,null,null,null,null,"ISOLE TREMITI","FG","Puglia"]
[null,null,null,null,null,null,"LATERZA","TA","Puglia"]
[null,null,null,null,null,null,"LATIANO","BR","Puglia"]
[null,null,null,null,null,null,"LECCE","LE","Puglia"]
[null,null,null,null,null,null,"LEPORANO","TA","Puglia"]
[null,null,null,null,null,null,"LEQUILE","LE","Puglia"]
[null,null,null,null,null,null,"LESINA","FG","Puglia"]
[null,null,null,null,null,null,"LEVERANO","LE","Puglia"]
[null,null,null,null,null,null,"LIZZANELLO","LE","Puglia"]
[null,null,null,null,null,null,"LIZZANO","TA","Puglia"]
[null,null,null,null,null,null,"LOCOROTONDO","BA","Puglia"]
[null,null,null,null,null,null,"LUCERA","FG","Puglia"]
[null,null,null,null,null,null,"MAGLIE","LE","Puglia"]
[null,null,null,null,null,null,"MANDURIA","TA","Puglia"]
[null,null,null,null,null,null,"MANFREDONIA","FG","Puglia"]
[null,null,null,null,null,null,"MARGHERITA DI SAVOIA","BT","Puglia"]
[null,null,null,null,null,null,"MARTANO","LE","Puglia"]
[null,null,null,null,null,null,"MARTIGNANO","LE","Puglia"]
[null,null,null,null,null,null,"MARTINA FRANCA","TA","Puglia"]
[null,null,null,null,null,null,"MARUGGIO","TA","Puglia"]
[null,null,null,null,null,null,"MASSAFRA","TA","Puglia"]
[null,null,null,null,null,null,"MATINO","LE","Puglia"]
[null,null,null,null,null,null,"MATTINATA","FG","Puglia"]
[null,null,null,null,null,null,"MELENDUGNO","LE","Puglia"]
[null,null,null,null,null,null,"MELISSANO","LE","Puglia"]
[null,null,null,null,null,null,"MELPIGNANO","LE","Puglia"]
[null,null,null,null,null,null,"MESAGNE","BR","Puglia"]
[null,null,null,null,null,null,"MIGGIANO","LE","Puglia"]
[null,null,null,null,null,null,"MINERVINO DI LECCE","LE","Puglia"]
[null,null,null,null,null,null,"MINERVINO MURGE","BT","Puglia"]
[null,null,null,null,null,null,"MODUGNO","BA","Puglia"]
[null,null,null,null,null,null,"MOLA DI BARI","BA","Puglia"]
[null,null,null,null,null,null,"MOLFETTA","BA","Puglia"]
[null,null,null,null,null,null,"MONOPOLI","BA","Puglia"]
[null,null,null,null,null,null,"MONTE SANT'ANGELO","FG","Puglia"]
[null,null,null,null,null,null,"MONTEIASI","TA","Puglia"]
[null,null,null,null,null,null,"MONTELEONE DI PUGLIA","FG","Puglia"]
[null,null,null,null,null,null,"MONTEMESOLA","TA","Puglia"]
[null,null,null,null,null,null,"MONTEPARANO","TA","Puglia"]
[null,null,null,null,null,null,"MONTERONI DI LECCE","LE","Puglia"]
[null,null,null,null,null,null,"MONTESANO SALENTINO","LE","Puglia"]
[null,null,null,null,null,null,"MORCIANO DI LEUCA","LE","Puglia"]
[null,null,null,null,null,null,"MOTTA MONTECORVINO","FG","Puglia"]
[null,null,null,null,null,null,"MOTTOLA","TA","Puglia"]
[null,null,null,null,null,null,"MURO LECCESE","LE","Puglia"]
[null,null,null,null,null,null,"NARDO'","LE","Puglia"]
[null,null,null,null,null,null,"NEVIANO","LE","Puglia"]
[null,null,null,null,null,null,"NOCI","BA","Puglia"]
[null,null,null,null,null,null,"NOCIGLIA","LE","Puglia"]
[null,null,null,null,null,null,"NOICATTARO","BA","Puglia"]
[null,null,null,null,null,null,"NOVOLI","LE","Puglia"]
[null,null,null,null,null,null,"ORDONA","FG","Puglia"]
[null,null,null,null,null,null,"ORIA","BR","Puglia"]
[null,null,null,null,null,null,"ORSARA DI PUGLIA","FG","Puglia"]
[null,null,null,null,null,null,"ORTA NOVA","FG","Puglia"]
[null,null,null,null,null,null,"ORTELLE","LE","Puglia"]
[null,null,null,null,null,null,"OSTUNI","BR","Puglia"]
[null,null,null,null,null,null,"OTRANTO","LE","Puglia"]
[null,null,null,null,null,null,"PALAGIANELLO","TA","Puglia"]
[null,null,null,null,null,null,"PALAGIANO","TA","Puglia"]
[null,null,null,null,null,null,"PALMARIGGI","LE","Puglia"]
[null,null,null,null,null,null,"PALO DEL COLLE","BA","Puglia"]
[null,null,null,null,null,null,"PANNI","FG","Puglia"]
[null,null,null,null,null,null,"PARABITA","LE","Puglia"]
[null,null,null,null,null,null,"PATU'","LE","Puglia"]
[null,null,null,null,null,null,"PESCHICI","FG","Puglia"]
[null,null,null,null,null,null,"PIETRAMONTECORVINO","FG","Puglia"]
[null,null,null,null,null,null,"POGGIARDO","LE","Puglia"]
[null,null,null,null,null,null,"POGGIO IMPERIALE","FG","Puglia"]
[null,null,null,null,null,null,"POGGIORSINI","BA","Puglia"]
[null,null,null,null,null,null,"POLIGNANO A MARE","BA","Puglia"]
[null,null,null,null,null,null,"PORTO CESAREO","LE","Puglia"]
[null,null,null,null,null,null,"PRESICCE","LE","Puglia"]
[null,null,null,null,null,null,"PULSANO","TA","Puglia"]
[null,null,null,null,null,null,"PUTIGNANO","BA","Puglia"]
[null,null,null,null,null,null,"RACALE","LE","Puglia"]
[null,null,null,null,null,null,"RIGNANO GARGANICO","FG","Puglia"]
[null,null,null,null,null,null,"ROCCAFORZATA","TA","Puglia"]
[null,null,null,null,null,null,"ROCCHETTA SANT'ANTONIO","FG","Puglia"]
[null,null,null,null,null,null,"RODI GARGANICO","FG","Puglia"]
[null,null,null,null,null,null,"ROSETO VALFORTORE","FG","Puglia"]
[null,null,null,null,null,null,"RUFFANO","LE","Puglia"]
[null,null,null,null,null,null,"RUTIGLIANO","BA","Puglia"]
[null,null,null,null,null,null,"RUVO DI PUGLIA","BA","Puglia"]
[null,null,null,null,null,null,"SALICE SALENTINO","LE","Puglia"]
[null,null,null,null,null,null,"SALVE","LE","Puglia"]
[null,null,null,null,null,null,"SAMMICHELE DI BARI","BA","Puglia"]
[null,null,null,null,null,null,"SAN CASSIANO","LE","Puglia"]
[null,null,null,null,null,null,"SAN CESARIO DI LECCE","LE","Puglia"]
[null,null,null,null,null,null,"SAN DONACI","BR","Puglia"]
[null,null,null,null,null,null,"SAN DONATO DI LECCE","LE","Puglia"]
[null,null,null,null,null,null,"SAN FERDINANDO PUGLIA","BT","Puglia"]
[null,null,null,null,null,null,"SAN GIORGIO IONICO","TA","Puglia"]
[null,null,null,null,null,null,"SAN GIOVANNI ROTONDO","FG","Puglia"]
[null,null,null,null,null,null,"SAN MARCO IN LAMIS","FG","Puglia"]
[null,null,null,null,null,null,"SAN MARCO LA CATOLA","FG","Puglia"]
[null,null,null,null,null,null,"SAN MARZANO DI SAN GIUSEPPE","TA","Puglia"]
[null,null,null,null,null,null,"SAN MICHELE SALENTINO","BR","Puglia"]
[null,null,null,null,null,null,"SAN PANCRAZIO SALENTINO","BR","Puglia"]
[null,null,null,null,null,null,"SAN PAOLO DI CIVITATE","FG","Puglia"]
[null,null,null,null,null,null,"SAN PIETRO IN LAMA","LE","Puglia"]
[null,null,null,null,null,null,"SAN PIETRO VERNOTICO","BR","Puglia"]
[null,null,null,null,null,null,"SAN SEVERO","FG","Puglia"]
[null,null,null,null,null,null,"SAN VITO DEI NORMANNI","BR","Puglia"]
[null,null,null,null,null,null,"SANARICA","LE","Puglia"]
[null,null,null,null,null,null,"SANNICANDRO DI BARI","BA","Puglia"]
[null,null,null,null,null,null,"SANNICANDRO GARGAN.","FG","Puglia"]
[null,null,null,null,null,null,"SANNICOLA","LE","Puglia"]
[null,null,null,null,null,null,"SANTA CESAREA TERME","LE","Puglia"]
[null,null,null,null,null,null,"SANT'AGATA DI PUGLIA","FG","Puglia"]
[null,null,null,null,null,null,"SANTERAMO IN COLLE","BA","Puglia"]
[null,null,null,null,null,null,"SAVA","TA","Puglia"]
[null,null,null,null,null,null,"SCORRANO","LE","Puglia"]
[null,null,null,null,null,null,"SECLI'","LE","Puglia"]
[null,null,null,null,null,null,"SERRACAPRIOLA","FG","Puglia"]
[null,null,null,null,null,null,"SOGLIANO CAVOUR","LE","Puglia"]
[null,null,null,null,null,null,"SOLETO","LE","Puglia"]
[null,null,null,null,null,null,"SPECCHIA","LE","Puglia"]
[null,null,null,null,null,null,"SPINAZZOLA","BT","Puglia"]
[null,null,null,null,null,null,"SPONGANO","LE","Puglia"]
[null,null,null,null,null,null,"SQUINZANO","LE","Puglia"]
[null,null,null,null,null,null,"STATTE","TA","Puglia"]
[null,null,null,null,null,null,"STERNATIA","LE","Puglia"]
[null,null,null,null,null,null,"STORNARA","FG","Puglia"]
[null,null,null,null,null,null,"STORNARELLA","FG","Puglia"]
[null,null,null,null,null,null,"SUPERSANO","LE","Puglia"]
[null,null,null,null,null,null,"SURANO","LE","Puglia"]
[null,null,null,null,null,null,"SURBO","LE","Puglia"]
[null,null,null,null,null,null,"TARANTO","TA","Puglia"]
[null,null,null,null,null,null,"TAURISANO","LE","Puglia"]
[null,null,null,null,null,null,"TAVIANO","LE","Puglia"]
[null,null,null,null,null,null,"TERLIZZI","BA","Puglia"]
[null,null,null,null,null,null,"TIGGIANO","LE","Puglia"]
[null,null,null,null,null,null,"TORCHIAROLO","BR","Puglia"]
[null,null,null,null,null,null,"TORITTO","BA","Puglia"]
[null,null,null,null,null,null,"TORRE SANTA SUSANNA","BR","Puglia"]
[null,null,null,null,null,null,"TORREMAGGIORE","FG","Puglia"]
[null,null,null,null,null,null,"TORRICELLA","TA","Puglia"]
[null,null,null,null,null,null,"TRANI","BT","Puglia"]
[null,null,null,null,null,null,"TREPUZZI","LE","Puglia"]
[null,null,null,null,null,null,"TRICASE","LE","Puglia"]
[null,null,null,null,null,null,"TRIGGIANO","BA","Puglia"]
[null,null,null,null,null,null,"TRINITAPOLI","BT","Puglia"]
[null,null,null,null,null,null,"TROIA","FG","Puglia"]
[null,null,null,null,null,null,"TUGLIE","LE","Puglia"]
[null,null,null,null,null,null,"TURI","BA","Puglia"]
[null,null,null,null,null,null,"UGENTO","LE","Puglia"]
[null,null,null,null,null,null,"UGGIANO LA CHIESA","LE","Puglia"]
[null,null,null,null,null,null,"VALENZANO","BA","Puglia"]
[null,null,null,null,null,null,"VEGLIE","LE","Puglia"]
[null,null,null,null,null,null,"VERNOLE","LE","Puglia"]
[null,null,null,null,null,null,"VICO DEL GARGANO","FG","Puglia"]
[null,null,null,null,null,null,"VIESTE","FG","Puglia"]
[null,null,null,null,null,null,"VILLA CASTELLI","BR","Puglia"]
[null,null,null,null,null,null,"VOLTURARA APPULA","FG","Puglia"]
[null,null,null,null,null,null,"VOLTURINO","FG","Puglia"]
[null,null,null,null,null,null,"ZAPPONETA","FG","Puglia"]
[null,null,null,null,null,null,"ZOLLINO","LE","Puglia"]

{"sheet":"Bilancio terza annualità","index":2,"n_rows":124,"n_cols":21,"rows_kept":124,"cut":false,"hidden":false,"merged":[[1,2,1,4],[1,5,1,7],[1,8,1,10],[1,11,1,13],[3,11,3,13],[3,14,3,16],[1,17,4,17],[2,5,2,7],[2,8,2,10],[2,11,2,13],[2,14,2,16],[117,7,123,10],[115,1,115,19],[111,1,111,16],[105,1,105,16],[106,1,106,16],[107,1,107,16],[108,1,108,16],[109,1,109,16],[110,1,110,16],[113,1,113,19],[0,1,0,19],[112,1,112,19],[114,1,114,19],[5,2,5,4],[5,5,5,7],[5,8,5,10],[5,11,5,13],[5,17,5,19],[5,14,5,16],[2,2,2,4],[1,14,1,16],[1,18,4,18],[1,19,4,19],[3,2,3,4],[3,5,3,7],[3,8,3,10]]}
[null,"FSC Fondo di Sviluppo e Coesione 2014/2020 – “Patto per la Puglia”\nAVVISO PUBBLICO PER PRESENTARE INIZIATIVE PROGETTUALI RIGUARDANTI LE ATTIVITA' CULTURALI\nBILANCIO CONSUNTIVO TERZA ANNUALITA' (ALL. L DELL'AVVISO)"]
[null,"RUOLO","CAPOFILA",null,null,"PARTNER 1",null,null,"PARTNER 2",null,null,"PARTNER 3",null,null,"PARTNER 4",null,null,"TOTALE PROGETTO","TOTALE RENDICONTATO","TOTALE ACCERTATO","SOGGETTO IVA NORMALE O FORFETTARIA"]
[null,"DENOMINAZIONE (INSERIRE)"]
[null,"REGIME IVA (Selezionare da Menù a tendina)","SOGGETTO IVA NORMALE O FORFETTARIA",null,null,null,null,null,"SOGGETTO ESENTE O ESCLUSO IVA",null,null,"SOGGETTO IVA NORMALE O FORFETTARIA",null,null,"SOGGETTO IVA NORMALE O FORFETTARIA",null,null,null,null,null,"SOGGETTO ESENTE O ESCLUSO IVA"]
[null,"NELLA COLONNA \"PROGETTO\" RIPORTARE I VALORI DEL BILANCIO DI PROGETTO O IL BILANCIO RIMODULATO E APPROVATO","PROGETTO","RENDICONTATO","ACCERTATO","PROGETTO","RENDICONTATO","ACCERTATO","PROGETTO","RENDICONTATO","ACCERTATO","PROGETTO","RENDICONTATO","ACCERTATO","PROGETTO","RENDICONTATO","ACCERTATO"]
[null,"ENTRATE","Importi\n(euro)",null,null,"Importi\n(euro)",null,null,"Importi\n(euro)",null,null,"Importi\n(euro)",null,null,"Importi\n(euro)",null,null,"Importi\n(euro)"]
["E1 - PROVENTI DA CONTIBUTI PUBBLICI","PROVENTI DA CONTIBUTI PUBBLICI"]
["E11 - Unione Europea","Unione Europea",0,{"$f":"SUMIFS('Entrate - Altri costi'!$W$6:$W$252,'Entrate - Altri costi'!$B$6:$B$252,$A8,'Entrate - Altri costi'!$C$6:$C$252,C$2)","v":0},{"$f":"SUMIFS('Entrate - Altri costi'!$AE$6:$AE$252,'Entrate - Altri costi'!$B$6:$B$252,$A8,'Entrate - Altri costi'!$C$6:$C$252,C$2)","v":0},0,{"$f":"SUMIFS('Entrate - Altri costi'!$W$6:$W$252,'Entrate - Altri costi'!$B$6:$B$252,$A8,'Entrate - Altri costi'!$C$6:$C$252,F$2)","v":0},{"$f":"SUMIFS('Entrate - Altri costi'!$AE$6:$AE$252,'Entrate - Altri costi'!$B$6:$B$252,$A8,'Entrate - Altri costi'!$C$6:$C$252,F$2)","v":0},0,{"$f":"SUMIFS('Entrate - Altri costi'!$W$6:$W$252,'Entrate - Altri costi'!$B$6:$B$252,$A8,'Entrate - Altri costi'!$C$6:$C$252,I$2)","v":0},{"$f":"SUMIFS('Entrate - Altri costi'!$AE$6:$AE$252,'Entrate - Altri costi'!$B$6:$B$252,$A8,'Entrate - Altri costi'!$C$6:$C$252,I$2)","v":0},0,{"$f":"SUMIFS('Entrate - Altri costi'!$W$6:$W$252,'Entrate - Altri costi'!$B$6:$B$252,$A8,'Entrate - Altri costi'!$C$6:$C$252,L$2)","v":0},{"$f":"SUMIFS('Entrate - Altri costi'!$AE$6:$AE$252,'Entrate - Altri costi'!$B$6:$B$252,$A8,'Entrate - Altri costi'!$C$6:$C$252,L$2)","v":0},0,{"$f":"SUMIFS('Entrate - Altri costi'!$W$6:$W$252,'Entrate - Altri costi'!$B$6:$B$252,$A8,'Entrate - Altri costi'!$C$6:$C$252,O$2)","v":0},{"$f":"SUMIFS('Entrate - Altri costi'!$AE$6:$AE$252,'Entrate - Altri costi'!$B$6:$B$252,$A8,'Entrate - Altri costi'!$C$6:$C$252,O$2)","v":0},{"$f":"SUM(C8+F8+I8+L8+O8)","v":0},0,0]
["E12 - Stato","Stato",0,{"$f":"SUMIFS('Entrate - Altri costi'!$W$6:$W$252,'Entrate - Altri costi'!$B$6:$B$252,$A9,'Entrate - Altri costi'!$C$6:$C$252,C$2)","v":0},{"$f":"SUMIFS('Entrate - Altri costi'!$AE$6:$AE$252,'Entrate - Altri costi'!$B$6:$B$252,$A9,'Entrate - Altri costi'!$C$6:$C$252,C$2)","v":0},0,{"$f":"SUMIFS('Entrate - Altri costi'!$W$6:$W$252,'Entrate - Altri costi'!$B$6:$B$252,$A9,'Entrate - Altri costi'!$C$6:$C$252,F$2)","v":0},{"$f":"SUMIFS('Entrate - Altri costi'!$AE$6:$AE$252,'Entrate - Altri costi'!$B$6:$B$252,$A9,'Entrate - Altri costi'!$C$6:$C$252,F$2)","v":0},0,{"$f":"SUMIFS('Entrate - Altri costi'!$W$6:$W$252,'Entrate - Altri costi'!$B$6:$B$252,$A9,'Entrate - Altri costi'!$C$6:$C$252,I$2)","v":0},{"$f":"SUMIFS('Entrate - Altri costi'!$AE$6:$AE$252,'Entrate - Altri costi'!$B$6:$B$252,$A9,'Entrate - Altri costi'!$C$6:$C$252,I$2)","v":0},0,{"$f":"SUMIFS('Entrate - Altri costi'!$W$6:$W$252,'Entrate - Altri costi'!$B$6:$B$252,$A9,'Entrate - Altri costi'!$C$6:$C$252,L$2)","v":0},{"$f":"SUMIFS('Entrate - Altri costi'!$AE$6:$AE$252,'Entrate - Altri costi'!$B$6:$B$252,$A9,'Entrate - Altri costi'!$C$6:$C$252,L$2)","v":0},0,{"$f":"SUMIFS('Entrate - Altri costi'!$W$6:$W$252,'Entrate - Altri costi'!$B$6:$B$252,$A9,'Entrate - Altri costi'!$C$6:$C$252,O$2)","v":0},{"$f":"SUMIFS('Entrate - Altri costi'!$AE$6:$AE$252,'Entrate - Altri costi'!$B$6:$B$252,$A9,'Entrate - Altri costi'!$C$6:$C$252,O$2)","v":0},0,0,0]
["E13 - Regione","Regione - Altro Dipartimento* (indicare _____________________)",0,{"$f":"SUMIFS('Entrate - Altri costi'!$W$6:$W$252,'Entrate - Altri costi'!$B$6:$B$252,$A10,'Entrate - Altri costi'!$C$6:$C$252,C$2)","v":0},{"$f":"SUMIFS('Entrate - Altri costi'!$AE$6:$AE$252,'Entrate - Altri costi'!$B$6:$B$252,$A10,'Entrate - Altri costi'!$C$6:$C$252,C$2)","v":0},0,{"$f":"SUMIFS('Entrate - Altri costi'!$W$6:$W$252,'Entrate - Altri costi'!$B$6:$B$252,$A10,'Entrate - Altri costi'!$C$6:$C$252,F$2)","v":0},{"$f":"SUMIFS('Entrate - Altri costi'!$AE$6:$AE$252,'Entrate - Altri costi'!$B$6:$B$252,$A10,'Entrate - Altri costi'!$C$6:$C$252,F$2)","v":0},0,{"$f":"SUMIFS('Entrate - Altri costi'!$W$6:$W$252,'Entrate - Altri costi'!$B$6:$B$252,$A10,'Entrate - Altri costi'!$C$6:$C$252,I$2)","v":0},{"$f":"SUMIFS('Entrate - Altri costi'!$AE$6:$AE$252,'Entrate - Altri costi'!$B$6:$B$252,$A10,'Entrate - Altri costi'!$C$6:$C$252,I$2)","v":0},0,{"$f":"SUMIFS('Entrate - Altri costi'!$W$6:$W$252,'Entrate - Altri costi'!$B$6:$B$252,$A10,'Entrate - Altri costi'!$C$6:$C$252,L$2)","v":0},{"$f":"SUMIFS('Entrate - Altri costi'!$AE$6:$AE$252,'Entrate - Altri costi'!$B$6:$B$252,$A10,'Entrate - Altri costi'!$C$6:$C$252,L$2)","v":0},0,{"$f":"SUMIFS('Entrate - Altri costi'!$W$6:$W$252,'Entrate - Altri costi'!$B$6:$B$252,$A10,'Entrate - Altri costi'!$C$6:$C$252,O$2)","v":0},{"$f":"SUMIFS('Entrate - Altri costi'!$AE$6:$AE$252,'Entrate - Altri costi'!$B$6:$B$252,$A10,'Entrate - Altri costi'!$C$6:$C$252,O$2)","v":0},0,0,0]
["E14 - Comuni","Comuni",null,{"$f":"SUMIFS('Entrate - Altri costi'!$W$6:$W$252,'Entrate - Altri costi'!$B$6:$B$252,$A11,'Entrate - Altri costi'!$C$6:$C$252,C$2)","v":0},{"$f":"SUMIFS('Entrate - Altri costi'!$AE$6:$AE$252,'Entrate - Altri costi'!$B$6:$B$252,$A11,'Entrate - Altri costi'!$C$6:$C$252,C$2)","v":0},null,{"$f":"SUMIFS('Entrate - Altri costi'!$W$6:$W$252,'Entrate - Altri costi'!$B$6:$B$252,$A11,'Entrate - Altri costi'!$C$6:$C$252,F$2)","v":0},{"$f":"SUMIFS('Entrate - Altri costi'!$AE$6:$AE$252,'Entrate - Altri costi'!$B$6:$B$252,$A11,'Entrate - Altri costi'!$C$6:$C$252,F$2)","v":0},null,{"$f":"SUMIFS('Entrate - Altri costi'!$W$6:$W$252,'Entrate - Altri costi'!$B$6:$B$252,$A11,'Entrate - Altri costi'!$C$6:$C$252,I$2)","v":0},{"$f":"SUMIFS('Entrate - Altri costi'!$AE$6:$AE$252,'Entrate - Altri costi'!$B$6:$B$252,$A11,'Entrate - Altri costi'!$C$6:$C$252,I$2)","v":0},null,{"$f":"SUMIFS('Entrate - Altri costi'!$W$6:$W$252,'Entrate - Altri costi'!$B$6:$B$252,$A11,'Entrate - Altri costi'!$C$6:$C$252,L$2)","v":0},{"$f":"SUMIFS('Entrate - Altri costi'!$AE$6:$AE$252,'Entrate - Altri costi'!$B$6:$B$252,$A11,'Entrate - Altri costi'!$C$6:$C$252,L$2)","v":0},null,{"$f":"SUMIFS('Entrate - Altri costi'!$W$6:$W$252,'Entrate - Altri costi'!$B$6:$B$252,$A11,'Entrate - Altri costi'!$C$6:$C$252,O$2)","v":0},{"$f":"SUMIFS('Entrate - Altri costi'!$AE$6:$AE$252,'Entrate - Altri costi'!$B$6:$B$252,$A11,'Entrate - Altri costi'!$C$6:$C$252,O$2)","v":0},0,0,0]
["E15 - Altri soggetti pubblici","Altri soggetti pubblici (specificare____________________________)",null,{"$f":"SUMIFS('Entrate - Altri costi'!$W$6:$W$252,'Entrate - Altri costi'!$B$6:$B$252,$A12,'Entrate - Altri costi'!$C$6:$C$252,C$2)","v":0},{"$f":"SUMIFS('Entrate - Altri costi'!$AE$6:$AE$252,'Entrate - Altri costi'!$B$6:$B$252,$A12,'Entrate - Altri costi'!$C$6:$C$252,C$2)","v":0},null,{"$f":"SUMIFS('Entrate - Altri costi'!$W$6:$W$252,'Entrate - Altri costi'!$B$6:$B$252,$A12,'Entrate - Altri costi'!$C$6:$C$252,F$2)","v":0},{"$f":"SUMIFS('Entrate - Altri costi'!$AE$6:$AE$252,'Entrate - Altri costi'!$B$6:$B$252,$A12,'Entrate - Altri costi'!$C$6:$C$252,F$2)","v":0},null,{"$f":"SUMIFS('Entrate - Altri costi'!$W$6:$W$252,'Entrate - Altri costi'!$B$6:$B$252,$A12,'Entrate - Altri costi'!$C$6:$C$252,I$2)","v":0},{"$f":"SUMIFS('Entrate - Altri costi'!$AE$6:$AE$252,'Entrate - Altri costi'!$B$6:$B$252,$A12,'Entrate - Altri costi'!$C$6:$C$252,I$2)","v":0},null,{"$f":"SUMIFS('Entrate - Altri costi'!$W$6:$W$252,'Entrate - Altri costi'!$B$6:$B$252,$A12,'Entrate - Altri costi'!$C$6:$C$252,L$2)","v":0},{"$f":"SUMIFS('Entrate - Altri costi'!$AE$6:$AE$252,'Entrate - Altri costi'!$B$6:$B$252,$A12,'Entrate - Altri costi'!$C$6:$C$252,L$2)","v":0},null,{"$f":"SUMIFS('Entrate - Altri costi'!$W$6:$W$252,'Entrate - Altri costi'!$B$6:$B$252,$A12,'Entrate - Altri costi'!$C$6:$C$252,O$2)","v":0},{"$f":"SUMIFS('Entrate - Altri costi'!$AE$6:$AE$252,'Entrate - Altri costi'!$B$6:$B$252,$A12,'Entrate - Altri costi'!$C$6:$C$252,O$2)","v":0},0,0,0]
[null,"TOTALE CONTRIBUTI PUBBLICI",{"$f":"SUM(C8:C12)","v":0},0,0,{"$f":"SUM(F8:F12)","v":0},0,0,0,0,0,0,0,0,0,0,0,{"$f":"SUM(R8:R12)","v":0},{"$f":"SUM(S8:S12)","v":0},0]
["E2 - PROVENTI DA CONTRIBUTI PRIVATI","PROVENTI DA CONTRIBUTI PRIVATI"]
["E21 - Fondazioni e Istituzioni Bancarie","Fondazioni e Istituzioni Bancarie",0,{"$f":"SUMIFS('Entrate - Altri costi'!$W$6:$W$252,'Entrate - Altri costi'!$B$6:$B$252,$A15,'Entrate - Altri costi'!$C$6:$C$252,C$2)","v":0},{"$f":"SUMIFS('Entrate - Altri costi'!$AE$6:$AE$252,'Entrate - Altri costi'!$B$6:$B$252,$A15,'Entrate - Altri costi'!$C$6:$C$252,C$2)","v":0},0,{"$f":"SUMIFS('Entrate - Altri costi'!$W$6:$W$252,'Entrate - Altri costi'!$B$6:$B$252,$A15,'Entrate - Altri costi'!$C$6:$C$252,F$2)","v":0},{"$f":"SUMIFS('Entrate - Altri costi'!$AE$6:$AE$252,'Entrate - Altri costi'!$B$6:$B$252,$A15,'Entrate - Altri costi'!$C$6:$C$252,F$2)","v":0},0,{"$f":"SUMIFS('Entrate - Altri costi'!$W$6:$W$252,'Entrate - Altri costi'!$B$6:$B$252,$A15,'Entrate - Altri costi'!$C$6:$C$252,I$2)","v":0},{"$f":"SUMIFS('Entrate - Altri costi'!$AE$6:$AE$252,'Entrate - Altri costi'!$B$6:$B$252,$A15,'Entrate - Altri costi'!$C$6:$C$252,I$2)","v":0},0,{"$f":"SUMIFS('Entrate - Altri costi'!$W$6:$W$252,'Entrate - Altri costi'!$B$6:$B$252,$A15,'Entrate - Altri costi'!$C$6:$C$252,L$2)","v":0},{"$f":"SUMIFS('Entrate - Altri costi'!$AE$6:$AE$252,'Entrate - Altri costi'!$B$6:$B$252,$A15,'Entrate - Altri costi'!$C$6:$C$252,L$2)","v":0},0,{"$f":"SUMIFS('Entrate - Altri costi'!$W$6:$W$252,'Entrate - Altri costi'!$B$6:$B$252,$A15,'Entrate - Altri costi'!$C$6:$C$252,O$2)","v":0},{"$f":"SUMIFS('Entrate - Altri costi'!$AE$6:$AE$252,'Entrate - Altri costi'!$B$6:$B$252,$A15,'Entrate - Altri costi'!$C$6:$C$252,O$2)","v":0},{"$f":"SUM(C15+F15+I15+L15+O15)","v":0},0,0]
["E22 - Aziende","Aziende",0,{"$f":"SUMIFS('Entrate - Altri costi'!$W$6:$W$252,'Entrate - Altri costi'!$B$6:$B$252,$A16,'Entrate - Altri costi'!$C$6:$C$252,C$2)","v":0},{"$f":"SUMIFS('Entrate - Altri costi'!$AE$6:$AE$252,'Entrate - Altri costi'!$B$6:$B$252,$A16,'Entrate - Altri costi'!$C$6:$C$252,C$2)","v":0},0,{"$f":"SUMIFS('Entrate - Altri costi'!$W$6:$W$252,'Entrate - Altri costi'!$B$6:$B$252,$A16,'Entrate - Altri costi'!$C$6:$C$252,F$2)","v":0},{"$f":"SUMIFS('Entrate - Altri costi'!$AE$6:$AE$252,'Entrate - Altri costi'!$B$6:$B$252,$A16,'Entrate - Altri costi'!$C$6:$C$252,F$2)","v":0},0,{"$f":"SUMIFS('Entrate - Altri costi'!$W$6:$W$252,'Entrate - Altri costi'!$B$6:$B$252,$A16,'Entrate - Altri costi'!$C$6:$C$252,I$2)","v":0},{"$f":"SUMIFS('Entrate - Altri costi'!$AE$6:$AE$252,'Entrate - Altri costi'!$B$6:$B$252,$A16,'Entrate - Altri costi'!$C$6:$C$252,I$2)","v":0},0,{"$f":"SUMIFS('Entrate - Altri costi'!$W$6:$W$252,'Entrate - Altri costi'!$B$6:$B$252,$A16,'Entrate - Altri costi'!$C$6:$C$252,L$2)","v":0},{"$f":"SUMIFS('Entrate - Altri costi'!$AE$6:$AE$252,'Entrate - Altri costi'!$B$6:$B$252,$A16,'Entrate - Altri costi'!$C$6:$C$252,L$2)","v":0},0,{"$f":"SUMIFS('Entrate - Altri costi'!$W$6:$W$252,'Entrate - Altri costi'!$B$6:$B$252,$A16,'Entrate - Altri costi'!$C$6:$C$252,O$2)","v":0},{"$f":"SUMIFS('Entrate - Altri costi'!$AE$6:$AE$252,'Entrate - Altri costi'!$B$6:$B$252,$A16,'Entrate - Altri costi'!$C$6:$C$252,O$2)","v":0},0,0,0]
["E23 - Altri enti non commerciali","Altri enti non commerciali",0,{"$f":"SUMIFS('Entrate - Altri costi'!$W$6:$W$252,'Entrate - Altri costi'!$B$6:$B$252,$A17,'Entrate - Altri costi'!$C$6:$C$252,C$2)","v":0},{"$f":"SUMIFS('Entrate - Altri costi'!$AE$6:$AE$252,'Entrate - Altri costi'!$B$6:$B$252,$A17,'Entrate - Altri costi'!$C$6:$C$252,C$2)","v":0},0,{"$f":"SUMIFS('Entrate - Altri costi'!$W$6:$W$252,'Entrate - Altri costi'!$B$6:$B$252,$A17,'Entrate - Altri costi'!$C$6:$C$252,F$2)","v":0},{"$f":"SUMIFS('Entrate - Altri costi'!$AE$6:$AE$252,'Entrate - Altri costi'!$B$6:$B$252,$A17,'Entrate - Altri costi'!$C$6:$C$252,F$2)","v":0},0,{"$f":"SUMIFS('Entrate - Altri costi'!$W$6:$W$252,'Entrate - Altri costi'!$B$6:$B$252,$A17,'Entrate - Altri costi'!$C$6:$C$252,I$2)","v":0},{"$f":"SUMIFS('Entrate - Altri costi'!$AE$6:$AE$252,'Entrate - Altri costi'!$B$6:$B$252,$A17,'Entrate - Altri costi'!$C$6:$C$252,I$2)","v":0},0,{"$f":"SUMIFS('Entrate - Altri costi'!$W$6:$W$252,'Entrate - Altri costi'!$B$6:$B$252,$A17,'Entrate - Altri costi'!$C$6:$C$252,L$2)","v":0},{"$f":"SUMIFS('Entrate - Altri costi'!$AE$6:$AE$252,'Entrate - Altri costi'!$B$6:$B$252,$A17,'Entrate - Altri costi'!$C$6:$C$252,L$2)","v":0},0,{"$f":"SUMIFS('Entrate - Altri costi'!$W$6:$W$252,'Entrate - Altri costi'!$B$6:$B$252,$A17,'Entrate - Altri costi'!$C$6:$C$252,O$2)","v":0},{"$f":"SUMIFS('Entrate - Altri costi'!$AE$6:$AE$252,'Entrate - Altri costi'!$B$6:$B$252,$A17,'Entrate - Altri costi'!$C$6:$C$252,O$2)","v":0},0,0,0]
["E24 - Persone fisiche","Persone fisiche",0,{"$f":"SUMIFS('Entrate - Altri costi'!$W$6:$W$252,'Entrate - Altri costi'!$B$6:$B$252,$A18,'Entrate - Altri costi'!$C$6:$C$252,C$2)","v":0},{"$f":"SUMIFS('Entrate - Altri costi'!$AE$6:$AE$252,'Entrate - Altri costi'!$B$6:$B$252,$A18,'Entrate - Altri costi'!$C$6:$C$252,C$2)","v":0},0,{"$f":"SUMIFS('Entrate - Altri costi'!$W$6:$W$252,'Entrate - Altri costi'!$B$6:$B$252,$A18,'Entrate - Altri costi'!$C$6:$C$252,F$2)","v":0},{"$f":"SUMIFS('Entrate - Altri costi'!$AE$6:$AE$252,'Entrate - Altri costi'!$B$6:$B$252,$A18,'Entrate - Altri costi'!$C$6:$C$252,F$2)","v":0},0,{"$f":"SUMIFS('Entrate - Altri costi'!$W$6:$W$252,'Entrate - Altri costi'!$B$6:$B$252,$A18,'Entrate - Altri costi'!$C$6:$C$252,I$2)","v":0},{"$f":"SUMIFS('Entrate - Altri costi'!$AE$6:$AE$252,'Entrate - Altri costi'!$B$6:$B$252,$A18,'Entrate - Altri costi'!$C$6:$C$252,I$2)","v":0},0,{"$f":"SUMIFS('Entrate - Altri costi'!$W$6:$W$252,'Entrate - Altri costi'!$B$6:$B$252,$A18,'Entrate - Altri costi'!$C$6:$C$252,L$2)","v":0},{"$f":"SUMIFS('Entrate - Altri costi'!$AE$6:$AE$252,'Entrate - Altri costi'!$B$6:$B$252,$A18,'Entrate - Altri costi'!$C$6:$C$252,L$2)","v":0},0,{"$f":"SUMIFS('Entrate - Altri costi'!$W$6:$W$252,'Entrate - Altri costi'!$B$6:$B$252,$A18,'Entrate - Altri costi'!$C$6:$C$252,O$2)","v":0},{"$f":"SUMIFS('Entrate - Altri costi'!$AE$6:$AE$252,'Entrate - Altri costi'!$B$6:$B$252,$A18,'Entrate - Altri costi'!$C$6:$C$252,O$2)","v":0},0,0,0]
["E25 - Sponsorizzazioni finanziarie","Sponsorizzazioni finanziarie",0,{"$f":"SUMIFS('Entrate - Altri costi'!$W$6:$W$252,'Entrate - Altri costi'!$B$6:$B$252,$A19,'Entrate - Altri costi'!$C$6:$C$252,C$2)","v":0},{"$f":"SUMIFS('Entrate - Altri costi'!$AE$6:$AE$252,'Entrate - Altri costi'!$B$6:$B$252,$A19,'Entrate - Altri costi'!$C$6:$C$252,C$2)","v":0},0,{"$f":"SUMIFS('Entrate - Altri costi'!$W$6:$W$252,'Entrate - Altri costi'!$B$6:$B$252,$A19,'Entrate - Altri costi'!$C$6:$C$252,F$2)","v":0},{"$f":"SUMIFS('Entrate - Altri costi'!$AE$6:$AE$252,'Entrate - Altri costi'!$B$6:$B$252,$A19,'Entrate - Altri costi'!$C$6:$C$252,F$2)","v":0},0,{"$f":"SUMIFS('Entrate - Altri costi'!$W$6:$W$252,'Entrate - Altri costi'!$B$6:$B$252,$A19,'Entrate - Altri costi'!$C$6:$C$252,I$2)","v":0},{"$f":"SUMIFS('Entrate - Altri costi'!$AE$6:$AE$252,'Entrate - Altri costi'!$B$6:$B$252,$A19,'Entrate - Altri costi'!$C$6:$C$252,I$2)","v":0},0,{"$f":"SUMIFS('Entrate - Altri costi'!$W$6:$W$252,'Entrate - Altri costi'!$B$6:$B$252,$A19,'Entrate - Altri costi'!$C$6:$C$252,L$2)","v":0},{"$f":"SUMIFS('Entrate - Altri costi'!$AE$6:$AE$252,'Entrate - Altri costi'!$B$6:$B$252,$A19,'Entrate - Altri costi'!$C$6:$C$252,L$2)","v":0},0,{"$f":"SUMIFS('Entrate - Altri costi'!$W$6:$W$252,'Entrate - Altri costi'!$B$6:$B$252,$A19,'Entrate - Altri costi'!$C$6:$C$252,O$2)","v":0},{"$f":"SUMIFS('Entrate - Altri costi'!$AE$6:$AE$252,'Entrate - Altri costi'!$B$6:$B$252,$A19,'Entrate - Altri costi'!$C$6:$C$252,O$2)","v":0},0,0,0]
["E26 - Altro","Altro (specificare_______________________________)",0,{"$f":"SUMIFS('Entrate - Altri costi'!$W$6:$W$252,'Entrate - Altri costi'!$B$6:$B$252,$A20,'Entrate - Altri costi'!$C$6:$C$252,C$2)","v":0},{"$f":"SUMIFS('Entrate - Altri costi'!$AE$6:$AE$252,'Entrate - Altri costi'!$B$6:$B$252,$A20,'Entrate - Altri costi'!$C$6:$C$252,C$2)","v":0},0,{"$f":"SUMIFS('Entrate - Altri costi'!$W$6:$W$252,'Entrate - Altri costi'!$B$6:$B$252,$A20,'Entrate - Altri costi'!$C$6:$C$252,F$2)","v":0},{"$f":"SUMIFS('Entrate - Altri costi'!$AE$6:$AE$252,'Entrate - Altri costi'!$B$6:$B$252,$A20,'Entrate - Altri costi'!$C$6:$C$252,F$2)","v":0},0,{"$f":"SUMIFS('Entrate - Altri costi'!$W$6:$W$252,'Entrate - Altri costi'!$B$6:$B$252,$A20,'Entrate - Altri costi'!$C$6:$C$252,I$2)","v":0},{"$f":"SUMIFS('Entrate - Altri costi'!$AE$6:$AE$252,'Entrate - Altri costi'!$B$6:$B$252,$A20,'Entrate - Altri costi'!$C$6:$C$252,I$2)","v":0},0,{"$f":"SUMIFS('Entrate - Altri costi'!$W$6:$W$252,'Entrate - Altri costi'!$B$6:$B$252,$A20,'Entrate - Altri costi'!$C$6:$C$252,L$2)","v":0},{"$f":"SUMIFS('Entrate - Altri costi'!$AE$6:$AE$252,'Entrate - Altri costi'!$B$6:$B$252,$A20,'Entrate - Altri costi'!$C$6:$C$252,L$2)","v":0},0,{"$f":"SUMIFS('Entrate - Altri costi'!$W$6:$W$252,'Entrate - Altri costi'!$B$6:$B$252,$A20,'Entrate - Altri costi'!$C$6:$C$252,O$2)","v":0},{"$f":"SUMIFS('Entrate - Altri costi'!$AE$6:$AE$252,'Entrate - Altri costi'!$B$6:$B$252,$A20,'Entrate - Altri costi'!$C$6:$C$252,O$2)","v":0},{"$f":"SUM(C20+F20+I20+L20+O20)","v":0},{"$f":"SUM(D20+G20+J20+M20+P20)","v":0},{"$f":"SUM(E20:Q20)","v":0}]
[null,"TOTALE CONTRIBUTI PRIVATI",{"$f":"SUM(C15:C20)","v":0},0,0,0,0,{"$f":"SUM(H15:H20)","v":0},0,0,{"$f":"SUM(K15:K20)","v":0},0,0,{"$f":"SUM(N15:N20)","v":0},0,0,{"$f":"SUM(Q15:Q20)","v":0},{"$f":"SUM(R15:R20)","v":0},0,{"$f":"SUM(T15:T20)","v":0}]
["E3 - APPORTI IN NATURA","APPORTI IN NATURA"]
["E31 - Valore apporti in natura Capofila e Partner","Valore apporti in natura (solo Capofila e Partner di progetto)",0,{"$f":"SUMIFS('Entrate - Altri costi'!$W$6:$W$252,'Entrate - Altri costi'!$B$6:$B$252,$A23,'Entrate - Altri costi'!$C$6:$C$252,C$2)","v":0},{"$f":"SUMIFS('Entrate - Altri costi'!$AE$6:$AE$252,'Entrate - Altri costi'!$B$6:$B$252,$A23,'Entrate - Altri costi'!$C$6:$C$252,C$2)","v":0},0,{"$f":"SUMIFS('Entrate - Altri costi'!$W$6:$W$252,'Entrate - Altri costi'!$B$6:$B$252,$A23,'Entrate - Altri costi'!$C$6:$C$252,F$2)","v":0},{"$f":"SUMIFS('Entrate - Altri costi'!$AE$6:$AE$252,'Entrate - Altri costi'!$B$6:$B$252,$A23,'Entrate - Altri costi'!$C$6:$C$252,F$2)","v":0},0,{"$f":"SUMIFS('Entrate - Altri costi'!$W$6:$W$252,'Entrate - Altri costi'!$B$6:$B$252,$A23,'Entrate - Altri costi'!$C$6:$C$252,I$2)","v":0},{"$f":"SUMIFS('Entrate - Altri costi'!$AE$6:$AE$252,'Entrate - Altri costi'!$B$6:$B$252,$A23,'Entrate - Altri costi'!$C$6:$C$252,I$2)","v":0},0,{"$f":"SUMIFS('Entrate - Altri costi'!$W$6:$W$252,'Entrate - Altri costi'!$B$6:$B$252,$A23,'Entrate - Altri costi'!$C$6:$C$252,L$2)","v":0},{"$f":"SUMIFS('Entrate - Altri costi'!$AE$6:$AE$252,'Entrate - Altri costi'!$B$6:$B$252,$A23,'Entrate - Altri costi'!$C$6:$C$252,L$2)","v":0},0,{"$f":"SUMIFS('Entrate - Altri costi'!$W$6:$W$252,'Entrate - Altri costi'!$B$6:$B$252,$A23,'Entrate - Altri costi'!$C$6:$C$252,O$2)","v":0},{"$f":"SUMIFS('Entrate - Altri costi'!$AE$6:$AE$252,'Entrate - Altri costi'!$B$6:$B$252,$A23,'Entrate - Altri costi'!$C$6:$C$252,O$2)","v":0},{"$f":"SUM(C23+F23+I23+L23+O23)","v":0},0,0]
["E32 - Valore apporti in natura Affiliati","Valore apporti in natura (solo Partner Affiliati)",0,{"$f":"SUMIFS('Entrate - Altri costi'!$W$6:$W$252,'Entrate - Altri costi'!$B$6:$B$252,$A24,'Entrate - Altri costi'!$C$6:$C$252,C$2)","v":0},{"$f":"SUMIFS('Entrate - Altri costi'!$AE$6:$AE$252,'Entrate - Altri costi'!$B$6:$B$252,$A24,'Entrate - Altri costi'!$C$6:$C$252,C$2)","v":0},0,{"$f":"SUMIFS('Entrate - Altri costi'!$W$6:$W$252,'Entrate - Altri costi'!$B$6:$B$252,$A24,'Entrate - Altri costi'!$C$6:$C$252,F$2)","v":0},{"$f":"SUMIFS('Entrate - Altri costi'!$AE$6:$AE$252,'Entrate - Altri costi'!$B$6:$B$252,$A24,'Entrate - Altri costi'!$C$6:$C$252,F$2)","v":0},0,{"$f":"SUMIFS('Entrate - Altri costi'!$W$6:$W$252,'Entrate - Altri costi'!$B$6:$B$252,$A24,'Entrate - Altri costi'!$C$6:$C$252,I$2)","v":0},{"$f":"SUMIFS('Entrate - Altri costi'!$AE$6:$AE$252,'Entrate - Altri costi'!$B$6:$B$252,$A24,'Entrate - Altri costi'!$C$6:$C$252,I$2)","v":0},0,{"$f":"SUMIFS('Entrate - Altri costi'!$W$6:$W$252,'Entrate - Altri costi'!$B$6:$B$252,$A24,'Entrate - Altri costi'!$C$6:$C$252,L$2)","v":0},{"$f":"SUMIFS('Entrate - Altri costi'!$AE$6:$AE$252,'Entrate - Altri costi'!$B$6:$B$252,$A24,'Entrate - Altri costi'!$C$6:$C$252,L$2)","v":0},0,{"$f":"SUMIFS('Entrate - Altri costi'!$W$6:$W$252,'Entrate - Altri costi'!$B$6:$B$252,$A24,'Entrate - Altri costi'!$C$6:$C$252,O$2)","v":0},{"$f":"SUMIFS('Entrate - Altri costi'!$AE$6:$AE$252,'Entrate - Altri costi'!$B$6:$B$252,$A24,'Entrate - Altri costi'!$C$6:$C$252,O$2)","v":0},0,0,0]
[null,"TOTALE APPORTI IN NATURA",{"$f":"C23+C24","v":0},0,0,0,0,{"$f":"H23+H24","v":0},0,0,{"$f":"K23+K24","v":0},0,0,{"$f":"N23+N24","v":0},0,0,{"$f":"Q23+Q24","v":0},{"$f":"R23+R24","v":0},0,{"$f":"T23+T24","v":0}]
["E4 - RICAVI DA VENDITE E DA PRESTAZIONI","RICAVI DA VENDITE E DA PRESTAZIONI (ENTRATE PROPRIE)"]
["E42 - Entrate da Biglietteria","Entrate da Biglietteria",0,{"$f":"SUMIFS('Entrate - Altri costi'!$W$6:$W$252,'Entrate - Altri costi'!$B$6:$B$252,$A27,'Entrate - Altri costi'!$C$6:$C$252,C$2)","v":0},{"$f":"SUMIFS('Entrate - Altri costi'!$AE$6:$AE$252,'Entrate - Altri costi'!$B$6:$B$252,$A27,'Entrate - Altri costi'!$C$6:$C$252,C$2)","v":0},0,{"$f":"SUMIFS('Entrate - Altri costi'!$W$6:$W$252,'Entrate - Altri costi'!$B$6:$B$252,$A27,'Entrate - Altri costi'!$C$6:$C$252,F$2)","v":0},{"$f":"SUMIFS('Entrate - Altri costi'!$AE$6:$AE$252,'Entrate - Altri costi'!$B$6:$B$252,$A27,'Entrate - Altri costi'!$C$6:$C$252,F$2)","v":0},0,{"$f":"SUMIFS('Entrate - Altri costi'!$W$6:$W$252,'Entrate - Altri costi'!$B$6:$B$252,$A27,'Entrate - Altri costi'!$C$6:$C$252,I$2)","v":0},{"$f":"SUMIFS('Entrate - Altri costi'!$AE$6:$AE$252,'Entrate - Altri costi'!$B$6:$B$252,$A27,'Entrate - Altri costi'!$C$6:$C$252,I$2)","v":0},0,{"$f":"SUMIFS('Entrate - Altri costi'!$W$6:$W$252,'Entrate - Altri costi'!$B$6:$B$252,$A27,'Entrate - Altri costi'!$C$6:$C$252,L$2)","v":0},{"$f":"SUMIFS('Entrate - Altri costi'!$AE$6:$AE$252,'Entrate - Altri costi'!$B$6:$B$252,$A27,'Entrate - Altri costi'!$C$6:$C$252,L$2)","v":0},0,{"$f":"SUMIFS('Entrate - Altri costi'!$W$6:$W$252,'Entrate - Altri costi'!$B$6:$B$252,$A27,'Entrate - Altri costi'!$C$6:$C$252,O$2)","v":0},{"$f":"SUMIFS('Entrate - Altri costi'!$AE$6:$AE$252,'Entrate - Altri costi'!$B$6:$B$252,$A27,'Entrate - Altri costi'!$C$6:$C$252,O$2)","v":0},{"$f":"SUM(C27+F27+I27+L27+O27)","v":0},{"$f":"SUM(D27+G27+J27+M27+P27)","v":0},{"$f":"SUM(E27+H27+K27+N27+Q27)","v":0}]
["E45 - Entrate derivanti da compensi per attività","Entrate derivanti da compensi per attività",0,{"$f":"SUMIFS('Entrate - Altri costi'!$W$6:$W$252,'Entrate - Altri costi'!$B$6:$B$252,$A28,'Entrate - Altri costi'!$C$6:$C$252,C$2)","v":0},{"$f":"SUMIFS('Entrate - Altri costi'!$AE$6:$AE$252,'Entrate - Altri costi'!$B$6:$B$252,$A28,'Entrate - Altri costi'!$C$6:$C$252,C$2)","v":0},0,{"$f":"SUMIFS('Entrate - Altri costi'!$W$6:$W$252,'Entrate - Altri costi'!$B$6:$B$252,$A28,'Entrate - Altri costi'!$C$6:$C$252,F$2)","v":0},{"$f":"SUMIFS('Entrate - Altri costi'!$AE$6:$AE$252,'Entrate - Altri costi'!$B$6:$B$252,$A28,'Entrate - Altri costi'!$C$6:$C$252,F$2)","v":0},0,{"$f":"SUMIFS('Entrate - Altri costi'!$W$6:$W$252,'Entrate - Altri costi'!$B$6:$B$252,$A28,'Entrate - Altri costi'!$C$6:$C$252,I$2)","v":0},{"$f":"SUMIFS('Entrate - Altri costi'!$AE$6:$AE$252,'Entrate - Altri costi'!$B$6:$B$252,$A28,'Entrate - Altri costi'!$C$6:$C$252,I$2)","v":0},0,{"$f":"SUMIFS('Entrate - Altri costi'!$W$6:$W$252,'Entrate - Altri costi'!$B$6:$B$252,$A28,'Entrate - Altri costi'!$C$6:$C$252,L$2)","v":0},{"$f":"SUMIFS('Entrate - Altri costi'!$AE$6:$AE$252,'Entrate - Altri costi'!$B$6:$B$252,$A28,'Entrate - Altri costi'!$C$6:$C$252,L$2)","v":0},0,{"$f":"SUMIFS('Entrate - Altri costi'!$W$6:$W$252,'Entrate - Altri costi'!$B$6:$B$252,$A28,'Entrate - Altri costi'!$C$6:$C$252,O$2)","v":0},{"$f":"SUMIFS('Entrate - Altri costi'!$AE$6:$AE$252,'Entrate - Altri costi'!$B$6:$B$252,$A28,'Entrate - Altri costi'!$C$6:$C$252,O$2)","v":0},0,0,0]
["E46 - Altri proventi da vendite e prestazioni","Altri proventi da vendite e prestazioni (specificare__________________)",0,{"$f":"SUMIFS('Entrate - Altri costi'!$W$6:$W$252,'Entrate - Altri costi'!$B$6:$B$252,$A29,'Entrate - Altri costi'!$C$6:$C$252,C$2)","v":0},{"$f":"SUMIFS('Entrate - Altri costi'!$AE$6:$AE$252,'Entrate - Altri costi'!$B$6:$B$252,$A29,'Entrate - Altri costi'!$C$6:$C$252,C$2)","v":0},0,{"$f":"SUMIFS('Entrate - Altri costi'!$W$6:$W$252,'Entrate - Altri costi'!$B$6:$B$252,$A29,'Entrate - Altri costi'!$C$6:$C$252,F$2)","v":0},{"$f":"SUMIFS('Entrate - Altri costi'!$AE$6:$AE$252,'Entrate - Altri costi'!$B$6:$B$252,$A29,'Entrate - Altri costi'!$C$6:$C$252,F$2)","v":0},0,{"$f":"SUMIFS('Entrate - Altri costi'!$W$6:$W$252,'Entrate - Altri costi'!$B$6:$B$252,$A29,'Entrate - Altri costi'!$C$6:$C$252,I$2)","v":0},{"$f":"SUMIFS('Entrate - Altri costi'!$AE$6:$AE$252,'Entrate - Altri costi'!$B$6:$B$252,$A29,'Entrate - Altri costi'!$C$6:$C$252,I$2)","v":0},0,{"$f":"SUMIFS('Entrate - Altri costi'!$W$6:$W$252,'Entrate - Altri costi'!$B$6:$B$252,$A29,'Entrate - Altri costi'!$C$6:$C$252,L$2)","v":0},{"$f":"SUMIFS('Entrate - Altri costi'!$AE$6:$AE$252,'Entrate - Altri costi'!$B$6:$B$252,$A29,'Entrate - Altri costi'!$C$6:$C$252,L$2)","v":0},0,{"$f":"SUMIFS('Entrate - Altri costi'!$W$6:$W$252,'Entrate - Altri costi'!$B$6:$B$252,$A29,'Entrate - Altri costi'!$C$6:$C$252,O$2)","v":0},{"$f":"SUMIFS('Entrate - Altri costi'!$AE$6:$AE$252,'Entrate - Altri costi'!$B$6:$B$252,$A29,'Entrate - Altri costi'!$C$6:$C$252,O$2)","v":0},0,0,0]
[null,"TOTALE ENTRATE PROPRIE",{"$f":"SUM(C27:C29)","v":0},0,0,{"$f":"SUM(F27:F29)","v":0},0,0,0,0,0,0,0,0,0,0,0,0,0,0]
["E5 - ALTRE ENTRATE","ALTRE ENTRATE"]
["E51 - Quote associative, offerte, erogazioni e liberalità","Quote associative, offerte, erogazioni e liberalità",0,{"$f":"SUMIFS('Entrate - Altri costi'!$W$6:$W$252,'Entrate - Altri costi'!$B$6:$B$252,$A32,'Entrate - Altri costi'!$C$6:$C$252,C$2)","v":0},{"$f":"SUMIFS('Entrate - Altri costi'!$AE$6:$AE$252,'Entrate - Altri costi'!$B$6:$B$252,$A32,'Entrate - Altri costi'!$C$6:$C$252,C$2)","v":0},0,{"$f":"SUMIFS('Entrate - Altri costi'!$W$6:$W$252,'Entrate - Altri costi'!$B$6:$B$252,$A32,'Entrate - Altri costi'!$C$6:$C$252,F$2)","v":0},{"$f":"SUMIFS('Entrate - Altri costi'!$AE$6:$AE$252,'Entrate - Altri costi'!$B$6:$B$252,$A32,'Entrate - Altri costi'!$C$6:$C$252,F$2)","v":0},0,{"$f":"SUMIFS('Entrate - Altri costi'!$W$6:$W$252,'Entrate - Altri costi'!$B$6:$B$252,$A32,'Entrate - Altri costi'!$C$6:$C$252,I$2)","v":0},{"$f":"SUMIFS('Entrate - Altri costi'!$AE$6:$AE$252,'Entrate - Altri costi'!$B$6:$B$252,$A32,'Entrate - Altri costi'!$C$6:$C$252,I$2)","v":0},0,{"$f":"SUMIFS('Entrate - Altri costi'!$W$6:$W$252,'Entrate - Altri costi'!$B$6:$B$252,$A32,'Entrate - Altri costi'!$C$6:$C$252,L$2)","v":0},{"$f":"SUMIFS('Entrate - Altri costi'!$AE$6:$AE$252,'Entrate - Altri costi'!$B$6:$B$252,$A32,'Entrate - Altri costi'!$C$6:$C$252,L$2)","v":0},0,{"$f":"SUMIFS('Entrate - Altri costi'!$W$6:$W$252,'Entrate - Altri costi'!$B$6:$B$252,$A32,'Entrate - Altri costi'!$C$6:$C$252,O$2)","v":0},{"$f":"SUMIFS('Entrate - Altri costi'!$AE$6:$AE$252,'Entrate - Altri costi'!$B$6:$B$252,$A32,'Entrate - Altri costi'!$C$6:$C$252,O$2)","v":0},{"$f":"SUM(C32+F32+I32+L32+O32)","v":0},0,0]
["E52 - Altro","Altro (specificare____________________)",0,{"$f":"SUMIFS('Entrate - Altri costi'!$W$6:$W$252,'Entrate - Altri costi'!$B$6:$B$252,$A33,'Entrate - Altri costi'!$C$6:$C$252,C$2)","v":0},{"$f":"SUMIFS('Entrate - Altri costi'!$AE$6:$AE$252,'Entrate - Altri costi'!$B$6:$B$252,$A33,'Entrate - Altri costi'!$C$6:$C$252,C$2)","v":0},0,{"$f":"SUMIFS('Entrate - Altri costi'!$W$6:$W$252,'Entrate - Altri costi'!$B$6:$B$252,$A33,'Entrate - Altri costi'!$C$6:$C$252,F$2)","v":0},{"$f":"SUMIFS('Entrate - Altri costi'!$AE$6:$AE$252,'Entrate - Altri costi'!$B$6:$B$252,$A33,'Entrate - Altri costi'!$C$6:$C$252,F$2)","v":0},0,{"$f":"SUMIFS('Entrate - Altri costi'!$W$6:$W$252,'Entrate - Altri costi'!$B$6:$B$252,$A33,'Entrate - Altri costi'!$C$6:$C$252,I$2)","v":0},{"$f":"SUMIFS('Entrate - Altri costi'!$AE$6:$AE$252,'Entrate - Altri costi'!$B$6:$B$252,$A33,'Entrate - Altri costi'!$C$6:$C$252,I$2)","v":0},0,{"$f":"SUMIFS('Entrate - Altri costi'!$W$6:$W$252,'Entrate - Altri costi'!$B$6:$B$252,$A33,'Entrate - Altri costi'!$C$6:$C$252,L$2)","v":0},{"$f":"SUMIFS('Entrate - Altri costi'!$AE$6:$AE$252,'Entrate - Altri costi'!$B$6:$B$252,$A33,'Entrate - Altri costi'!$C$6:$C$252,L$2)","v":0},0,{"$f":"SUMIFS('Entrate - Altri costi'!$W$6:$W$252,'Entrate - Altri costi'!$B$6:$B$252,$A33,'Entrate - Altri costi'!$C$6:$C$252,O$2)","v":0},{"$f":"SUMIFS('Entrate - Altri costi'!$AE$6:$AE$252,'Entrate - Altri costi'!$B$6:$B$252,$A33,'Entrate - Altri costi'!$C$6:$C$252,O$2)","v":0},0,0,0]
[null,"TOTALE ALTRE ENTRATE",{"$f":"SUM(C32:C33)","v":0},0,0,0,0,{"$f":"SUM(H32:H33)","v":0},0,0,{"$f":"SUM(K32:K33)","v":0},0,0,{"$f":"SUM(N32:N33)","v":0},0,0,{"$f":"SUM(Q32:Q33)","v":0},0,0,0]
[null,"TOTALE COMPLESSIVO ENTRATE",{"$f":"C34+C30+C25+C21+C13","v":0},0,0,{"$f":"F34+F30+F25+F21+F13","v":0},0,0,0,0,0,0,0,0,0,0,0,0,0,0]
[]
[null,"COSTI","Importi\n(euro)","Importi\n(euro)","Importi\n(euro)","Importi\n(euro)","Importi\n(euro)","Importi\n(euro)","Importi\n(euro)","Importi\n(euro)","Importi\n(euro)","Importi\n(euro)","Importi\n(euro)","Importi\n(euro)","Importi\n(euro)","Importi\n(euro)","Importi\n(euro)","Importi\n(euro)","Importi\n(euro)","Importi\n(euro)"]
["U1 - COSTI DEL PERSONALE","COSTI DEL PERSONALE\n(artisti, tecnici, amministrativi)"]
["U11 - Responsabile Artistico - Organizzativo","Responsabile Artistico - Organizzativo",0,{"$f":"SUMIFS(Personale!$Y$8:$Y$122,Personale!$B$8:$B$122,$A39,Personale!$C$8:$C$122,C$2)","v":0},{"$f":"SUMIFS(Personale!$AG$8:$AG$122,Personale!$B$8:$B$122,$A39,Personale!$C$8:$C$122,C$2)","v":0},0,{"$f":"SUMIFS(Personale!$Y$8:$Y$122,Personale!$B$8:$B$122,$A39,Personale!$C$8:$C$122,F$2)","v":0},{"$f":"SUMIFS(Personale!$AG$8:$AG$122,Personale!$B$8:$B$122,$A39,Personale!$C$8:$C$122,F$2)","v":0},0,{"$f":"SUMIFS(Personale!$Y$8:$Y$122,Personale!$B$8:$B$122,$A39,Personale!$C$8:$C$122,I$2)","v":0},{"$f":"SUMIFS(Personale!$AG$8:$AG$122,Personale!$B$8:$B$122,$A39,Personale!$C$8:$C$122,I$2)","v":0},0,{"$f":"SUMIFS(Personale!$Y$8:$Y$122,Personale!$B$8:$B$122,$A39,Personale!$C$8:$C$122,L$2)","v":0},{"$f":"SUMIFS(Personale!$AG$8:$AG$122,Personale!$B$8:$B$122,$A39,Personale!$C$8:$C$122,L$2)","v":0},0,{"$f":"SUMIFS(Personale!$Y$8:$Y$122,Personale!$B$8:$B$122,$A39,Personale!$C$8:$C$122,O$2)","v":0},{"$f":"SUMIFS(Personale!$AG$8:$AG$122,Personale!$B$8:$B$122,$A39,Personale!$C$8:$C$122,O$2)","v":0},{"$f":"SUM(C39+F39+I39+L39+O39)","v":0},{"$f":"SUM(D39+G39+J39+M39+P39)","v":0},{"$f":"SUM(E39+H39+K39+N39+Q39)","v":0}]
["U12 - Personale Artistico - Esperti","Personale Artistico - Esperti",0,{"$f":"SUMIFS(Personale!$Y$8:$Y$122,Personale!$B$8:$B$122,$A40,Personale!$C$8:$C$122,C$2)","v":0},{"$f":"SUMIFS(Personale!$AG$8:$AG$122,Personale!$B$8:$B$122,$A40,Personale!$C$8:$C$122,C$2)","v":0},0,{"$f":"SUMIFS(Personale!$Y$8:$Y$122,Personale!$B$8:$B$122,$A40,Personale!$C$8:$C$122,F$2)","v":0},{"$f":"SUMIFS(Personale!$AG$8:$AG$122,Personale!$B$8:$B$122,$A40,Personale!$C$8:$C$122,F$2)","v":0},0,{"$f":"SUMIFS(Personale!$Y$8:$Y$122,Personale!$B$8:$B$122,$A40,Personale!$C$8:$C$122,I$2)","v":0},{"$f":"SUMIFS(Personale!$AG$8:$AG$122,Personale!$B$8:$B$122,$A40,Personale!$C$8:$C$122,I$2)","v":0},0,{"$f":"SUMIFS(Personale!$Y$8:$Y$122,Personale!$B$8:$B$122,$A40,Personale!$C$8:$C$122,L$2)","v":0},{"$f":"SUMIFS(Personale!$AG$8:$AG$122,Personale!$B$8:$B$122,$A40,Personale!$C$8:$C$122,L$2)","v":0},0,{"$f":"SUMIFS(Personale!$Y$8:$Y$122,Personale!$B$8:$B$122,$A40,Personale!$C$8:$C$122,O$2)","v":0},{"$f":"SUMIFS(Personale!$AG$8:$AG$122,Personale!$B$8:$B$122,$A40,Personale!$C$8:$C$122,O$2)","v":0},0,0,0]
["U13 - Personale Tecnico","Personale Tecnico",0,{"$f":"SUMIFS(Personale!$Y$8:$Y$122,Personale!$B$8:$B$122,$A41,Personale!$C$8:$C$122,C$2)","v":0},{"$f":"SUMIFS(Personale!$AG$8:$AG$122,Personale!$B$8:$B$122,$A41,Personale!$C$8:$C$122,C$2)","v":0},0,{"$f":"SUMIFS(Personale!$Y$8:$Y$122,Personale!$B$8:$B$122,$A41,Personale!$C$8:$C$122,F$2)","v":0},{"$f":"SUMIFS(Personale!$AG$8:$AG$122,Personale!$B$8:$B$122,$A41,Personale!$C$8:$C$122,F$2)","v":0},0,{"$f":"SUMIFS(Personale!$Y$8:$Y$122,Personale!$B$8:$B$122,$A41,Personale!$C$8:$C$122,I$2)","v":0},{"$f":"SUMIFS(Personale!$AG$8:$AG$122,Personale!$B$8:$B$122,$A41,Personale!$C$8:$C$122,I$2)","v":0},0,{"$f":"SUMIFS(Personale!$Y$8:$Y$122,Personale!$B$8:$B$122,$A41,Personale!$C$8:$C$122,L$2)","v":0},{"$f":"SUMIFS(Personale!$AG$8:$AG$122,Personale!$B$8:$B$122,$A41,Personale!$C$8:$C$122,L$2)","v":0},0,{"$f":"SUMIFS(Personale!$Y$8:$Y$122,Personale!$B$8:$B$122,$A41,Personale!$C$8:$C$122,O$2)","v":0},{"$f":"SUMIFS(Personale!$AG$8:$AG$122,Personale!$B$8:$B$122,$A41,Personale!$C$8:$C$122,O$2)","v":0},0,0,0]
["U14 - Oneri sociali totali per il suddetto personale","Oneri sociali totali per il suddetto personale",0,{"$f":"SUMIFS(Personale!$X$8:$X122,Personale!$B$8:$B122,$A39,Personale!$C$8:$C122,C$2)+SUMIFS(Personale!$X$8:$X122,Personale!$B$8:$B122,$A40,Personale!$C$8:$C122,C$2)+SUMIFS(Personale!$X$8:$X122,Personale!$B$8:$B122,$A41,Personale!$C$8:$C122,C$2)","v":0},{"$f":"SUMIFS(Personale!$AH$8:$AH$122,Personale!$B$8:$B$122,$A39,Personale!$C$8:$C$122,C$2)+SUMIFS(Personale!$AH$8:$AH$122,Personale!$B$8:$B$122,$A40,Personale!$C$8:$C$122,C$2)+SUMIFS(Personale!$AH$8:$AH$122,Personale!$B$8:$B$122,$A41,Personale!$C$8:$C$122,C$2)","v":0},0,{"$f":"SUMIFS(Personale!$X$8:$X122,Personale!$B$8:$B122,$A39,Personale!$C$8:$C122,F$2)+SUMIFS(Personale!$X$8:$X122,Personale!$B$8:$B122,$A40,Personale!$C$8:$C122,F$2)+SUMIFS(Personale!$X$8:$X122,Personale!$B$8:$B122,$A41,Personale!$C$8:$C122,F$2)","v":0},{"$f":"SUMIFS(Personale!$AH$8:$AH$122,Personale!$B$8:$B$122,$A39,Personale!$C$8:$C$122,F$2)+SUMIFS(Personale!$AH$8:$AH$122,Personale!$B$8:$B$122,$A40,Personale!$C$8:$C$122,F$2)+SUMIFS(Personale!$AH$8:$AH$122,Personale!$B$8:$B$122,$A41,Personale!$C$8:$C$122,F$2)","v":0},0,{"$f":"SUMIFS(Personale!$X$8:$X122,Personale!$B$8:$B122,$A39,Personale!$C$8:$C122,I$2)+SUMIFS(Personale!$X$8:$X122,Personale!$B$8:$B122,$A40,Personale!$C$8:$C122,I$2)+SUMIFS(Personale!$X$8:$X122,Personale!$B$8:$B122,$A41,Personale!$C$8:$C122,I$2)","v":0},{"$f":"SUMIFS(Personale!$AH$8:$AH$122,Personale!$B$8:$B$122,$A39,Personale!$C$8:$C$122,I$2)+SUMIFS(Personale!$AH$8:$AH$122,Personale!$B$8:$B$122,$A40,Personale!$C$8:$C$122,I$2)+SUMIFS(Personale!$AH$8:$AH$122,Personale!$B$8:$B$122,$A41,Personale!$C$8:$C$122,I$2)","v":0},0,{"$f":"SUMIFS(Personale!$X$8:$X122,Personale!$B$8:$B122,$A39,Personale!$C$8:$C122,L$2)+SUMIFS(Personale!$X$8:$X122,Personale!$B$8:$B122,$A40,Personale!$C$8:$C122,L$2)+SUMIFS(Personale!$X$8:$X122,Personale!$B$8:$B122,$A41,Personale!$C$8:$C122,L$2)","v":0},{"$f":"SUMIFS(Personale!$AH$8:$AH$122,Personale!$B$8:$B$122,$A39,Personale!$C$8:$C$122,L$2)+SUMIFS(Personale!$AH$8:$AH$122,Personale!$B$8:$B$122,$A40,Personale!$C$8:$C$122,L$2)+SUMIFS(Personale!$AH$8:$AH$122,Personale!$B$8:$B$122,$A41,Personale!$C$8:$C$122,L$2)","v":0},0,{"$f":"SUMIFS(Personale!$X$8:$X122,Personale!$B$8:$B122,$A39,Personale!$C$8:$C122,O$2)+SUMIFS(Personale!$X$8:$X122,Personale!$B$8:$B122,$A40,Personale!$C$8:$C122,O$2)+SUMIFS(Personale!$X$8:$X122,Personale!$B$8:$B122,$A41,Personale!$C$8:$C122,O$2)","v":0},{"$f":"SUMIFS(Personale!$AH$8:$AH$122,Personale!$B$8:$B$122,$A39,Personale!$C$8:$C$122,O$2)+SUMIFS(Personale!$AH$8:$AH$122,Personale!$B$8:$B$122,$A40,Personale!$C$8:$C$122,O$2)+SUMIFS(Personale!$AH$8:$AH$122,Personale!$B$8:$B$122,$A41,Personale!$C$8:$C$122,O$2)","v":0},0,0,0]
["U15 - Personale amministrativo","Personale amministrativo (soggetto al limite max 20% dei costi generali sull'ammontare degli altri costi ammissibili di progetto)",0,{"$f":"SUMIFS(Personale!$Y$8:$Y$122,Personale!$B$8:$B$122,$A43,Personale!$C$8:$C$122,C$2)","v":0},{"$f":"SUMIFS(Personale!$AG$8:$AG$122,Personale!$B$8:$B$122,$A43,Personale!$C$8:$C$122,C$2)","v":0},0,{"$f":"SUMIFS(Personale!$Y$8:$Y$122,Personale!$B$8:$B$122,$A43,Personale!$C$8:$C$122,F$2)","v":0},{"$f":"SUMIFS(Personale!$AG$8:$AG$122,Personale!$B$8:$B$122,$A43,Personale!$C$8:$C$122,F$2)","v":0},0,{"$f":"SUMIFS(Personale!$Y$8:$Y$122,Personale!$B$8:$B$122,$A43,Personale!$C$8:$C$122,I$2)","v":0},{"$f":"SUMIFS(Personale!$AG$8:$AG$122,Personale!$B$8:$B$122,$A43,Personale!$C$8:$C$122,I$2)","v":0},0,{"$f":"SUMIFS(Personale!$Y$8:$Y$122,Personale!$B$8:$B$122,$A43,Personale!$C$8:$C$122,L$2)","v":0},{"$f":"SUMIFS(Personale!$AG$8:$AG$122,Personale!$B$8:$B$122,$A43,Personale!$C$8:$C$122,L$2)","v":0},0,{"$f":"SUMIFS(Personale!$Y$8:$Y$122,Personale!$B$8:$B$122,$A43,Personale!$C$8:$C$122,O$2)","v":0},{"$f":"SUMIFS(Personale!$AG$8:$AG$122,Personale!$B$8:$B$122,$A43,Personale!$C$8:$C$122,O$2)","v":0},0,0,0]
["U16 - Oneri sociali totali per il suddetto personale amministrativo","Oneri sociali totali per il suddetto personale amministrativo (soggetto al limite max 20% dei costi generali sull'ammontare degli altri costi ammissibili di progetto)",0,{"$f":"SUMIFS(Personale!$X$8:$X$122,Personale!$B$8:$B$122,$A43,Personale!$C$8:$C$122,C$2)","v":0},{"$f":"SUMIFS(Personale!$AH$8:$AH$122,Personale!$B$8:$B$122,$A43,Personale!$C$8:$C$122,C$2)","v":0},0,{"$f":"SUMIFS(Personale!$X$8:$X$122,Personale!$B$8:$B$122,$A43,Personale!$C$8:$C$122,F$2)","v":0},{"$f":"SUMIFS(Personale!$AH$8:$AH$122,Personale!$B$8:$B$122,$A43,Personale!$C$8:$C$122,F$2)","v":0},0,{"$f":"SUMIFS(Personale!$X$8:$X$122,Personale!$B$8:$B$122,$A43,Personale!$C$8:$C$122,I$2)","v":0},{"$f":"SUMIFS(Personale!$AH$8:$AH$122,Personale!$B$8:$B$122,$A43,Personale!$C$8:$C$122,I$2)","v":0},0,{"$f":"SUMIFS(Personale!$X$8:$X$122,Personale!$B$8:$B$122,$A43,Personale!$C$8:$C$122,L$2)","v":0},{"$f":"SUMIFS(Personale!$AH$8:$AH$122,Personale!$B$8:$B$122,$A43,Personale!$C$8:$C$122,L$2)","v":0},0,{"$f":"SUMIFS(Personale!$X$8:$X$122,Personale!$B$8:$B$122,$A43,Personale!$C$8:$C$122,O$2)","v":0},{"$f":"SUMIFS(Personale!$AH$8:$AH$122,Personale!$B$8:$B$122,$A43,Personale!$C$8:$C$122,O$2)","v":0},0,0,0]
[null,"TOTALE COSTO DEL PERSONALE",{"$f":"SUM(C39:C44)","v":0},{"$f":"SUM(D39:D44)","v":0},0,{"$f":"SUM(F39:F44)","v":0},{"$f":"SUM(G39:G44)","v":0},0,{"$f":"SUM(I39:I44)","v":0},{"$f":"SUM(J39:J44)","v":0},0,{"$f":"SUM(L39:L44)","v":0},{"$f":"SUM(M39:M44)","v":0},0,{"$f":"SUM(O39:O44)","v":0},{"$f":"SUM(P39:P44)","v":0},0,0,0,0]
["U2 - COSTI PER COMPENSI PROFESSIONALI","COSTI PER COMPENSI PROFESSIONALI"]
["U21 - Responsabile Artistico - Organizzativo","Responsabile Artistico - Organizzativo",0,{"$f":"SUMIFS(Personale!$Y$8:$Y$122,Personale!$B$8:$B$122,$A47,Personale!$C$8:$C$122,C$2)","v":0},{"$f":"SUMIFS(Personale!$AG$8:$AG$122,Personale!$B$8:$B$122,$A47,Personale!$C$8:$C$122,C$2)","v":0},0,{"$f":"SUMIFS(Personale!$Y$8:$Y$122,Personale!$B$8:$B$122,$A47,Personale!$C$8:$C$122,F$2)","v":0},{"$f":"SUMIFS(Personale!$AG$8:$AG$122,Personale!$B$8:$B$122,$A47,Personale!$C$8:$C$122,F$2)","v":0},0,{"$f":"SUMIFS(Personale!$Y$8:$Y$122,Personale!$B$8:$B$122,$A47,Personale!$C$8:$C$122,I$2)","v":0},{"$f":"SUMIFS(Personale!$AG$8:$AG$122,Personale!$B$8:$B$122,$A47,Personale!$C$8:$C$122,I$2)","v":0},0,{"$f":"SUMIFS(Personale!$Y$8:$Y$122,Personale!$B$8:$B$122,$A47,Personale!$C$8:$C$122,L$2)","v":0},{"$f":"SUMIFS(Personale!$AG$8:$AG$122,Personale!$B$8:$B$122,$A47,Personale!$C$8:$C$122,L$2)","v":0},0,{"$f":"SUMIFS(Personale!$Y$8:$Y$122,Personale!$B$8:$B$122,$A47,Personale!$C$8:$C$122,O$2)","v":0},{"$f":"SUMIFS(Personale!$AG$8:$AG$122,Personale!$B$8:$B$122,$A47,Personale!$C$8:$C$122,O$2)","v":0},{"$f":"SUM(C47+F47+I47+L47+O47)","v":0},{"$f":"SUM(D47+G47+J47+M47+P47)","v":0},{"$f":"SUM(E47+H47+K47+N47+Q47)","v":0}]
["U22 - Profilo Artistico","Profilo Artistico",0,{"$f":"SUMIFS(Personale!$Y$8:$Y$122,Personale!$B$8:$B$122,$A48,Personale!$C$8:$C$122,C$2)","v":0},{"$f":"SUMIFS(Personale!$AG$8:$AG$122,Personale!$B$8:$B$122,$A48,Personale!$C$8:$C$122,C$2)","v":0},0,{"$f":"SUMIFS(Personale!$Y$8:$Y$122,Personale!$B$8:$B$122,$A48,Personale!$C$8:$C$122,F$2)","v":0},{"$f":"SUMIFS(Personale!$AG$8:$AG$122,Personale!$B$8:$B$122,$A48,Personale!$C$8:$C$122,F$2)","v":0},0,{"$f":"SUMIFS(Personale!$Y$8:$Y$122,Personale!$B$8:$B$122,$A48,Personale!$C$8:$C$122,I$2)","v":0},{"$f":"SUMIFS(Personale!$AG$8:$AG$122,Personale!$B$8:$B$122,$A48,Personale!$C$8:$C$122,I$2)","v":0},0,{"$f":"SUMIFS(Personale!$Y$8:$Y$122,Personale!$B$8:$B$122,$A48,Personale!$C$8:$C$122,L$2)","v":0},{"$f":"SUMIFS(Personale!$AG$8:$AG$122,Personale!$B$8:$B$122,$A48,Personale!$C$8:$C$122,L$2)","v":0},0,{"$f":"SUMIFS(Personale!$Y$8:$Y$122,Personale!$B$8:$B$122,$A48,Personale!$C$8:$C$122,O$2)","v":0},{"$f":"SUMIFS(Personale!$AG$8:$AG$122,Personale!$B$8:$B$122,$A48,Personale!$C$8:$C$122,O$2)","v":0},0,0,0]
["U23 - Profilo Tecnico","Profilo Tecnico",0,{"$f":"SUMIFS(Personale!$Y$8:$Y$122,Personale!$B$8:$B$122,$A49,Personale!$C$8:$C$122,C$2)","v":0},{"$f":"SUMIFS(Personale!$AG$8:$AG$122,Personale!$B$8:$B$122,$A49,Personale!$C$8:$C$122,C$2)","v":0},0,{"$f":"SUMIFS(Personale!$Y$8:$Y$122,Personale!$B$8:$B$122,$A49,Personale!$C$8:$C$122,F$2)","v":0},{"$f":"SUMIFS(Personale!$AG$8:$AG$122,Personale!$B$8:$B$122,$A49,Personale!$C$8:$C$122,F$2)","v":0},null,{"$f":"SUMIFS(Personale!$Y$8:$Y$122,Personale!$B$8:$B$122,$A49,Personale!$C$8:$C$122,I$2)","v":0},{"$f":"SUMIFS(Personale!$AG$8:$AG$122,Personale!$B$8:$B$122,$A49,Personale!$C$8:$C$122,I$2)","v":0},0,{"$f":"SUMIFS(Personale!$Y$8:$Y$122,Personale!$B$8:$B$122,$A49,Personale!$C$8:$C$122,L$2)","v":0},{"$f":"SUMIFS(Personale!$AG$8:$AG$122,Personale!$B$8:$B$122,$A49,Personale!$C$8:$C$122,L$2)","v":0},0,{"$f":"SUMIFS(Personale!$Y$8:$Y$122,Personale!$B$8:$B$122,$A49,Personale!$C$8:$C$122,O$2)","v":0},{"$f":"SUMIFS(Personale!$AG$8:$AG$122,Personale!$B$8:$B$122,$A49,Personale!$C$8:$C$122,O$2)","v":0},0,0,0]
["U24 - Oneri sociali totali per il suddetto personale","Oneri sociali totali per il suddetto personale",0,{"$f":"SUMIFS(Personale!$X$8:$X$122,Personale!$B$8:$B$122,$A47,Personale!$C$8:$C$122,C$2)+SUMIFS(Personale!$X$8:$X$122,Personale!$B$8:$B$122,$A48,Personale!$C$8:$C$122,C$2)+SUMIFS(Personale!$X$8:$X$122,Personale!$B$8:$B$122,$A49,Personale!$C$8:$C$122,C$2)","v":0},{"$f":"SUMIFS(Personale!$AH$8:$AH$122,Personale!$B$8:$B$122,$A47,Personale!$C$8:$C$122,C$2)+SUMIFS(Personale!$AH$8:$AH$122,Personale!$B$8:$B$122,$A48,Personale!$C$8:$C$122,C$2)+SUMIFS(Personale!$AH$8:$AH$122,Personale!$B$8:$B$122,$A49,Personale!$C$8:$C$122,C$2)","v":0},0,{"$f":"SUMIFS(Personale!$X$8:$X$122,Personale!$B$8:$B$122,$A47,Personale!$C$8:$C$122,F$2)+SUMIFS(Personale!$X$8:$X$122,Personale!$B$8:$B$122,$A48,Personale!$C$8:$C$122,F$2)+SUMIFS(Personale!$X$8:$X$122,Personale!$B$8:$B$122,$A49,Personale!$C$8:$C$122,F$2)","v":0},{"$f":"SUMIFS(Personale!$AH$8:$AH$122,Personale!$B$8:$B$122,$A47,Personale!$C$8:$C$122,F$2)+SUMIFS(Personale!$AH$8:$AH$122,Personale!$B$8:$B$122,$A48,Personale!$C$8:$C$122,F$2)+SUMIFS(Personale!$AH$8:$AH$122,Personale!$B$8:$B$122,$A49,Personale!$C$8:$C$122,F$2)","v":0},0,{"$f":"SUMIFS(Personale!$X$8:$X$122,Personale!$B$8:$B$122,$A47,Personale!$C$8:$C$122,I$2)+SUMIFS(Personale!$X$8:$X$122,Personale!$B$8:$B$122,$A48,Personale!$C$8:$C$122,I$2)+SUMIFS(Personale!$X$8:$X$122,Personale!$B$8:$B$122,$A49,Personale!$C$8:$C$122,I$2)","v":0},{"$f":"SUMIFS(Personale!$AH$8:$AH$122,Personale!$B$8:$B$122,$A47,Personale!$C$8:$C$122,I$2)+SUMIFS(Personale!$AH$8:$AH$122,Personale!$B$8:$B$122,$A48,Personale!$C$8:$C$122,I$2)+SUMIFS(Personale!$AH$8:$AH$122,Personale!$B$8:$B$122,$A49,Personale!$C$8:$C$122,I$2)","v":0},0,{"$f":"SUMIFS(Personale!$X$8:$X$122,Personale!$B$8:$B$122,$A47,Personale!$C$8:$C$122,L$2)+SUMIFS(Personale!$X$8:$X$122,Personale!$B$8:$B$122,$A48,Personale!$C$8:$C$122,L$2)+SUMIFS(Personale!$X$8:$X$122,Personale!$B$8:$B$122,$A49,Personale!$C$8:$C$122,L$2)","v":0},{"$f":"SUMIFS(Personale!$AH$8:$AH$122,Personale!$B$8:$B$122,$A47,Personale!$C$8:$C$122,L$2)+SUMIFS(Personale!$AH$8:$AH$122,Personale!$B$8:$B$122,$A48,Personale!$C$8:$C$122,L$2)+SUMIFS(Personale!$AH$8:$AH$122,Personale!$B$8:$B$122,$A49,Personale!$C$8:$C$122,L$2)","v":0},0,{"$f":"SUMIFS(Personale!$X$8:$X$122,Personale!$B$8:$B$122,$A47,Personale!$C$8:$C$122,O$2)+SUMIFS(Personale!$X$8:$X$122,Personale!$B$8:$B$122,$A48,Personale!$C$8:$C$122,O$2)+SUMIFS(Personale!$X$8:$X$122,Personale!$B$8:$B$122,$A49,Personale!$C$8:$C$122,O$2)","v":0},{"$f":"SUMIFS(Personale!$AH$8:$AH$122,Personale!$B$8:$B$122,$A47,Personale!$C$8:$C$122,O$2)+SUMIFS(Personale!$AH$8:$AH$122,Personale!$B$8:$B$122,$A48,Personale!$C$8:$C$122,O$2)+SUMIFS(Personale!$AH$8:$AH$122,Personale!$B$8:$B$122,$A49,Personale!$C$8:$C$122,O$2)","v":0},0,0,0]
["U25 - Profilo amministrativo","Profilo amministrativo (soggetto al limite max 20% dei costi generali sull'ammontare degli altri costi ammissibili di progetto)",0,{"$f":"SUMIFS(Personale!$Y$8:$Y$122,Personale!$B$8:$B$122,$A51,Personale!$C$8:$C$122,C$2)","v":0},{"$f":"SUMIFS(Personale!$AG$8:$AG$122,Personale!$B$8:$B$122,$A51,Personale!$C$8:$C$122,C$2)","v":0},0,{"$f":"SUMIFS(Personale!$Y$8:$Y$122,Personale!$B$8:$B$122,$A51,Personale!$C$8:$C$122,F$2)","v":0},{"$f":"SUMIFS(Personale!$AG$8:$AG$122,Personale!$B$8:$B$122,$A51,Personale!$C$8:$C$122,F$2)","v":0},0,{"$f":"SUMIFS(Personale!$Y$8:$Y$122,Personale!$B$8:$B$122,$A51,Personale!$C$8:$C$122,I$2)","v":0},{"$f":"SUMIFS(Personale!$AG$8:$AG$122,Personale!$B$8:$B$122,$A51,Personale!$C$8:$C$122,I$2)","v":0},0,{"$f":"SUMIFS(Personale!$Y$8:$Y$122,Personale!$B$8:$B$122,$A51,Personale!$C$8:$C$122,L$2)","v":0},{"$f":"SUMIFS(Personale!$AG$8:$AG$122,Personale!$B$8:$B$122,$A51,Personale!$C$8:$C$122,L$2)","v":0},0,{"$f":"SUMIFS(Personale!$Y$8:$Y$122,Personale!$B$8:$B$122,$A51,Personale!$C$8:$C$122,O$2)","v":0},{"$f":"SUMIFS(Personale!$AG$8:$AG$122,Personale!$B$8:$B$122,$A51,Personale!$C$8:$C$122,O$2)","v":0},0,0,0]
["U26 - Oneri sociali totali per il suddetto personale amministrativo","Oneri sociali totali per il suddetto personale amministrativo (soggetto al limite max 20% dei costi generali sull'ammontare degli altri costi ammissibili di progetto)",0,{"$f":"SUMIFS(Personale!$X$8:$X133,Personale!$B$8:$B133,$A51,Personale!$C$8:$C133,C$2)","v":0},{"$f":"SUMIFS(Personale!$AH$8:$AH$122,Personale!$B$8:$B$122,$A51,Personale!$C$8:$C$122,C$2)","v":0},0,{"$f":"SUMIFS(Personale!$X$8:$X133,Personale!$B$8:$B133,$A51,Personale!$C$8:$C133,F$2)","v":0},{"$f":"SUMIFS(Personale!$AH$8:$AH$122,Personale!$B$8:$B$122,$A51,Personale!$C$8:$C$122,F$2)","v":0},0,{"$f":"SUMIFS(Personale!$X$8:$X133,Personale!$B$8:$B133,$A51,Personale!$C$8:$C133,I$2)","v":0},{"$f":"SUMIFS(Personale!$AH$8:$AH$122,Personale!$B$8:$B$122,$A51,Personale!$C$8:$C$122,I$2)","v":0},0,{"$f":"SUMIFS(Personale!$X$8:$X133,Personale!$B$8:$B133,$A51,Personale!$C$8:$C133,L$2)","v":0},{"$f":"SUMIFS(Personale!$AH$8:$AH$122,Personale!$B$8:$B$122,$A51,Personale!$C$8:$C$122,L$2)","v":0},0,{"$f":"SUMIFS(Personale!$X$8:$X133,Personale!$B$8:$B133,$A51,Personale!$C$8:$C133,O$2)","v":0},{"$f":"SUMIFS(Personale!$AH$8:$AH$122,Personale!$B$8:$B$122,$A51,Personale!$C$8:$C$122,O$2)","v":0},0,0,0]
[null,"TOTALE COSTO COMPENSI PROFESSIONALI",{"$f":"SUM(C47:C51)","v":0},{"$f":"SUM(D47:D52)","v":0},{"$f":"SUM(E47:E52)","v":0},{"$f":"SUM(F47:F51)","v":0},{"$f":"SUM(G47:G52)","v":0},{"$f":"SUM(H47:H52)","v":0},{"$f":"SUM(I47:I51)","v":0},{"$f":"SUM(J47:J52)","v":0},{"$f":"SUM(K47:K52)","v":0},{"$f":"SUM(L47:L51)","v":0},{"$f":"SUM(M47:M52)","v":0},{"$f":"SUM(N47:N52)","v":0},{"$f":"SUM(O47:O51)","v":0},{"$f":"SUM(P47:P52)","v":0},{"$f":"SUM(Q47:Q52)","v":0},0,0,0]
["U3 - COSTI DI OSPITALITA'","COSTI DI OSPITALITA'"]
["U31 - Compensi a ospiti italiani o esteri","Compensi a ospiti italiani o esteri",0,{"$f":"SUMIFS('Entrate - Altri costi'!$W$6:$W$252,'Entrate - Altri costi'!$B$6:$B$252,$A55,'Entrate - Altri costi'!$C$6:$C$252,C$2)","v":0},{"$f":"SUMIFS('Entrate - Altri costi'!$AE$6:$AE$252,'Entrate - Altri costi'!$B$6:$B$252,$A55,'Entrate - Altri costi'!$C$6:$C$252,C$2)","v":0},0,{"$f":"SUMIFS('Entrate - Altri costi'!$W$6:$W$252,'Entrate - Altri costi'!$B$6:$B$252,$A55,'Entrate - Altri costi'!$C$6:$C$252,F$2)","v":0},{"$f":"SUMIFS('Entrate - Altri costi'!$AE$6:$AE$252,'Entrate - Altri costi'!$B$6:$B$252,$A55,'Entrate - Altri costi'!$C$6:$C$252,F$2)","v":0},0,{"$f":"SUMIFS('Entrate - Altri costi'!$W$6:$W$252,'Entrate - Altri costi'!$B$6:$B$252,$A55,'Entrate - Altri costi'!$C$6:$C$252,I$2)","v":0},{"$f":"SUMIFS('Entrate - Altri costi'!$AE$6:$AE$252,'Entrate - Altri costi'!$B$6:$B$252,$A55,'Entrate - Altri costi'!$C$6:$C$252,I$2)","v":0},0,{"$f":"SUMIFS('Entrate - Altri costi'!$W$6:$W$252,'Entrate - Altri costi'!$B$6:$B$252,$A55,'Entrate - Altri costi'!$C$6:$C$252,L$2)","v":0},{"$f":"SUMIFS('Entrate - Altri costi'!$AE$6:$AE$252,'Entrate - Altri costi'!$B$6:$B$252,$A55,'Entrate - Altri costi'!$C$6:$C$252,L$2)","v":0},0,{"$f":"SUMIFS('Entrate - Altri costi'!$W$6:$W$252,'Entrate - Altri costi'!$B$6:$B$252,$A55,'Entrate - Altri costi'!$C$6:$C$252,O$2)","v":0},{"$f":"SUMIFS('Entrate - Altri costi'!$AE$6:$AE$252,'Entrate - Altri costi'!$B$6:$B$252,$A55,'Entrate - Altri costi'!$C$6:$C$252,O$2)","v":0},{"$f":"SUM(C55+F55+I55+L55+O55)","v":0},{"$f":"SUM(D55+G55+J55+M55+P55)","v":0},{"$f":"SUM(E55+H55+K55+N55+Q55)","v":0}]
["U32 - Costi di viaggi, trasporti, alloggio, vitto, ecc., degli organismi ospitati","Costi di viaggi, trasporti, alloggio, vitto, ecc., degli organismi ospitati",0,{"$f":"SUMIFS('Entrate - Altri costi'!$W$6:$W$252,'Entrate - Altri costi'!$B$6:$B$252,$A56,'Entrate - Altri costi'!$C$6:$C$252,C$2)","v":0},{"$f":"SUMIFS('Entrate - Altri costi'!$AE$6:$AE$252,'Entrate - Altri costi'!$B$6:$B$252,$A56,'Entrate - Altri costi'!$C$6:$C$252,C$2)","v":0},0,{"$f":"SUMIFS('Entrate - Altri costi'!$W$6:$W$252,'Entrate - Altri costi'!$B$6:$B$252,$A56,'Entrate - Altri costi'!$C$6:$C$252,F$2)","v":0},{"$f":"SUMIFS('Entrate - Altri costi'!$AE$6:$AE$252,'Entrate - Altri costi'!$B$6:$B$252,$A56,'Entrate - Altri costi'!$C$6:$C$252,F$2)","v":0},0,{"$f":"SUMIFS('Entrate - Altri costi'!$W$6:$W$252,'Entrate - Altri costi'!$B$6:$B$252,$A56,'Entrate - Altri costi'!$C$6:$C$252,I$2)","v":0},{"$f":"SUMIFS('Entrate - Altri costi'!$AE$6:$AE$252,'Entrate - Altri costi'!$B$6:$B$252,$A56,'Entrate - Altri costi'!$C$6:$C$252,I$2)","v":0},0,{"$f":"SUMIFS('Entrate - Altri costi'!$W$6:$W$252,'Entrate - Altri costi'!$B$6:$B$252,$A56,'Entrate - Altri costi'!$C$6:$C$252,L$2)","v":0},{"$f":"SUMIFS('Entrate - Altri costi'!$AE$6:$AE$252,'Entrate - Altri costi'!$B$6:$B$252,$A56,'Entrate - Altri costi'!$C$6:$C$252,L$2)","v":0},0,{"$f":"SUMIFS('Entrate - Altri costi'!$W$6:$W$252,'Entrate - Altri costi'!$B$6:$B$252,$A56,'Entrate - Altri costi'!$C$6:$C$252,O$2)","v":0},{"$f":"SUMIFS('Entrate - Altri costi'!$AE$6:$AE$252,'Entrate - Altri costi'!$B$6:$B$252,$A56,'Entrate - Altri costi'!$C$6:$C$252,O$2)","v":0},0,{"$f":"SUM(D56+G56+J56+M56+P56)","v":0},0]
["U33 - Noleggio per scenografie, costumi, strumenti, ecc.","Noleggio per attrezzature, strumenti, ecc.",0,{"$f":"SUMIFS('Entrate - Altri costi'!$W$6:$W$252,'Entrate - Altri costi'!$B$6:$B$252,$A57,'Entrate - Altri costi'!$C$6:$C$252,C$2)","v":0},{"$f":"SUMIFS('Entrate - Altri costi'!$AE$6:$AE$252,'Entrate - Altri costi'!$B$6:$B$252,$A57,'Entrate - Altri costi'!$C$6:$C$252,C$2)","v":0},0,{"$f":"SUMIFS('Entrate - Altri costi'!$W$6:$W$252,'Entrate - Altri costi'!$B$6:$B$252,$A57,'Entrate - Altri costi'!$C$6:$C$252,F$2)","v":0},{"$f":"SUMIFS('Entrate - Altri costi'!$AE$6:$AE$252,'Entrate - Altri costi'!$B$6:$B$252,$A57,'Entrate - Altri costi'!$C$6:$C$252,F$2)","v":0},0,{"$f":"SUMIFS('Entrate - Altri costi'!$W$6:$W$252,'Entrate - Altri costi'!$B$6:$B$252,$A57,'Entrate - Altri costi'!$C$6:$C$252,I$2)","v":0},{"$f":"SUMIFS('Entrate - Altri costi'!$AE$6:$AE$252,'Entrate - Altri costi'!$B$6:$B$252,$A57,'Entrate - Altri costi'!$C$6:$C$252,I$2)","v":0},0,{"$f":"SUMIFS('Entrate - Altri costi'!$W$6:$W$252,'Entrate - Altri costi'!$B$6:$B$252,$A57,'Entrate - Altri costi'!$C$6:$C$252,L$2)","v":0},{"$f":"SUMIFS('Entrate - Altri costi'!$AE$6:$AE$252,'Entrate - Altri costi'!$B$6:$B$252,$A57,'Entrate - Altri costi'!$C$6:$C$252,L$2)","v":0},0,{"$f":"SUMIFS('Entrate - Altri costi'!$W$6:$W$252,'Entrate - Altri costi'!$B$6:$B$252,$A57,'Entrate - Altri costi'!$C$6:$C$252,O$2)","v":0},{"$f":"SUMIFS('Entrate - Altri costi'!$AE$6:$AE$252,'Entrate - Altri costi'!$B$6:$B$252,$A57,'Entrate - Altri costi'!$C$6:$C$252,O$2)","v":0},0,0,0]
["U34 - Acquisti strumentazione tecnica luce e suono","Acquisti strumentazione tecnica luce e suono (quota ammortamento per programma annuale)",0,{"$f":"SUMIFS('Entrate - Altri costi'!$W$6:$W$252,'Entrate - Altri costi'!$B$6:$B$252,$A58,'Entrate - Altri costi'!$C$6:$C$252,C$2)","v":0},{"$f":"SUMIFS('Entrate - Altri costi'!$AE$6:$AE$252,'Entrate - Altri costi'!$B$6:$B$252,$A58,'Entrate - Altri costi'!$C$6:$C$252,C$2)","v":0},0,{"$f":"SUMIFS('Entrate - Altri costi'!$W$6:$W$252,'Entrate - Altri costi'!$B$6:$B$252,$A58,'Entrate - Altri costi'!$C$6:$C$252,F$2)","v":0},{"$f":"SUMIFS('Entrate - Altri costi'!$AE$6:$AE$252,'Entrate - Altri costi'!$B$6:$B$252,$A58,'Entrate - Altri costi'!$C$6:$C$252,F$2)","v":0},0,{"$f":"SUMIFS('Entrate - Altri costi'!$W$6:$W$252,'Entrate - Altri costi'!$B$6:$B$252,$A58,'Entrate - Altri costi'!$C$6:$C$252,I$2)","v":0},{"$f":"SUMIFS('Entrate - Altri costi'!$AE$6:$AE$252,'Entrate - Altri costi'!$B$6:$B$252,$A58,'Entrate - Altri costi'!$C$6:$C$252,I$2)","v":0},0,{"$f":"SUMIFS('Entrate - Altri costi'!$W$6:$W$252,'Entrate - Altri costi'!$B$6:$B$252,$A58,'Entrate - Altri costi'!$C$6:$C$252,L$2)","v":0},{"$f":"SUMIFS('Entrate - Altri costi'!$AE$6:$AE$252,'Entrate - Altri costi'!$B$6:$B$252,$A58,'Entrate - Altri costi'!$C$6:$C$252,L$2)","v":0},0,{"$f":"SUMIFS('Entrate - Altri costi'!$W$6:$W$252,'Entrate - Altri costi'!$B$6:$B$252,$A58,'Entrate - Altri costi'!$C$6:$C$252,O$2)","v":0},{"$f":"SUMIFS('Entrate - Altri costi'!$AE$6:$AE$252,'Entrate - Altri costi'!$B$6:$B$252,$A58,'Entrate - Altri costi'!$C$6:$C$252,O$2)","v":0},0,0,0]
["U35 - Noleggi strumentazione tecnica luce e suono","Noleggi strumentazione tecnica luce e suono (service)",0,{"$f":"SUMIFS('Entrate - Altri costi'!$W$6:$W$252,'Entrate - Altri costi'!$B$6:$B$252,$A59,'Entrate - Altri costi'!$C$6:$C$252,C$2)","v":0},{"$f":"SUMIFS('Entrate - Altri costi'!$AE$6:$AE$252,'Entrate - Altri costi'!$B$6:$B$252,$A59,'Entrate - Altri costi'!$C$6:$C$252,C$2)","v":0},0,{"$f":"SUMIFS('Entrate - Altri costi'!$W$6:$W$252,'Entrate - Altri costi'!$B$6:$B$252,$A59,'Entrate - Altri costi'!$C$6:$C$252,F$2)","v":0},{"$f":"SUMIFS('Entrate - Altri costi'!$AE$6:$AE$252,'Entrate - Altri costi'!$B$6:$B$252,$A59,'Entrate - Altri costi'!$C$6:$C$252,F$2)","v":0},0,{"$f":"SUMIFS('Entrate - Altri costi'!$W$6:$W$252,'Entrate - Altri costi'!$B$6:$B$252,$A59,'Entrate - Altri costi'!$C$6:$C$252,I$2)","v":0},{"$f":"SUMIFS('Entrate - Altri costi'!$AE$6:$AE$252,'Entrate - Altri costi'!$B$6:$B$252,$A59,'Entrate - Altri costi'!$C$6:$C$252,I$2)","v":0},0,{"$f":"SUMIFS('Entrate - Altri costi'!$W$6:$W$252,'Entrate - Altri costi'!$B$6:$B$252,$A59,'Entrate - Altri costi'!$C$6:$C$252,L$2)","v":0},{"$f":"SUMIFS('Entrate - Altri costi'!$AE$6:$AE$252,'Entrate - Altri costi'!$B$6:$B$252,$A59,'Entrate - Altri costi'!$C$6:$C$252,L$2)","v":0},0,{"$f":"SUMIFS('Entrate - Altri costi'!$W$6:$W$252,'Entrate - Altri costi'!$B$6:$B$252,$A59,'Entrate - Altri costi'!$C$6:$C$252,O$2)","v":0},{"$f":"SUMIFS('Entrate - Altri costi'!$AE$6:$AE$252,'Entrate - Altri costi'!$B$6:$B$252,$A59,'Entrate - Altri costi'!$C$6:$C$252,O$2)","v":0},0,0,0]
["U36 - Prestazioni di terzi per allestimenti","Prestazioni di terzi per allestimenti (montaggio, smontaggio, facchinaggio, ecc. )",0,{"$f":"SUMIFS('Entrate - Altri costi'!$W$6:$W$252,'Entrate - Altri costi'!$B$6:$B$252,$A60,'Entrate - Altri costi'!$C$6:$C$252,C$2)","v":0},{"$f":"SUMIFS('Entrate - Altri costi'!$AE$6:$AE$252,'Entrate - Altri costi'!$B$6:$B$252,$A60,'Entrate - Altri costi'!$C$6:$C$252,C$2)","v":0},0,{"$f":"SUMIFS('Entrate - Altri costi'!$W$6:$W$252,'Entrate - Altri costi'!$B$6:$B$252,$A60,'Entrate - Altri costi'!$C$6:$C$252,F$2)","v":0},{"$f":"SUMIFS('Entrate - Altri costi'!$AE$6:$AE$252,'Entrate - Altri costi'!$B$6:$B$252,$A60,'Entrate - Altri costi'!$C$6:$C$252,F$2)","v":0},0,{"$f":"SUMIFS('Entrate - Altri costi'!$W$6:$W$252,'Entrate - Altri costi'!$B$6:$B$252,$A60,'Entrate - Altri costi'!$C$6:$C$252,I$2)","v":0},{"$f":"SUMIFS('Entrate - Altri costi'!$AE$6:$AE$252,'Entrate - Altri costi'!$B$6:$B$252,$A60,'Entrate - Altri costi'!$C$6:$C$252,I$2)","v":0},0,{"$f":"SUMIFS('Entrate - Altri costi'!$W$6:$W$252,'Entrate - Altri costi'!$B$6:$B$252,$A60,'Entrate - Altri costi'!$C$6:$C$252,L$2)","v":0},{"$f":"SUMIFS('Entrate - Altri costi'!$AE$6:$AE$252,'Entrate - Altri costi'!$B$6:$B$252,$A60,'Entrate - Altri costi'!$C$6:$C$252,L$2)","v":0},0,{"$f":"SUMIFS('Entrate - Altri costi'!$W$6:$W$252,'Entrate - Altri costi'!$B$6:$B$252,$A60,'Entrate - Altri costi'!$C$6:$C$252,O$2)","v":0},{"$f":"SUMIFS('Entrate - Altri costi'!$AE$6:$AE$252,'Entrate - Altri costi'!$B$6:$B$252,$A60,'Entrate - Altri costi'!$C$6:$C$252,O$2)","v":0},0,0,0]
["U37 - SIAE","SIAE",0,{"$f":"SUMIFS('Entrate - Altri costi'!$W$6:$W$252,'Entrate - Altri costi'!$B$6:$B$252,$A61,'Entrate - Altri costi'!$C$6:$C$252,C$2)","v":0},{"$f":"SUMIFS('Entrate - Altri costi'!$AE$6:$AE$252,'Entrate - Altri costi'!$B$6:$B$252,$A61,'Entrate - Altri costi'!$C$6:$C$252,C$2)","v":0},0,{"$f":"SUMIFS('Entrate - Altri costi'!$W$6:$W$252,'Entrate - Altri costi'!$B$6:$B$252,$A61,'Entrate - Altri costi'!$C$6:$C$252,F$2)","v":0},{"$f":"SUMIFS('Entrate - Altri costi'!$AE$6:$AE$252,'Entrate - Altri costi'!$B$6:$B$252,$A61,'Entrate - Altri costi'!$C$6:$C$252,F$2)","v":0},0,{"$f":"SUMIFS('Entrate - Altri costi'!$W$6:$W$252,'Entrate - Altri costi'!$B$6:$B$252,$A61,'Entrate - Altri costi'!$C$6:$C$252,I$2)","v":0},{"$f":"SUMIFS('Entrate - Altri costi'!$AE$6:$AE$252,'Entrate - Altri costi'!$B$6:$B$252,$A61,'Entrate - Altri costi'!$C$6:$C$252,I$2)","v":0},0,{"$f":"SUMIFS('Entrate - Altri costi'!$W$6:$W$252,'Entrate - Altri costi'!$B$6:$B$252,$A61,'Entrate - Altri costi'!$C$6:$C$252,L$2)","v":0},{"$f":"SUMIFS('Entrate - Altri costi'!$AE$6:$AE$252,'Entrate - Altri costi'!$B$6:$B$252,$A61,'Entrate - Altri costi'!$C$6:$C$252,L$2)","v":0},0,{"$f":"SUMIFS('Entrate - Altri costi'!$W$6:$W$252,'Entrate - Altri costi'!$B$6:$B$252,$A61,'Entrate - Altri costi'!$C$6:$C$252,O$2)","v":0},{"$f":"SUMIFS('Entrate - Altri costi'!$AE$6:$AE$252,'Entrate - Altri costi'!$B$6:$B$252,$A61,'Entrate - Altri costi'!$C$6:$C$252,O$2)","v":0},0,0,0]
["U38 - Vigili del fuoco","Vigili del fuoco",0,{"$f":"SUMIFS('Entrate - Altri costi'!$W$6:$W$252,'Entrate - Altri costi'!$B$6:$B$252,$A62,'Entrate - Altri costi'!$C$6:$C$252,C$2)","v":0},{"$f":"SUMIFS('Entrate - Altri costi'!$AE$6:$AE$252,'Entrate - Altri costi'!$B$6:$B$252,$A62,'Entrate - Altri costi'!$C$6:$C$252,C$2)","v":0},0,{"$f":"SUMIFS('Entrate - Altri costi'!$W$6:$W$252,'Entrate - Altri costi'!$B$6:$B$252,$A62,'Entrate - Altri costi'!$C$6:$C$252,F$2)","v":0},{"$f":"SUMIFS('Entrate - Altri costi'!$AE$6:$AE$252,'Entrate - Altri costi'!$B$6:$B$252,$A62,'Entrate - Altri costi'!$C$6:$C$252,F$2)","v":0},0,{"$f":"SUMIFS('Entrate - Altri costi'!$W$6:$W$252,'Entrate - Altri costi'!$B$6:$B$252,$A62,'Entrate - Altri costi'!$C$6:$C$252,I$2)","v":0},{"$f":"SUMIFS('Entrate - Altri costi'!$AE$6:$AE$252,'Entrate - Altri costi'!$B$6:$B$252,$A62,'Entrate - Altri costi'!$C$6:$C$252,I$2)","v":0},0,{"$f":"SUMIFS('Entrate - Altri costi'!$W$6:$W$252,'Entrate - Altri costi'!$B$6:$B$252,$A62,'Entrate - Altri costi'!$C$6:$C$252,L$2)","v":0},{"$f":"SUMIFS('Entrate - Altri costi'!$AE$6:$AE$252,'Entrate - Altri costi'!$B$6:$B$252,$A62,'Entrate - Altri costi'!$C$6:$C$252,L$2)","v":0},0,{"$f":"SUMIFS('Entrate - Altri costi'!$W$6:$W$252,'Entrate - Altri costi'!$B$6:$B$252,$A62,'Entrate - Altri costi'!$C$6:$C$252,O$2)","v":0},{"$f":"SUMIFS('Entrate - Altri costi'!$AE$6:$AE$252,'Entrate - Altri costi'!$B$6:$B$252,$A62,'Entrate - Altri costi'!$C$6:$C$252,O$2)","v":0},0,0,0]
["U39 - Altri costi di ospitalità","Altri costi di ospitalità (specificare__________________)",0,{"$f":"SUMIFS('Entrate - Altri costi'!$W$6:$W$252,'Entrate - Altri costi'!$B$6:$B$252,$A63,'Entrate - Altri costi'!$C$6:$C$252,C$2)","v":0},{"$f":"SUMIFS('Entrate - Altri costi'!$AE$6:$AE$252,'Entrate - Altri costi'!$B$6:$B$252,$A63,'Entrate - Altri costi'!$C$6:$C$252,C$2)","v":0},0,{"$f":"SUMIFS('Entrate - Altri costi'!$W$6:$W$252,'Entrate - Altri costi'!$B$6:$B$252,$A63,'Entrate - Altri costi'!$C$6:$C$252,F$2)","v":0},{"$f":"SUMIFS('Entrate - Altri costi'!$AE$6:$AE$252,'Entrate - Altri costi'!$B$6:$B$252,$A63,'Entrate - Altri costi'!$C$6:$C$252,F$2)","v":0},0,{"$f":"SUMIFS('Entrate - Altri costi'!$W$6:$W$252,'Entrate - Altri costi'!$B$6:$B$252,$A63,'Entrate - Altri costi'!$C$6:$C$252,I$2)","v":0},{"$f":"SUMIFS('Entrate - Altri costi'!$AE$6:$AE$252,'Entrate - Altri costi'!$B$6:$B$252,$A63,'Entrate - Altri costi'!$C$6:$C$252,I$2)","v":0},0,{"$f":"SUMIFS('Entrate - Altri costi'!$W$6:$W$252,'Entrate - Altri costi'!$B$6:$B$252,$A63,'Entrate - Altri costi'!$C$6:$C$252,L$2)","v":0},{"$f":"SUMIFS('Entrate - Altri costi'!$AE$6:$AE$252,'Entrate - Altri costi'!$B$6:$B$252,$A63,'Entrate - Altri costi'!$C$6:$C$252,L$2)","v":0},0,{"$f":"SUMIFS('Entrate - Altri costi'!$W$6:$W$252,'Entrate - Altri costi'!$B$6:$B$252,$A63,'Entrate - Altri costi'!$C$6:$C$252,O$2)","v":0},{"$f":"SUMIFS('Entrate - Altri costi'!$AE$6:$AE$252,'Entrate - Altri costi'!$B$6:$B$252,$A63,'Entrate - Altri costi'!$C$6:$C$252,O$2)","v":0},0,0,0]
[null,"TOTALE COSTI DI OSPITALITA'",{"$f":"SUM(C55:C63)","v":0},{"$f":"SUM(D55:D63)","v":0},{"$f":"SUM(E55:E63)","v":0},{"$f":"SUM(F55:F63)","v":0},{"$f":"SUM(G55:G63)","v":0},{"$f":"SUM(H55:H63)","v":0},{"$f":"SUM(I55:I63)","v":0},{"$f":"SUM(J55:J63)","v":0},{"$f":"SUM(K55:K63)","v":0},{"$f":"SUM(L55:L63)","v":0},{"$f":"SUM(M55:M63)","v":0},{"$f":"SUM(N55:N63)","v":0},{"$f":"SUM(O55:O63)","v":0},{"$f":"SUM(P55:P63)","v":0},{"$f":"SUM(Q55:Q63)","v":0},0,0,{"$f":"SUM(T55:T63)","v":0}]
["U4 - COSTI DI ATTIVITA'","COSTI DI ATTIVITA'"]
["U40 - Costi di viaggi, trasporti, alloggio,","Costi di viaggi, trasporti, alloggio, vitto, ecc. (per attività proprie)",0,{"$f":"SUMIFS('Entrate - Altri costi'!$W$6:$W$252,'Entrate - Altri costi'!$B$6:$B$252,$A66,'Entrate - Altri costi'!$C$6:$C$252,C$2)","v":0},{"$f":"SUMIFS('Entrate - Altri costi'!$AE$6:$AE$252,'Entrate - Altri costi'!$B$6:$B$252,$A66,'Entrate - Altri costi'!$C$6:$C$252,C$2)","v":0},0,{"$f":"SUMIFS('Entrate - Altri costi'!$W$6:$W$252,'Entrate - Altri costi'!$B$6:$B$252,$A66,'Entrate - Altri costi'!$C$6:$C$252,F$2)","v":0},{"$f":"SUMIFS('Entrate - Altri costi'!$AE$6:$AE$252,'Entrate - Altri costi'!$B$6:$B$252,$A66,'Entrate - Altri costi'!$C$6:$C$252,F$2)","v":0},0,{"$f":"SUMIFS('Entrate - Altri costi'!$W$6:$W$252,'Entrate - Altri costi'!$B$6:$B$252,$A66,'Entrate - Altri costi'!$C$6:$C$252,I$2)","v":0},{"$f":"SUMIFS('Entrate - Altri costi'!$AE$6:$AE$252,'Entrate - Altri costi'!$B$6:$B$252,$A66,'Entrate - Altri costi'!$C$6:$C$252,I$2)","v":0},0,{"$f":"SUMIFS('Entrate - Altri costi'!$W$6:$W$252,'Entrate - Altri costi'!$B$6:$B$252,$A66,'Entrate - Altri costi'!$C$6:$C$252,L$2)","v":0},{"$f":"SUMIFS('Entrate - Altri costi'!$AE$6:$AE$252,'Entrate - Altri costi'!$B$6:$B$252,$A66,'Entrate - Altri costi'!$C$6:$C$252,L$2)","v":0},0,{"$f":"SUMIFS('Entrate - Altri costi'!$W$6:$W$252,'Entrate - Altri costi'!$B$6:$B$252,$A66,'Entrate - Altri costi'!$C$6:$C$252,O$2)","v":0},{"$f":"SUMIFS('Entrate - Altri costi'!$AE$6:$AE$252,'Entrate - Altri costi'!$B$6:$B$252,$A66,'Entrate - Altri costi'!$C$6:$C$252,O$2)","v":0},{"$f":"SUM(C66+F66+I66+L66+O66)","v":0},{"$f":"SUM(D66+G66+J66+M66+P66)","v":0},{"$f":"SUM(E66+H66+K66+N66+Q66)","v":0}]
["U41 - Acquisti strumentazione tecnica luce e suono","Acquisti strumentazione tecnica luce e suono (quota ammortamento per programma annuale)",0,{"$f":"SUMIFS('Entrate - Altri costi'!$W$6:$W$252,'Entrate - Altri costi'!$B$6:$B$252,$A67,'Entrate - Altri costi'!$C$6:$C$252,C$2)","v":0},{"$f":"SUMIFS('Entrate - Altri costi'!$AE$6:$AE$252,'Entrate - Altri costi'!$B$6:$B$252,$A67,'Entrate - Altri costi'!$C$6:$C$252,C$2)","v":0},0,{"$f":"SUMIFS('Entrate - Altri costi'!$W$6:$W$252,'Entrate - Altri costi'!$B$6:$B$252,$A67,'Entrate - Altri costi'!$C$6:$C$252,F$2)","v":0},{"$f":"SUMIFS('Entrate - Altri costi'!$AE$6:$AE$252,'Entrate - Altri costi'!$B$6:$B$252,$A67,'Entrate - Altri costi'!$C$6:$C$252,F$2)","v":0},0,{"$f":"SUMIFS('Entrate - Altri costi'!$W$6:$W$252,'Entrate - Altri costi'!$B$6:$B$252,$A67,'Entrate - Altri costi'!$C$6:$C$252,I$2)","v":0},{"$f":"SUMIFS('Entrate - Altri costi'!$AE$6:$AE$252,'Entrate - Altri costi'!$B$6:$B$252,$A67,'Entrate - Altri costi'!$C$6:$C$252,I$2)","v":0},0,{"$f":"SUMIFS('Entrate - Altri costi'!$W$6:$W$252,'Entrate - Altri costi'!$B$6:$B$252,$A67,'Entrate - Altri costi'!$C$6:$C$252,L$2)","v":0},{"$f":"SUMIFS('Entrate - Altri costi'!$AE$6:$AE$252,'Entrate - Altri costi'!$B$6:$B$252,$A67,'Entrate - Altri costi'!$C$6:$C$252,L$2)","v":0},0,{"$f":"SUMIFS('Entrate - Altri costi'!$W$6:$W$252,'Entrate - Altri costi'!$B$6:$B$252,$A67,'Entrate - Altri costi'!$C$6:$C$252,O$2)","v":0},{"$f":"SUMIFS('Entrate - Altri costi'!$AE$6:$AE$252,'Entrate - Altri costi'!$B$6:$B$252,$A67,'Entrate - Altri costi'!$C$6:$C$252,O$2)","v":0},0,0,0]
["U42 - Noleggi strumentazione tecnica luce e suono","Noleggi strumentazione tecnica luce e suono (service)",0,{"$f":"SUMIFS('Entrate - Altri costi'!$W$6:$W$252,'Entrate - Altri costi'!$B$6:$B$252,$A68,'Entrate - Altri costi'!$C$6:$C$252,C$2)","v":0},{"$f":"SUMIFS('Entrate - Altri costi'!$AE$6:$AE$252,'Entrate - Altri costi'!$B$6:$B$252,$A68,'Entrate - Altri costi'!$C$6:$C$252,C$2)","v":0},0,{"$f":"SUMIFS('Entrate - Altri costi'!$W$6:$W$252,'Entrate - Altri costi'!$B$6:$B$252,$A68,'Entrate - Altri costi'!$C$6:$C$252,F$2)","v":0},{"$f":"SUMIFS('Entrate - Altri costi'!$AE$6:$AE$252,'Entrate - Altri costi'!$B$6:$B$252,$A68,'Entrate - Altri costi'!$C$6:$C$252,F$2)","v":0},0,{"$f":"SUMIFS('Entrate - Altri costi'!$W$6:$W$252,'Entrate - Altri costi'!$B$6:$B$252,$A68,'Entrate - Altri costi'!$C$6:$C$252,I$2)","v":0},{"$f":"SUMIFS('Entrate - Altri costi'!$AE$6:$AE$252,'Entrate - Altri costi'!$B$6:$B$252,$A68,'Entrate - Altri costi'!$C$6:$C$252,I$2)","v":0},0,{"$f":"SUMIFS('Entrate - Altri costi'!$W$6:$W$252,'Entrate - Altri costi'!$B$6:$B$252,$A68,'Entrate - Altri costi'!$C$6:$C$252,L$2)","v":0},{"$f":"SUMIFS('Entrate - Altri costi'!$AE$6:$AE$252,'Entrate - Altri costi'!$B$6:$B$252,$A68,'Entrate - Altri costi'!$C$6:$C$252,L$2)","v":0},0,{"$f":"SUMIFS('Entrate - Altri costi'!$W$6:$W$252,'Entrate - Altri costi'!$B$6:$B$252,$A68,'Entrate - Altri costi'!$C$6:$C$252,O$2)","v":0},{"$f":"SUMIFS('Entrate - Altri costi'!$AE$6:$AE$252,'Entrate - Altri costi'!$B$6:$B$252,$A68,'Entrate - Altri costi'!$C$6:$C$252,O$2)","v":0},0,0,0]
["U43 - Prestazioni di terzi per allestimenti ","Prestazioni di terzi per allestimenti (montaggio, smontaggio, facchinaggio, ecc. )",0,{"$f":"SUMIFS('Entrate - Altri costi'!$W$6:$W$252,'Entrate - Altri costi'!$B$6:$B$252,$A69,'Entrate - Altri costi'!$C$6:$C$252,C$2)","v":0},{"$f":"SUMIFS('Entrate - Altri costi'!$AE$6:$AE$252,'Entrate - Altri costi'!$B$6:$B$252,$A69,'Entrate - Altri costi'!$C$6:$C$252,C$2)","v":0},0,{"$f":"SUMIFS('Entrate - Altri costi'!$W$6:$W$252,'Entrate - Altri costi'!$B$6:$B$252,$A69,'Entrate - Altri costi'!$C$6:$C$252,F$2)","v":0},{"$f":"SUMIFS('Entrate - Altri costi'!$AE$6:$AE$252,'Entrate - Altri costi'!$B$6:$B$252,$A69,'Entrate - Altri costi'!$C$6:$C$252,F$2)","v":0},0,{"$f":"SUMIFS('Entrate - Altri costi'!$W$6:$W$252,'Entrate - Altri costi'!$B$6:$B$252,$A69,'Entrate - Altri costi'!$C$6:$C$252,I$2)","v":0},{"$f":"SUMIFS('Entrate - Altri costi'!$AE$6:$AE$252,'Entrate - Altri costi'!$B$6:$B$252,$A69,'Entrate - Altri costi'!$C$6:$C$252,I$2)","v":0},0,{"$f":"SUMIFS('Entrate - Altri costi'!$W$6:$W$252,'Entrate - Altri costi'!$B$6:$B$252,$A69,'Entrate - Altri costi'!$C$6:$C$252,L$2)","v":0},{"$f":"SUMIFS('Entrate - Altri costi'!$AE$6:$AE$252,'Entrate - Altri costi'!$B$6:$B$252,$A69,'Entrate - Altri costi'!$C$6:$C$252,L$2)","v":0},0,{"$f":"SUMIFS('Entrate - Altri costi'!$W$6:$W$252,'Entrate - Altri costi'!$B$6:$B$252,$A69,'Entrate - Altri costi'!$C$6:$C$252,O$2)","v":0},{"$f":"SUMIFS('Entrate - Altri costi'!$AE$6:$AE$252,'Entrate - Altri costi'!$B$6:$B$252,$A69,'Entrate - Altri costi'!$C$6:$C$252,O$2)","v":0},0,0,0]
["U44 - Trasporto e oneri assicurativi per opere","Trasporto e oneri assicurativi per opere",0,{"$f":"SUMIFS('Entrate - Altri costi'!$W$6:$W$252,'Entrate - Altri costi'!$B$6:$B$252,$A70,'Entrate - Altri costi'!$C$6:$C$252,C$2)","v":0},{"$f":"SUMIFS('Entrate - Altri costi'!$AE$6:$AE$252,'Entrate - Altri costi'!$B$6:$B$252,$A70,'Entrate - Altri costi'!$C$6:$C$252,C$2)","v":0},0,{"$f":"SUMIFS('Entrate - Altri costi'!$W$6:$W$252,'Entrate - Altri costi'!$B$6:$B$252,$A70,'Entrate - Altri costi'!$C$6:$C$252,F$2)","v":0},{"$f":"SUMIFS('Entrate - Altri costi'!$AE$6:$AE$252,'Entrate - Altri costi'!$B$6:$B$252,$A70,'Entrate - Altri costi'!$C$6:$C$252,F$2)","v":0},0,{"$f":"SUMIFS('Entrate - Altri costi'!$W$6:$W$252,'Entrate - Altri costi'!$B$6:$B$252,$A70,'Entrate - Altri costi'!$C$6:$C$252,I$2)","v":0},{"$f":"SUMIFS('Entrate - Altri costi'!$AE$6:$AE$252,'Entrate - Altri costi'!$B$6:$B$252,$A70,'Entrate - Altri costi'!$C$6:$C$252,I$2)","v":0},0,{"$f":"SUMIFS('Entrate - Altri costi'!$W$6:$W$252,'Entrate - Altri costi'!$B$6:$B$252,$A70,'Entrate - Altri costi'!$C$6:$C$252,L$2)","v":0},{"$f":"SUMIFS('Entrate - Altri costi'!$AE$6:$AE$252,'Entrate - Altri costi'!$B$6:$B$252,$A70,'Entrate - Altri costi'!$C$6:$C$252,L$2)","v":0},0,{"$f":"SUMIFS('Entrate - Altri costi'!$W$6:$W$252,'Entrate - Altri costi'!$B$6:$B$252,$A70,'Entrate - Altri costi'!$C$6:$C$252,O$2)","v":0},{"$f":"SUMIFS('Entrate - Altri costi'!$AE$6:$AE$252,'Entrate - Altri costi'!$B$6:$B$252,$A70,'Entrate - Altri costi'!$C$6:$C$252,O$2)","v":0},0,0,0]
["U45 - Spese di pubblicazione di atti o cataloghi","Spese di pubblicazione di atti o cataloghi",0,{"$f":"SUMIFS('Entrate - Altri costi'!$W$6:$W$252,'Entrate - Altri costi'!$B$6:$B$252,$A71,'Entrate - Altri costi'!$C$6:$C$252,C$2)","v":0},{"$f":"SUMIFS('Entrate - Altri costi'!$AE$6:$AE$252,'Entrate - Altri costi'!$B$6:$B$252,$A71,'Entrate - Altri costi'!$C$6:$C$252,C$2)","v":0},0,{"$f":"SUMIFS('Entrate - Altri costi'!$W$6:$W$252,'Entrate - Altri costi'!$B$6:$B$252,$A71,'Entrate - Altri costi'!$C$6:$C$252,F$2)","v":0},{"$f":"SUMIFS('Entrate - Altri costi'!$AE$6:$AE$252,'Entrate - Altri costi'!$B$6:$B$252,$A71,'Entrate - Altri costi'!$C$6:$C$252,F$2)","v":0},0,{"$f":"SUMIFS('Entrate - Altri costi'!$W$6:$W$252,'Entrate - Altri costi'!$B$6:$B$252,$A71,'Entrate - Altri costi'!$C$6:$C$252,I$2)","v":0},{"$f":"SUMIFS('Entrate - Altri costi'!$AE$6:$AE$252,'Entrate - Altri costi'!$B$6:$B$252,$A71,'Entrate - Altri costi'!$C$6:$C$252,I$2)","v":0},0,{"$f":"SUMIFS('Entrate - Altri costi'!$W$6:$W$252,'Entrate - Altri costi'!$B$6:$B$252,$A71,'Entrate - Altri costi'!$C$6:$C$252,L$2)","v":0},{"$f":"SUMIFS('Entrate - Altri costi'!$AE$6:$AE$252,'Entrate - Altri costi'!$B$6:$B$252,$A71,'Entrate - Altri costi'!$C$6:$C$252,L$2)","v":0},0,{"$f":"SUMIFS('Entrate - Altri costi'!$W$6:$W$252,'Entrate - Altri costi'!$B$6:$B$252,$A71,'Entrate - Altri costi'!$C$6:$C$252,O$2)","v":0},{"$f":"SUMIFS('Entrate - Altri costi'!$AE$6:$AE$252,'Entrate - Altri costi'!$B$6:$B$252,$A71,'Entrate - Altri costi'!$C$6:$C$252,O$2)","v":0},0,0,0]
["U46 - Premi e Borse di studi","Premi e Borse di studi",0,{"$f":"SUMIFS('Entrate - Altri costi'!$W$6:$W$252,'Entrate - Altri costi'!$B$6:$B$252,$A72,'Entrate - Altri costi'!$C$6:$C$252,C$2)","v":0},{"$f":"SUMIFS('Entrate - Altri costi'!$AE$6:$AE$252,'Entrate - Altri costi'!$B$6:$B$252,$A72,'Entrate - Altri costi'!$C$6:$C$252,C$2)","v":0},0,{"$f":"SUMIFS('Entrate - Altri costi'!$W$6:$W$252,'Entrate - Altri costi'!$B$6:$B$252,$A72,'Entrate - Altri costi'!$C$6:$C$252,F$2)","v":0},{"$f":"SUMIFS('Entrate - Altri costi'!$AE$6:$AE$252,'Entrate - Altri costi'!$B$6:$B$252,$A72,'Entrate - Altri costi'!$C$6:$C$252,F$2)","v":0},0,{"$f":"SUMIFS('Entrate - Altri costi'!$W$6:$W$252,'Entrate - Altri costi'!$B$6:$B$252,$A72,'Entrate - Altri costi'!$C$6:$C$252,I$2)","v":0},{"$f":"SUMIFS('Entrate - Altri costi'!$AE$6:$AE$252,'Entrate - Altri costi'!$B$6:$B$252,$A72,'Entrate - Altri costi'!$C$6:$C$252,I$2)","v":0},0,{"$f":"SUMIFS('Entrate - Altri costi'!$W$6:$W$252,'Entrate - Altri costi'!$B$6:$B$252,$A72,'Entrate - Altri costi'!$C$6:$C$252,L$2)","v":0},{"$f":"SUMIFS('Entrate - Altri costi'!$AE$6:$AE$252,'Entrate - Altri costi'!$B$6:$B$252,$A72,'Entrate - Altri costi'!$C$6:$C$252,L$2)","v":0},0,{"$f":"SUMIFS('Entrate - Altri costi'!$W$6:$W$252,'Entrate - Altri costi'!$B$6:$B$252,$A72,'Entrate - Altri costi'!$C$6:$C$252,O$2)","v":0},{"$f":"SUMIFS('Entrate - Altri costi'!$AE$6:$AE$252,'Entrate - Altri costi'!$B$6:$B$252,$A72,'Entrate - Altri costi'!$C$6:$C$252,O$2)","v":0},0,0,0]
["U47 - SIAE","SIAE",0,{"$f":"SUMIFS('Entrate - Altri costi'!$W$6:$W$252,'Entrate - Altri costi'!$B$6:$B$252,$A73,'Entrate - Altri costi'!$C$6:$C$252,C$2)","v":0},{"$f":"SUMIFS('Entrate - Altri costi'!$AE$6:$AE$252,'Entrate - Altri costi'!$B$6:$B$252,$A73,'Entrate - Altri costi'!$C$6:$C$252,C$2)","v":0},0,{"$f":"SUMIFS('Entrate - Altri costi'!$W$6:$W$252,'Entrate - Altri costi'!$B$6:$B$252,$A73,'Entrate - Altri costi'!$C$6:$C$252,F$2)","v":0},{"$f":"SUMIFS('Entrate - Altri costi'!$AE$6:$AE$252,'Entrate - Altri costi'!$B$6:$B$252,$A73,'Entrate - Altri costi'!$C$6:$C$252,F$2)","v":0},0,{"$f":"SUMIFS('Entrate - Altri costi'!$W$6:$W$252,'Entrate - Altri costi'!$B$6:$B$252,$A73,'Entrate - Altri costi'!$C$6:$C$252,I$2)","v":0},{"$f":"SUMIFS('Entrate - Altri costi'!$AE$6:$AE$252,'Entrate - Altri costi'!$B$6:$B$252,$A73,'Entrate - Altri costi'!$C$6:$C$252,I$2)","v":0},0,{"$f":"SUMIFS('Entrate - Altri costi'!$W$6:$W$252,'Entrate - Altri costi'!$B$6:$B$252,$A73,'Entrate - Altri costi'!$C$6:$C$252,L$2)","v":0},{"$f":"SUMIFS('Entrate - Altri costi'!$AE$6:$AE$252,'Entrate - Altri costi'!$B$6:$B$252,$A73,'Entrate - Altri costi'!$C$6:$C$252,L$2)","v":0},0,{"$f":"SUMIFS('Entrate - Altri costi'!$W$6:$W$252,'Entrate - Altri costi'!$B$6:$B$252,$A73,'Entrate - Altri costi'!$C$6:$C$252,O$2)","v":0},{"$f":"SUMIFS('Entrate - Altri costi'!$AE$6:$AE$252,'Entrate - Altri costi'!$B$6:$B$252,$A73,'Entrate - Altri costi'!$C$6:$C$252,O$2)","v":0},0,0,0]
["U48 - Vigili del fuoco","Vigili del fuoco",0,{"$f":"SUMIFS('Entrate - Altri costi'!$W$6:$W$252,'Entrate - Altri costi'!$B$6:$B$252,$A74,'Entrate - Altri costi'!$C$6:$C$252,C$2)","v":0},{"$f":"SUMIFS('Entrate - Altri costi'!$AE$6:$AE$252,'Entrate - Altri costi'!$B$6:$B$252,$A74,'Entrate - Altri costi'!$C$6:$C$252,C$2)","v":0},0,{"$f":"SUMIFS('Entrate - Altri costi'!$W$6:$W$252,'Entrate - Altri costi'!$B$6:$B$252,$A74,'Entrate - Altri costi'!$C$6:$C$252,F$2)","v":0},{"$f":"SUMIFS('Entrate - Altri costi'!$AE$6:$AE$252,'Entrate - Altri costi'!$B$6:$B$252,$A74,'Entrate - Altri costi'!$C$6:$C$252,F$2)","v":0},0,{"$f":"SUMIFS('Entrate - Altri costi'!$W$6:$W$252,'Entrate - Altri costi'!$B$6:$B$252,$A74,'Entrate - Altri costi'!$C$6:$C$252,I$2)","v":0},{"$f":"SUMIFS('Entrate - Altri costi'!$AE$6:$AE$252,'Entrate - Altri costi'!$B$6:$B$252,$A74,'Entrate - Altri costi'!$C$6:$C$252,I$2)","v":0},0,{"$f":"SUMIFS('Entrate - Altri costi'!$W$6:$W$252,'Entrate - Altri costi'!$B$6:$B$252,$A74,'Entrate - Altri costi'!$C$6:$C$252,L$2)","v":0},{"$f":"SUMIFS('Entrate - Altri costi'!$AE$6:$AE$252,'Entrate - Altri costi'!$B$6:$B$252,$A74,'Entrate - Altri costi'!$C$6:$C$252,L$2)","v":0},0,{"$f":"SUMIFS('Entrate - Altri costi'!$W$6:$W$252,'Entrate - Altri costi'!$B$6:$B$252,$A74,'Entrate - Altri costi'!$C$6:$C$252,O$2)","v":0},{"$f":"SUMIFS('Entrate - Altri costi'!$AE$6:$AE$252,'Entrate - Altri costi'!$B$6:$B$252,$A74,'Entrate - Altri costi'!$C$6:$C$252,O$2)","v":0},0,0,0]
["U49 - Altri costi di attività","Altri costi di attività (specificare____________________)",0,{"$f":"SUMIFS('Entrate - Altri costi'!$W$6:$W$252,'Entrate - Altri costi'!$B$6:$B$252,$A75,'Entrate - Altri costi'!$C$6:$C$252,C$2)","v":0},{"$f":"SUMIFS('Entrate - Altri costi'!$AE$6:$AE$252,'Entrate - Altri costi'!$B$6:$B$252,$A75,'Entrate - Altri costi'!$C$6:$C$252,C$2)","v":0},0,{"$f":"SUMIFS('Entrate - Altri costi'!$W$6:$W$252,'Entrate - Altri costi'!$B$6:$B$252,$A75,'Entrate - Altri costi'!$C$6:$C$252,F$2)","v":0},{"$f":"SUMIFS('Entrate - Altri costi'!$AE$6:$AE$252,'Entrate - Altri costi'!$B$6:$B$252,$A75,'Entrate - Altri costi'!$C$6:$C$252,F$2)","v":0},0,{"$f":"SUMIFS('Entrate - Altri costi'!$W$6:$W$252,'Entrate - Altri costi'!$B$6:$B$252,$A75,'Entrate - Altri costi'!$C$6:$C$252,I$2)","v":0},{"$f":"SUMIFS('Entrate - Altri costi'!$AE$6:$AE$252,'Entrate - Altri costi'!$B$6:$B$252,$A75,'Entrate - Altri costi'!$C$6:$C$252,I$2)","v":0},0,{"$f":"SUMIFS('Entrate - Altri costi'!$W$6:$W$252,'Entrate - Altri costi'!$B$6:$B$252,$A75,'Entrate - Altri costi'!$C$6:$C$252,L$2)","v":0},{"$f":"SUMIFS('Entrate - Altri costi'!$AE$6:$AE$252,'Entrate - Altri costi'!$B$6:$B$252,$A75,'Entrate - Altri costi'!$C$6:$C$252,L$2)","v":0},0,{"$f":"SUMIFS('Entrate - Altri costi'!$W$6:$W$252,'Entrate - Altri costi'!$B$6:$B$252,$A75,'Entrate - Altri costi'!$C$6:$C$252,O$2)","v":0},{"$f":"SUMIFS('Entrate - Altri costi'!$AE$6:$AE$252,'Entrate - Altri costi'!$B$6:$B$252,$A75,'Entrate - Altri costi'!$C$6:$C$252,O$2)","v":0},0,0,0]
[null,"TOTALE COSTI DI ATTIVITA'",{"$f":"SUM(C66:C75)","v":0},{"$f":"SUM(D66:D75)","v":0},{"$f":"SUM(E66:E75)","v":0},{"$f":"SUM(F66:F75)","v":0},{"$f":"SUM(G66:G75)","v":0},{"$f":"SUM(H66:H75)","v":0},{"$f":"SUM(I66:I75)","v":0},{"$f":"SUM(J66:J75)","v":0},{"$f":"SUM(K66:K75)","v":0},{"$f":"SUM(L66:L75)","v":0},{"$f":"SUM(M66:M75)","v":0},{"$f":"SUM(N66:N75)","v":0},{"$f":"SUM(O66:O75)","v":0},{"$f":"SUM(P66:P75)","v":0},{"$f":"SUM(Q66:Q75)","v":0},0,0,{"$f":"SUM(T66:T75)","v":0}]
["U5 - PUBBLICITA' E PROMOZIONE","PUBBLICITA' E PROMOZIONE (sono ammissibili entro il 20% dei costi ammissibili complessivi del progetto)"]
["U51 - Servizi di ufficio stampa","Servizi di ufficio stampa",0,{"$f":"SUMIFS('Entrate - Altri costi'!$W$6:$W$252,'Entrate - Altri costi'!$B$6:$B$252,$A78,'Entrate - Altri costi'!$C$6:$C$252,C$2)","v":0},{"$f":"SUMIFS('Entrate - Altri costi'!$AE$6:$AE$252,'Entrate - Altri costi'!$B$6:$B$252,$A78,'Entrate - Altri costi'!$C$6:$C$252,C$2)","v":0},0,{"$f":"SUMIFS('Entrate - Altri costi'!$W$6:$W$252,'Entrate - Altri costi'!$B$6:$B$252,$A78,'Entrate - Altri costi'!$C$6:$C$252,F$2)","v":0},{"$f":"SUMIFS('Entrate - Altri costi'!$AE$6:$AE$252,'Entrate - Altri costi'!$B$6:$B$252,$A78,'Entrate - Altri costi'!$C$6:$C$252,F$2)","v":0},0,{"$f":"SUMIFS('Entrate - Altri costi'!$W$6:$W$252,'Entrate - Altri costi'!$B$6:$B$252,$A78,'Entrate - Altri costi'!$C$6:$C$252,I$2)","v":0},{"$f":"SUMIFS('Entrate - Altri costi'!$AE$6:$AE$252,'Entrate - Altri costi'!$B$6:$B$252,$A78,'Entrate - Altri costi'!$C$6:$C$252,I$2)","v":0},0,{"$f":"SUMIFS('Entrate - Altri costi'!$W$6:$W$252,'Entrate - Altri costi'!$B$6:$B$252,$A78,'Entrate - Altri costi'!$C$6:$C$252,L$2)","v":0},{"$f":"SUMIFS('Entrate - Altri costi'!$AE$6:$AE$252,'Entrate - Altri costi'!$B$6:$B$252,$A78,'Entrate - Altri costi'!$C$6:$C$252,L$2)","v":0},0,{"$f":"SUMIFS('Entrate - Altri costi'!$W$6:$W$252,'Entrate - Altri costi'!$B$6:$B$252,$A78,'Entrate - Altri costi'!$C$6:$C$252,O$2)","v":0},{"$f":"SUMIFS('Entrate - Altri costi'!$AE$6:$AE$252,'Entrate - Altri costi'!$B$6:$B$252,$A78,'Entrate - Altri costi'!$C$6:$C$252,O$2)","v":0},{"$f":"SUM(C78+F78+I78+L78+O78)","v":0},{"$f":"SUM(D78+G78+J78+M78+P78)","v":0},{"$f":"SUM(E78+H78+K78+N78+Q78)","v":0}]
["U52 - Costi per stampe, distribuzione e affissione","Costi per stampe, distribuzione e affissione locandine, manifesti, ecc.",0,{"$f":"SUMIFS('Entrate - Altri costi'!$W$6:$W$252,'Entrate - Altri costi'!$B$6:$B$252,$A79,'Entrate - Altri costi'!$C$6:$C$252,C$2)","v":0},{"$f":"SUMIFS('Entrate - Altri costi'!$AE$6:$AE$252,'Entrate - Altri costi'!$B$6:$B$252,$A79,'Entrate - Altri costi'!$C$6:$C$252,C$2)","v":0},0,{"$f":"SUMIFS('Entrate - Altri costi'!$W$6:$W$252,'Entrate - Altri costi'!$B$6:$B$252,$A79,'Entrate - Altri costi'!$C$6:$C$252,F$2)","v":0},{"$f":"SUMIFS('Entrate - Altri costi'!$AE$6:$AE$252,'Entrate - Altri costi'!$B$6:$B$252,$A79,'Entrate - Altri costi'!$C$6:$C$252,F$2)","v":0},0,{"$f":"SUMIFS('Entrate - Altri costi'!$W$6:$W$252,'Entrate - Altri costi'!$B$6:$B$252,$A79,'Entrate - Altri costi'!$C$6:$C$252,I$2)","v":0},{"$f":"SUMIFS('Entrate - Altri costi'!$AE$6:$AE$252,'Entrate - Altri costi'!$B$6:$B$252,$A79,'Entrate - Altri costi'!$C$6:$C$252,I$2)","v":0},0,{"$f":"SUMIFS('Entrate - Altri costi'!$W$6:$W$252,'Entrate - Altri costi'!$B$6:$B$252,$A79,'Entrate - Altri costi'!$C$6:$C$252,L$2)","v":0},{"$f":"SUMIFS('Entrate - Altri costi'!$AE$6:$AE$252,'Entrate - Altri costi'!$B$6:$B$252,$A79,'Entrate - Altri costi'!$C$6:$C$252,L$2)","v":0},0,{"$f":"SUMIFS('Entrate - Altri costi'!$W$6:$W$252,'Entrate - Altri costi'!$B$6:$B$252,$A79,'Entrate - Altri costi'!$C$6:$C$252,O$2)","v":0},{"$f":"SUMIFS('Entrate - Altri costi'!$AE$6:$AE$252,'Entrate - Altri costi'!$B$6:$B$252,$A79,'Entrate - Altri costi'!$C$6:$C$252,O$2)","v":0},0,0,0]
["U53 - Costi per prestazioni professionali","Costi per prestazioni professionali (riprese video, registrazioni audio, servizi fotografici, ecc.)",0,{"$f":"SUMIFS('Entrate - Altri costi'!$W$6:$W$252,'Entrate - Altri costi'!$B$6:$B$252,$A80,'Entrate - Altri costi'!$C$6:$C$252,C$2)","v":0},{"$f":"SUMIFS('Entrate - Altri costi'!$AE$6:$AE$252,'Entrate - Altri costi'!$B$6:$B$252,$A80,'Entrate - Altri costi'!$C$6:$C$252,C$2)","v":0},0,{"$f":"SUMIFS('Entrate - Altri costi'!$W$6:$W$252,'Entrate - Altri costi'!$B$6:$B$252,$A80,'Entrate - Altri costi'!$C$6:$C$252,F$2)","v":0},{"$f":"SUMIFS('Entrate - Altri costi'!$AE$6:$AE$252,'Entrate - Altri costi'!$B$6:$B$252,$A80,'Entrate - Altri costi'!$C$6:$C$252,F$2)","v":0},0,{"$f":"SUMIFS('Entrate - Altri costi'!$W$6:$W$252,'Entrate - Altri costi'!$B$6:$B$252,$A80,'Entrate - Altri costi'!$C$6:$C$252,I$2)","v":0},{"$f":"SUMIFS('Entrate - Altri costi'!$AE$6:$AE$252,'Entrate - Altri costi'!$B$6:$B$252,$A80,'Entrate - Altri costi'!$C$6:$C$252,I$2)","v":0},0,{"$f":"SUMIFS('Entrate - Altri costi'!$W$6:$W$252,'Entrate - Altri costi'!$B$6:$B$252,$A80,'Entrate - Altri costi'!$C$6:$C$252,L$2)","v":0},{"$f":"SUMIFS('Entrate - Altri costi'!$AE$6:$AE$252,'Entrate - Altri costi'!$B$6:$B$252,$A80,'Entrate - Altri costi'!$C$6:$C$252,L$2)","v":0},0,{"$f":"SUMIFS('Entrate - Altri costi'!$W$6:$W$252,'Entrate - Altri costi'!$B$6:$B$252,$A80,'Entrate - Altri costi'!$C$6:$C$252,O$2)","v":0},{"$f":"SUMIFS('Entrate - Altri costi'!$AE$6:$AE$252,'Entrate - Altri costi'!$B$6:$B$252,$A80,'Entrate - Altri costi'!$C$6:$C$252,O$2)","v":0},0,0,0]
["U54 - Costi per pubblicità","Costi per pubblicità (inserzioni, ecc.)",0,{"$f":"SUMIFS('Entrate - Altri costi'!$W$6:$W$252,'Entrate - Altri costi'!$B$6:$B$252,$A81,'Entrate - Altri costi'!$C$6:$C$252,C$2)","v":0},{"$f":"SUMIFS('Entrate - Altri costi'!$AE$6:$AE$252,'Entrate - Altri costi'!$B$6:$B$252,$A81,'Entrate - Altri costi'!$C$6:$C$252,C$2)","v":0},0,{"$f":"SUMIFS('Entrate - Altri costi'!$W$6:$W$252,'Entrate - Altri costi'!$B$6:$B$252,$A81,'Entrate - Altri costi'!$C$6:$C$252,F$2)","v":0},{"$f":"SUMIFS('Entrate - Altri costi'!$AE$6:$AE$252,'Entrate - Altri costi'!$B$6:$B$252,$A81,'Entrate - Altri costi'!$C$6:$C$252,F$2)","v":0},0,{"$f":"SUMIFS('Entrate - Altri costi'!$W$6:$W$252,'Entrate - Altri costi'!$B$6:$B$252,$A81,'Entrate - Altri costi'!$C$6:$C$252,I$2)","v":0},{"$f":"SUMIFS('Entrate - Altri costi'!$AE$6:$AE$252,'Entrate - Altri costi'!$B$6:$B$252,$A81,'Entrate - Altri costi'!$C$6:$C$252,I$2)","v":0},0,{"$f":"SUMIFS('Entrate - Altri costi'!$W$6:$W$252,'Entrate - Altri costi'!$B$6:$B$252,$A81,'Entrate - Altri costi'!$C$6:$C$252,L$2)","v":0},{"$f":"SUMIFS('Entrate - Altri costi'!$AE$6:$AE$252,'Entrate - Altri costi'!$B$6:$B$252,$A81,'Entrate - Altri costi'!$C$6:$C$252,L$2)","v":0},0,{"$f":"SUMIFS('Entrate - Altri costi'!$W$6:$W$252,'Entrate - Altri costi'!$B$6:$B$252,$A81,'Entrate - Altri costi'!$C$6:$C$252,O$2)","v":0},{"$f":"SUMIFS('Entrate - Altri costi'!$AE$6:$AE$252,'Entrate - Altri costi'!$B$6:$B$252,$A81,'Entrate - Altri costi'!$C$6:$C$252,O$2)","v":0},0,0,0]
["U55 - Costi per gestione e manutenzione sito web","Costi per gestione e manutenzione sito web",0,{"$f":"SUMIFS('Entrate - Altri costi'!$W$6:$W$252,'Entrate - Altri costi'!$B$6:$B$252,$A82,'Entrate - Altri costi'!$C$6:$C$252,C$2)","v":0},{"$f":"SUMIFS('Entrate - Altri costi'!$AE$6:$AE$252,'Entrate - Altri costi'!$B$6:$B$252,$A82,'Entrate - Altri costi'!$C$6:$C$252,C$2)","v":0},0,{"$f":"SUMIFS('Entrate - Altri costi'!$W$6:$W$252,'Entrate - Altri costi'!$B$6:$B$252,$A82,'Entrate - Altri costi'!$C$6:$C$252,F$2)","v":0},{"$f":"SUMIFS('Entrate - Altri costi'!$AE$6:$AE$252,'Entrate - Altri costi'!$B$6:$B$252,$A82,'Entrate - Altri costi'!$C$6:$C$252,F$2)","v":0},0,{"$f":"SUMIFS('Entrate - Altri costi'!$W$6:$W$252,'Entrate - Altri costi'!$B$6:$B$252,$A82,'Entrate - Altri costi'!$C$6:$C$252,I$2)","v":0},{"$f":"SUMIFS('Entrate - Altri costi'!$AE$6:$AE$252,'Entrate - Altri costi'!$B$6:$B$252,$A82,'Entrate - Altri costi'!$C$6:$C$252,I$2)","v":0},0,{"$f":"SUMIFS('Entrate - Altri costi'!$W$6:$W$252,'Entrate - Altri costi'!$B$6:$B$252,$A82,'Entrate - Altri costi'!$C$6:$C$252,L$2)","v":0},{"$f":"SUMIFS('Entrate - Altri costi'!$AE$6:$AE$252,'Entrate - Altri costi'!$B$6:$B$252,$A82,'Entrate - Altri costi'!$C$6:$C$252,L$2)","v":0},0,{"$f":"SUMIFS('Entrate - Altri costi'!$W$6:$W$252,'Entrate - Altri costi'!$B$6:$B$252,$A82,'Entrate - Altri costi'!$C$6:$C$252,O$2)","v":0},{"$f":"SUMIFS('Entrate - Altri costi'!$AE$6:$AE$252,'Entrate - Altri costi'!$B$6:$B$252,$A82,'Entrate - Altri costi'!$C$6:$C$252,O$2)","v":0},0,0,0]
["U56 - Altri costi pubblicità e promozione","Altri costi pubblicità e promozione (specificare____________________)",0,{"$f":"SUMIFS('Entrate - Altri costi'!$W$6:$W$252,'Entrate - Altri costi'!$B$6:$B$252,$A83,'Entrate - Altri costi'!$C$6:$C$252,C$2)","v":0},{"$f":"SUMIFS('Entrate - Altri costi'!$AE$6:$AE$252,'Entrate - Altri costi'!$B$6:$B$252,$A83,'Entrate - Altri costi'!$C$6:$C$252,C$2)","v":0},0,{"$f":"SUMIFS('Entrate - Altri costi'!$W$6:$W$252,'Entrate - Altri costi'!$B$6:$B$252,$A83,'Entrate - Altri costi'!$C$6:$C$252,F$2)","v":0},{"$f":"SUMIFS('Entrate - Altri costi'!$AE$6:$AE$252,'Entrate - Altri costi'!$B$6:$B$252,$A83,'Entrate - Altri costi'!$C$6:$C$252,F$2)","v":0},0,{"$f":"SUMIFS('Entrate - Altri costi'!$W$6:$W$252,'Entrate - Altri costi'!$B$6:$B$252,$A83,'Entrate - Altri costi'!$C$6:$C$252,I$2)","v":0},{"$f":"SUMIFS('Entrate - Altri costi'!$AE$6:$AE$252,'Entrate - Altri costi'!$B$6:$B$252,$A83,'Entrate - Altri costi'!$C$6:$C$252,I$2)","v":0},0,{"$f":"SUMIFS('Entrate - Altri costi'!$W$6:$W$252,'Entrate - Altri costi'!$B$6:$B$252,$A83,'Entrate - Altri costi'!$C$6:$C$252,L$2)","v":0},{"$f":"SUMIFS('Entrate - Altri costi'!$AE$6:$AE$252,'Entrate - Altri costi'!$B$6:$B$252,$A83,'Entrate - Altri costi'!$C$6:$C$252,L$2)","v":0},0,{"$f":"SUMIFS('Entrate - Altri costi'!$W$6:$W$252,'Entrate - Altri costi'!$B$6:$B$252,$A83,'Entrate - Altri costi'!$C$6:$C$252,O$2)","v":0},{"$f":"SUMIFS('Entrate - Altri costi'!$AE$6:$AE$252,'Entrate - Altri costi'!$B$6:$B$252,$A83,'Entrate - Altri costi'!$C$6:$C$252,O$2)","v":0},0,0,0]
[null,"TOTALE COSTI DI  PUBBLICITA' E PROMOZIONE",{"$f":"SUM(C78:C83)","v":0},{"$f":"SUM(D78:D83)","v":0},{"$f":"SUM(E78:E83)","v":0},{"$f":"SUM(F78:F83)","v":0},{"$f":"SUM(G78:G83)","v":0},{"$f":"SUM(H78:H83)","v":0},{"$f":"SUM(I78:I83)","v":0},{"$f":"SUM(J78:J83)","v":0},{"$f":"SUM(K78:K83)","v":0},{"$f":"SUM(L78:L83)","v":0},{"$f":"SUM(M78:M83)","v":0},{"$f":"SUM(N78:N83)","v":0},{"$f":"SUM(O78:O83)","v":0},{"$f":"SUM(P78:P83)","v":0},{"$f":"SUM(Q78:Q83)","v":0},0,0,{"$f":"SUM(T78:T83)","v":0}]
["U6 - COSTI DI GESTIONE SPAZI","COSTI DI GESTIONE SPAZI (per le attività progettuali)"]
["U61 - Affitto spazi per realizzazione attività","Affitto spazi per realizzazione attività",0,{"$f":"SUMIFS('Entrate - Altri costi'!$W$6:$W$252,'Entrate - Altri costi'!$B$6:$B$252,$A86,'Entrate - Altri costi'!$C$6:$C$252,C$2)","v":0},{"$f":"SUMIFS('Entrate - Altri costi'!$AE$6:$AE$252,'Entrate - Altri costi'!$B$6:$B$252,$A86,'Entrate - Altri costi'!$C$6:$C$252,C$2)","v":0},0,{"$f":"SUMIFS('Entrate - Altri costi'!$W$6:$W$252,'Entrate - Altri costi'!$B$6:$B$252,$A86,'Entrate - Altri costi'!$C$6:$C$252,F$2)","v":0},{"$f":"SUMIFS('Entrate - Altri costi'!$AE$6:$AE$252,'Entrate - Altri costi'!$B$6:$B$252,$A86,'Entrate - Altri costi'!$C$6:$C$252,F$2)","v":0},0,{"$f":"SUMIFS('Entrate - Altri costi'!$W$6:$W$252,'Entrate - Altri costi'!$B$6:$B$252,$A86,'Entrate - Altri costi'!$C$6:$C$252,I$2)","v":0},{"$f":"SUMIFS('Entrate - Altri costi'!$AE$6:$AE$252,'Entrate - Altri costi'!$B$6:$B$252,$A86,'Entrate - Altri costi'!$C$6:$C$252,I$2)","v":0},0,{"$f":"SUMIFS('Entrate - Altri costi'!$W$6:$W$252,'Entrate - Altri costi'!$B$6:$B$252,$A86,'Entrate - Altri costi'!$C$6:$C$252,L$2)","v":0},{"$f":"SUMIFS('Entrate - Altri costi'!$AE$6:$AE$252,'Entrate - Altri costi'!$B$6:$B$252,$A86,'Entrate - Altri costi'!$C$6:$C$252,L$2)","v":0},0,{"$f":"SUMIFS('Entrate - Altri costi'!$W$6:$W$252,'Entrate - Altri costi'!$B$6:$B$252,$A86,'Entrate - Altri costi'!$C$6:$C$252,O$2)","v":0},{"$f":"SUMIFS('Entrate - Altri costi'!$AE$6:$AE$252,'Entrate - Altri costi'!$B$6:$B$252,$A86,'Entrate - Altri costi'!$C$6:$C$252,O$2)","v":0},{"$f":"SUM(C86+F86+I86+L86+O86)","v":0},0,0]
["U62 - Costi di manutenzione ordinaria spazi per attività","Costi di manutenzione ordinaria spazi per attività",0,{"$f":"SUMIFS('Entrate - Altri costi'!$W$6:$W$252,'Entrate - Altri costi'!$B$6:$B$252,$A87,'Entrate - Altri costi'!$C$6:$C$252,C$2)","v":0},{"$f":"SUMIFS('Entrate - Altri costi'!$AE$6:$AE$252,'Entrate - Altri costi'!$B$6:$B$252,$A87,'Entrate - Altri costi'!$C$6:$C$252,C$2)","v":0},0,{"$f":"SUMIFS('Entrate - Altri costi'!$W$6:$W$252,'Entrate - Altri costi'!$B$6:$B$252,$A87,'Entrate - Altri costi'!$C$6:$C$252,F$2)","v":0},{"$f":"SUMIFS('Entrate - Altri costi'!$AE$6:$AE$252,'Entrate - Altri costi'!$B$6:$B$252,$A87,'Entrate - Altri costi'!$C$6:$C$252,F$2)","v":0},0,{"$f":"SUMIFS('Entrate - Altri costi'!$W$6:$W$252,'Entrate - Altri costi'!$B$6:$B$252,$A87,'Entrate - Altri costi'!$C$6:$C$252,I$2)","v":0},{"$f":"SUMIFS('Entrate - Altri costi'!$AE$6:$AE$252,'Entrate - Altri costi'!$B$6:$B$252,$A87,'Entrate - Altri costi'!$C$6:$C$252,I$2)","v":0},0,{"$f":"SUMIFS('Entrate - Altri costi'!$W$6:$W$252,'Entrate - Altri costi'!$B$6:$B$252,$A87,'Entrate - Altri costi'!$C$6:$C$252,L$2)","v":0},{"$f":"SUMIFS('Entrate - Altri costi'!$AE$6:$AE$252,'Entrate - Altri costi'!$B$6:$B$252,$A87,'Entrate - Altri costi'!$C$6:$C$252,L$2)","v":0},0,{"$f":"SUMIFS('Entrate - Altri costi'!$W$6:$W$252,'Entrate - Altri costi'!$B$6:$B$252,$A87,'Entrate - Altri costi'!$C$6:$C$252,O$2)","v":0},{"$f":"SUMIFS('Entrate - Altri costi'!$AE$6:$AE$252,'Entrate - Altri costi'!$B$6:$B$252,$A87,'Entrate - Altri costi'!$C$6:$C$252,O$2)","v":0},0,0,0]
["U63 - Utenze","Utenze (degli spazi)",0,{"$f":"SUMIFS('Entrate - Altri costi'!$W$6:$W$252,'Entrate - Altri costi'!$B$6:$B$252,$A88,'Entrate - Altri costi'!$C$6:$C$252,C$2)","v":0},{"$f":"SUMIFS('Entrate - Altri costi'!$AE$6:$AE$252,'Entrate - Altri costi'!$B$6:$B$252,$A88,'Entrate - Altri costi'!$C$6:$C$252,C$2)","v":0},0,{"$f":"SUMIFS('Entrate - Altri costi'!$W$6:$W$252,'Entrate - Altri costi'!$B$6:$B$252,$A88,'Entrate - Altri costi'!$C$6:$C$252,F$2)","v":0},{"$f":"SUMIFS('Entrate - Altri costi'!$AE$6:$AE$252,'Entrate - Altri costi'!$B$6:$B$252,$A88,'Entrate - Altri costi'!$C$6:$C$252,F$2)","v":0},0,{"$f":"SUMIFS('Entrate - Altri costi'!$W$6:$W$252,'Entrate - Altri costi'!$B$6:$B$252,$A88,'Entrate - Altri costi'!$C$6:$C$252,I$2)","v":0},{"$f":"SUMIFS('Entrate - Altri costi'!$AE$6:$AE$252,'Entrate - Altri costi'!$B$6:$B$252,$A88,'Entrate - Altri costi'!$C$6:$C$252,I$2)","v":0},0,{"$f":"SUMIFS('Entrate - Altri costi'!$W$6:$W$252,'Entrate - Altri costi'!$B$6:$B$252,$A88,'Entrate - Altri costi'!$C$6:$C$252,L$2)","v":0},{"$f":"SUMIFS('Entrate - Altri costi'!$AE$6:$AE$252,'Entrate - Altri costi'!$B$6:$B$252,$A88,'Entrate - Altri costi'!$C$6:$C$252,L$2)","v":0},0,{"$f":"SUMIFS('Entrate - Altri costi'!$W$6:$W$252,'Entrate - Altri costi'!$B$6:$B$252,$A88,'Entrate - Altri costi'!$C$6:$C$252,O$2)","v":0},{"$f":"SUMIFS('Entrate - Altri costi'!$AE$6:$AE$252,'Entrate - Altri costi'!$B$6:$B$252,$A88,'Entrate - Altri costi'!$C$6:$C$252,O$2)","v":0},0,0,0]
["U64 - Pulizie","Pulizie (degli spazi)",0,{"$f":"SUMIFS('Entrate - Altri costi'!$W$6:$W$252,'Entrate - Altri costi'!$B$6:$B$252,$A89,'Entrate - Altri costi'!$C$6:$C$252,C$2)","v":0},{"$f":"SUMIFS('Entrate - Altri costi'!$AE$6:$AE$252,'Entrate - Altri costi'!$B$6:$B$252,$A89,'Entrate - Altri costi'!$C$6:$C$252,C$2)","v":0},0,{"$f":"SUMIFS('Entrate - Altri costi'!$W$6:$W$252,'Entrate - Altri costi'!$B$6:$B$252,$A89,'Entrate - Altri costi'!$C$6:$C$252,F$2)","v":0},{"$f":"SUMIFS('Entrate - Altri costi'!$AE$6:$AE$252,'Entrate - Altri costi'!$B$6:$B$252,$A89,'Entrate - Altri costi'!$C$6:$C$252,F$2)","v":0},0,{"$f":"SUMIFS('Entrate - Altri costi'!$W$6:$W$252,'Entrate - Altri costi'!$B$6:$B$252,$A89,'Entrate - Altri costi'!$C$6:$C$252,I$2)","v":0},{"$f":"SUMIFS('Entrate - Altri costi'!$AE$6:$AE$252,'Entrate - Altri costi'!$B$6:$B$252,$A89,'Entrate - Altri costi'!$C$6:$C$252,I$2)","v":0},0,{"$f":"SUMIFS('Entrate - Altri costi'!$W$6:$W$252,'Entrate - Altri costi'!$B$6:$B$252,$A89,'Entrate - Altri costi'!$C$6:$C$252,L$2)","v":0},{"$f":"SUMIFS('Entrate - Altri costi'!$AE$6:$AE$252,'Entrate - Altri costi'!$B$6:$B$252,$A89,'Entrate - Altri costi'!$C$6:$C$252,L$2)","v":0},0,{"$f":"SUMIFS('Entrate - Altri costi'!$W$6:$W$252,'Entrate - Altri costi'!$B$6:$B$252,$A89,'Entrate - Altri costi'!$C$6:$C$252,O$2)","v":0},{"$f":"SUMIFS('Entrate - Altri costi'!$AE$6:$AE$252,'Entrate - Altri costi'!$B$6:$B$252,$A89,'Entrate - Altri costi'!$C$6:$C$252,O$2)","v":0},0,0,0]
["U65 - Altri costi di gestione spazi","Altri costi di gestione spazi (specificare____________________)",0,{"$f":"SUMIFS('Entrate - Altri costi'!$W$6:$W$252,'Entrate - Altri costi'!$B$6:$B$252,$A90,'Entrate - Altri costi'!$C$6:$C$252,C$2)","v":0},{"$f":"SUMIFS('Entrate - Altri costi'!$AE$6:$AE$252,'Entrate - Altri costi'!$B$6:$B$252,$A90,'Entrate - Altri costi'!$C$6:$C$252,C$2)","v":0},0,{"$f":"SUMIFS('Entrate - Altri costi'!$W$6:$W$252,'Entrate - Altri costi'!$B$6:$B$252,$A90,'Entrate - Altri costi'!$C$6:$C$252,F$2)","v":0},{"$f":"SUMIFS('Entrate - Altri costi'!$AE$6:$AE$252,'Entrate - Altri costi'!$B$6:$B$252,$A90,'Entrate - Altri costi'!$C$6:$C$252,F$2)","v":0},0,{"$f":"SUMIFS('Entrate - Altri costi'!$W$6:$W$252,'Entrate - Altri costi'!$B$6:$B$252,$A90,'Entrate - Altri costi'!$C$6:$C$252,I$2)","v":0},{"$f":"SUMIFS('Entrate - Altri costi'!$AE$6:$AE$252,'Entrate - Altri costi'!$B$6:$B$252,$A90,'Entrate - Altri costi'!$C$6:$C$252,I$2)","v":0},0,{"$f":"SUMIFS('Entrate - Altri costi'!$W$6:$W$252,'Entrate - Altri costi'!$B$6:$B$252,$A90,'Entrate - Altri costi'!$C$6:$C$252,L$2)","v":0},{"$f":"SUMIFS('Entrate - Altri costi'!$AE$6:$AE$252,'Entrate - Altri costi'!$B$6:$B$252,$A90,'Entrate - Altri costi'!$C$6:$C$252,L$2)","v":0},0,{"$f":"SUMIFS('Entrate - Altri costi'!$W$6:$W$252,'Entrate - Altri costi'!$B$6:$B$252,$A90,'Entrate - Altri costi'!$C$6:$C$252,O$2)","v":0},{"$f":"SUMIFS('Entrate - Altri costi'!$AE$6:$AE$252,'Entrate - Altri costi'!$B$6:$B$252,$A90,'Entrate - Altri costi'!$C$6:$C$252,O$2)","v":0},0,0,0]
[null,"TOTALE COSTI DI GESTIONE SPAZI",{"$f":"SUM(C86:C90)","v":0},{"$f":"SUM(D86:D90)","v":0},{"$f":"SUM(E86:E90)","v":0},{"$f":"SUM(F86:F90)","v":0},{"$f":"SUM(G86:G90)","v":0},{"$f":"SUM(H86:H90)","v":0},{"$f":"SUM(I86:I90)","v":0},{"$f":"SUM(J86:J90)","v":0},{"$f":"SUM(K86:K90)","v":0},{"$f":"SUM(L86:L90)","v":0},{"$f":"SUM(M86:M90)","v":0},{"$f":"SUM(N86:N90)","v":0},{"$f":"SUM(O86:O90)","v":0},{"$f":"SUM(P86:P90)","v":0},{"$f":"SUM(Q86:Q90)","v":0},0,0,{"$f":"SUM(T86:T90)","v":0}]
["U7 - COSTI GENERALI","COSTI GENERALI (sono ammissibili entro il 20% del totale dei costi complessivi ammissibili, unitamente ai costi del personale amministrativo)"]
["U71 - Materiale di consumo","Materiale di consumo",0,{"$f":"SUMIFS('Entrate - Altri costi'!$W$6:$W$252,'Entrate - Altri costi'!$B$6:$B$252,$A93,'Entrate - Altri costi'!$C$6:$C$252,C$2)","v":0},{"$f":"SUMIFS('Entrate - Altri costi'!$AE$6:$AE$252,'Entrate - Altri costi'!$B$6:$B$252,$A93,'Entrate - Altri costi'!$C$6:$C$252,C$2)","v":0},0,{"$f":"SUMIFS('Entrate - Altri costi'!$W$6:$W$252,'Entrate - Altri costi'!$B$6:$B$252,$A93,'Entrate - Altri costi'!$C$6:$C$252,F$2)","v":0},{"$f":"SUMIFS('Entrate - Altri costi'!$AE$6:$AE$252,'Entrate - Altri costi'!$B$6:$B$252,$A93,'Entrate - Altri costi'!$C$6:$C$252,F$2)","v":0},0,{"$f":"SUMIFS('Entrate - Altri costi'!$W$6:$W$252,'Entrate - Altri costi'!$B$6:$B$252,$A93,'Entrate - Altri costi'!$C$6:$C$252,I$2)","v":0},{"$f":"SUMIFS('Entrate - Altri costi'!$AE$6:$AE$252,'Entrate - Altri costi'!$B$6:$B$252,$A93,'Entrate - Altri costi'!$C$6:$C$252,I$2)","v":0},0,{"$f":"SUMIFS('Entrate - Altri costi'!$W$6:$W$252,'Entrate - Altri costi'!$B$6:$B$252,$A93,'Entrate - Altri costi'!$C$6:$C$252,L$2)","v":0},{"$f":"SUMIFS('Entrate - Altri costi'!$AE$6:$AE$252,'Entrate - Altri costi'!$B$6:$B$252,$A93,'Entrate - Altri costi'!$C$6:$C$252,L$2)","v":0},0,{"$f":"SUMIFS('Entrate - Altri costi'!$W$6:$W$252,'Entrate - Altri costi'!$B$6:$B$252,$A93,'Entrate - Altri costi'!$C$6:$C$252,O$2)","v":0},{"$f":"SUMIFS('Entrate - Altri costi'!$AE$6:$AE$252,'Entrate - Altri costi'!$B$6:$B$252,$A93,'Entrate - Altri costi'!$C$6:$C$252,O$2)","v":0},{"$f":"SUM(C93+F93+I93+L93+O93)","v":0},{"$f":"SUM(D93+G93+J93+M93+P93)","v":0},{"$f":"SUM(E93+H93+K93+N93+Q93)","v":0}]
["U72 - Affitto uffici","Affitto uffici",null,{"$f":"SUMIFS('Entrate - Altri costi'!$W$6:$W$252,'Entrate - Altri costi'!$B$6:$B$252,$A94,'Entrate - Altri costi'!$C$6:$C$252,C$2)","v":0},{"$f":"SUMIFS('Entrate - Altri costi'!$AE$6:$AE$252,'Entrate - Altri costi'!$B$6:$B$252,$A94,'Entrate - Altri costi'!$C$6:$C$252,C$2)","v":0},0,{"$f":"SUMIFS('Entrate - Altri costi'!$W$6:$W$252,'Entrate - Altri costi'!$B$6:$B$252,$A94,'Entrate - Altri costi'!$C$6:$C$252,F$2)","v":0},{"$f":"SUMIFS('Entrate - Altri costi'!$AE$6:$AE$252,'Entrate - Altri costi'!$B$6:$B$252,$A94,'Entrate - Altri costi'!$C$6:$C$252,F$2)","v":0},0,{"$f":"SUMIFS('Entrate - Altri costi'!$W$6:$W$252,'Entrate - Altri costi'!$B$6:$B$252,$A94,'Entrate - Altri costi'!$C$6:$C$252,I$2)","v":0},{"$f":"SUMIFS('Entrate - Altri costi'!$AE$6:$AE$252,'Entrate - Altri costi'!$B$6:$B$252,$A94,'Entrate - Altri costi'!$C$6:$C$252,I$2)","v":0},0,{"$f":"SUMIFS('Entrate - Altri costi'!$W$6:$W$252,'Entrate - Altri costi'!$B$6:$B$252,$A94,'Entrate - Altri costi'!$C$6:$C$252,L$2)","v":0},{"$f":"SUMIFS('Entrate - Altri costi'!$AE$6:$AE$252,'Entrate - Altri costi'!$B$6:$B$252,$A94,'Entrate - Altri costi'!$C$6:$C$252,L$2)","v":0},0,{"$f":"SUMIFS('Entrate - Altri costi'!$W$6:$W$252,'Entrate - Altri costi'!$B$6:$B$252,$A94,'Entrate - Altri costi'!$C$6:$C$252,O$2)","v":0},{"$f":"SUMIFS('Entrate - Altri costi'!$AE$6:$AE$252,'Entrate - Altri costi'!$B$6:$B$252,$A94,'Entrate - Altri costi'!$C$6:$C$252,O$2)","v":0},0,0,0]
["U73 - Altre prestazioni professionali per consulenze","Altre prestazioni professionali per consulenze (commercialista, consulenze del lavoro, consulenze giuridiche, consulenze economiche, consulenze tecniche, ecc.)",0,{"$f":"SUMIFS('Entrate - Altri costi'!$W$6:$W$252,'Entrate - Altri costi'!$B$6:$B$252,$A95,'Entrate - Altri costi'!$C$6:$C$252,C$2)","v":0},{"$f":"SUMIFS('Entrate - Altri costi'!$AE$6:$AE$252,'Entrate - Altri costi'!$B$6:$B$252,$A95,'Entrate - Altri costi'!$C$6:$C$252,C$2)","v":0},0,{"$f":"SUMIFS('Entrate - Altri costi'!$W$6:$W$252,'Entrate - Altri costi'!$B$6:$B$252,$A95,'Entrate - Altri costi'!$C$6:$C$252,F$2)","v":0},{"$f":"SUMIFS('Entrate - Altri costi'!$AE$6:$AE$252,'Entrate - Altri costi'!$B$6:$B$252,$A95,'Entrate - Altri costi'!$C$6:$C$252,F$2)","v":0},0,{"$f":"SUMIFS('Entrate - Altri costi'!$W$6:$W$252,'Entrate - Altri costi'!$B$6:$B$252,$A95,'Entrate - Altri costi'!$C$6:$C$252,I$2)","v":0},{"$f":"SUMIFS('Entrate - Altri costi'!$AE$6:$AE$252,'Entrate - Altri costi'!$B$6:$B$252,$A95,'Entrate - Altri costi'!$C$6:$C$252,I$2)","v":0},0,{"$f":"SUMIFS('Entrate - Altri costi'!$W$6:$W$252,'Entrate - Altri costi'!$B$6:$B$252,$A95,'Entrate - Altri costi'!$C$6:$C$252,L$2)","v":0},{"$f":"SUMIFS('Entrate - Altri costi'!$AE$6:$AE$252,'Entrate - Altri costi'!$B$6:$B$252,$A95,'Entrate - Altri costi'!$C$6:$C$252,L$2)","v":0},0,{"$f":"SUMIFS('Entrate - Altri costi'!$W$6:$W$252,'Entrate - Altri costi'!$B$6:$B$252,$A95,'Entrate - Altri costi'!$C$6:$C$252,O$2)","v":0},{"$f":"SUMIFS('Entrate - Altri costi'!$AE$6:$AE$252,'Entrate - Altri costi'!$B$6:$B$252,$A95,'Entrate - Altri costi'!$C$6:$C$252,O$2)","v":0},0,0,0]
["U74 - Utenze","Utenze (uffici)",0,{"$f":"SUMIFS('Entrate - Altri costi'!$W$6:$W$252,'Entrate - Altri costi'!$B$6:$B$252,$A96,'Entrate - Altri costi'!$C$6:$C$252,C$2)","v":0},{"$f":"SUMIFS('Entrate - Altri costi'!$AE$6:$AE$252,'Entrate - Altri costi'!$B$6:$B$252,$A96,'Entrate - Altri costi'!$C$6:$C$252,C$2)","v":0},0,{"$f":"SUMIFS('Entrate - Altri costi'!$W$6:$W$252,'Entrate - Altri costi'!$B$6:$B$252,$A96,'Entrate - Altri costi'!$C$6:$C$252,F$2)","v":0},{"$f":"SUMIFS('Entrate - Altri costi'!$AE$6:$AE$252,'Entrate - Altri costi'!$B$6:$B$252,$A96,'Entrate - Altri costi'!$C$6:$C$252,F$2)","v":0},0,{"$f":"SUMIFS('Entrate - Altri costi'!$W$6:$W$252,'Entrate - Altri costi'!$B$6:$B$252,$A96,'Entrate - Altri costi'!$C$6:$C$252,I$2)","v":0},{"$f":"SUMIFS('Entrate - Altri costi'!$AE$6:$AE$252,'Entrate - Altri costi'!$B$6:$B$252,$A96,'Entrate - Altri costi'!$C$6:$C$252,I$2)","v":0},0,{"$f":"SUMIFS('Entrate - Altri costi'!$W$6:$W$252,'Entrate - Altri costi'!$B$6:$B$252,$A96,'Entrate - Altri costi'!$C$6:$C$252,L$2)","v":0},{"$f":"SUMIFS('Entrate - Altri costi'!$AE$6:$AE$252,'Entrate - Altri costi'!$B$6:$B$252,$A96,'Entrate - Altri costi'!$C$6:$C$252,L$2)","v":0},0,{"$f":"SUMIFS('Entrate - Altri costi'!$W$6:$W$252,'Entrate - Altri costi'!$B$6:$B$252,$A96,'Entrate - Altri costi'!$C$6:$C$252,O$2)","v":0},{"$f":"SUMIFS('Entrate - Altri costi'!$AE$6:$AE$252,'Entrate - Altri costi'!$B$6:$B$252,$A96,'Entrate - Altri costi'!$C$6:$C$252,O$2)","v":0},0,0,0]
["U75 - Pulizie","Pulizie (uffici)",0,{"$f":"SUMIFS('Entrate - Altri costi'!$W$6:$W$252,'Entrate - Altri costi'!$B$6:$B$252,$A97,'Entrate - Altri costi'!$C$6:$C$252,C$2)","v":0},{"$f":"SUMIFS('Entrate - Altri costi'!$AE$6:$AE$252,'Entrate - Altri costi'!$B$6:$B$252,$A97,'Entrate - Altri costi'!$C$6:$C$252,C$2)","v":0},0,{"$f":"SUMIFS('Entrate - Altri costi'!$W$6:$W$252,'Entrate - Altri costi'!$B$6:$B$252,$A97,'Entrate - Altri costi'!$C$6:$C$252,F$2)","v":0},{"$f":"SUMIFS('Entrate - Altri costi'!$AE$6:$AE$252,'Entrate - Altri costi'!$B$6:$B$252,$A97,'Entrate - Altri costi'!$C$6:$C$252,F$2)","v":0},0,{"$f":"SUMIFS('Entrate - Altri costi'!$W$6:$W$252,'Entrate - Altri costi'!$B$6:$B$252,$A97,'Entrate - Altri costi'!$C$6:$C$252,I$2)","v":0},{"$f":"SUMIFS('Entrate - Altri costi'!$AE$6:$AE$252,'Entrate - Altri costi'!$B$6:$B$252,$A97,'Entrate - Altri costi'!$C$6:$C$252,I$2)","v":0},0,{"$f":"SUMIFS('Entrate - Altri costi'!$W$6:$W$252,'Entrate - Altri costi'!$B$6:$B$252,$A97,'Entrate - Altri costi'!$C$6:$C$252,L$2)","v":0},{"$f":"SUMIFS('Entrate - Altri costi'!$AE$6:$AE$252,'Entrate - Altri costi'!$B$6:$B$252,$A97,'Entrate - Altri costi'!$C$6:$C$252,L$2)","v":0},0,{"$f":"SUMIFS('Entrate - Altri costi'!$W$6:$W$252,'Entrate - Altri costi'!$B$6:$B$252,$A97,'Entrate - Altri costi'!$C$6:$C$252,O$2)","v":0},{"$f":"SUMIFS('Entrate - Altri costi'!$AE$6:$AE$252,'Entrate - Altri costi'!$B$6:$B$252,$A97,'Entrate - Altri costi'!$C$6:$C$252,O$2)","v":0},0,0,0]
["U76 - Altri costi generali","Altri costi generali (specificare____________________)",0,{"$f":"SUMIFS('Entrate - Altri costi'!$W$6:$W$252,'Entrate - Altri costi'!$B$6:$B$252,$A98,'Entrate - Altri costi'!$C$6:$C$252,C$2)","v":0},{"$f":"SUMIFS('Entrate - Altri costi'!$AE$6:$AE$252,'Entrate - Altri costi'!$B$6:$B$252,$A98,'Entrate - Altri costi'!$C$6:$C$252,C$2)","v":0},0,{"$f":"SUMIFS('Entrate - Altri costi'!$W$6:$W$252,'Entrate - Altri costi'!$B$6:$B$252,$A98,'Entrate - Altri costi'!$C$6:$C$252,F$2)","v":0},{"$f":"SUMIFS('Entrate - Altri costi'!$AE$6:$AE$252,'Entrate - Altri costi'!$B$6:$B$252,$A98,'Entrate - Altri costi'!$C$6:$C$252,F$2)","v":0},0,{"$f":"SUMIFS('Entrate - Altri costi'!$W$6:$W$252,'Entrate - Altri costi'!$B$6:$B$252,$A98,'Entrate - Altri costi'!$C$6:$C$252,I$2)","v":0},{"$f":"SUMIFS('Entrate - Altri costi'!$AE$6:$AE$252,'Entrate - Altri costi'!$B$6:$B$252,$A98,'Entrate - Altri costi'!$C$6:$C$252,I$2)","v":0},0,{"$f":"SUMIFS('Entrate - Altri costi'!$W$6:$W$252,'Entrate - Altri costi'!$B$6:$B$252,$A98,'Entrate - Altri costi'!$C$6:$C$252,L$2)","v":0},{"$f":"SUMIFS('Entrate - Altri costi'!$AE$6:$AE$252,'Entrate - Altri costi'!$B$6:$B$252,$A98,'Entrate - Altri costi'!$C$6:$C$252,L$2)","v":0},0,{"$f":"SUMIFS('Entrate - Altri costi'!$W$6:$W$252,'Entrate - Altri costi'!$B$6:$B$252,$A98,'Entrate - Altri costi'!$C$6:$C$252,O$2)","v":0},{"$f":"SUMIFS('Entrate - Altri costi'!$AE$6:$AE$252,'Entrate - Altri costi'!$B$6:$B$252,$A98,'Entrate - Altri costi'!$C$6:$C$252,O$2)","v":0},0,0,0]
[null,"TOTALE COSTI GENERALI",{"$f":"SUM(C93:C98)","v":0},{"$f":"SUM(D93:D98)","v":0},{"$f":"SUM(E93:E98)","v":0},{"$f":"SUM(F93:F98)","v":0},{"$f":"SUM(G93:G98)","v":0},{"$f":"SUM(H93:H98)","v":0},{"$f":"SUM(I93:I98)","v":0},{"$f":"SUM(J93:J98)","v":0},{"$f":"SUM(K93:K98)","v":0},{"$f":"SUM(L93:L98)","v":0},{"$f":"SUM(M93:M98)","v":0},{"$f":"SUM(N93:N98)","v":0},{"$f":"SUM(O93:O98)","v":0},{"$f":"SUM(P93:P98)","v":0},{"$f":"SUM(Q93:Q98)","v":0},0,0,{"$f":"SUM(T93:T98)","v":0}]
["U8 - COSTI IN NATURA","COSTI IN NATURA"]
["U81 - Valore apporti in natura Capofila e Partner","Valore apporti in natura (solo Capofila e Partner di progetto)",0,{"$f":"D23","v":0},{"$f":"E23","v":0},0,{"$f":"G23","v":0},{"$f":"H23","v":0},0,{"$f":"J23","v":0},{"$f":"K23","v":0},0,{"$f":"M23","v":0},{"$f":"N23","v":0},0,{"$f":"P23","v":0},{"$f":"Q23","v":0},{"$f":"SUM(C101+F101+I101+L101+O101)","v":0},0,0]
["U82 - Valore apporti in natura Affiliati","Valore apporti in natura (solo Partner Affiliati)",0,{"$f":"D24","v":0},{"$f":"E24","v":0},0,{"$f":"G24","v":0},{"$f":"H24","v":0},0,{"$f":"J24","v":0},{"$f":"K24","v":0},0,{"$f":"M24","v":0},{"$f":"N24","v":0},0,{"$f":"P24","v":0},{"$f":"Q24","v":0},0,0,0]
[null,"TOTALE COSTI IN NATURA",{"$f":"C101+C102","v":0},0,{"$f":"E101+E102","v":0},0,0,{"$f":"H101+H102","v":0},{"$f":"I101+I102","v":0},0,0,0,0,0,0,0,0,{"$f":"R101+R102","v":0},{"$f":"S101+S102","v":0},0]
[null,"TOTALE COMPLESSIVO COSTI",{"$f":"C103+C99+C91+C84+C76+C64+C53+C45","v":0},0,0,{"$f":"F103+F99+F91+F84+F76+F64+F53+F45","v":0},0,0,0,0,0,0,0,0,0,0,0,0,0,0]
[]
[null,"DIFFERENZA TRA ENTRATE E USCITE",null,null,null,null,null,null,null,null,null,null,null,null,null,null,null,{"$f":"IF(R35-R104>0,0,R35-R104)","v":0},{"$f":"IF(S35-S104>0,0,S35-S104)","v":0},0]
[null,"DETRAZIONE PER SPESE GENERALI DI FUNZIONAMENTO OLTRE IL 20% MASSIMO AMMISSIBILE",null,null,null,null,null,null,null,null,null,null,null,null,null,null,null,{"$f":"IF((R99+R43+R44+R51)>20%*(R45-R44-R43+R53-R51+R64+R76+R91),(R99+R43+R44+R51)-20%*(R45-R44-R43+R53-R51+R64+R76+R91),0)","v":0},{"$f":"IF((S99+S43+S44+S51)>20%*(S45-S44-S43+S53-S51+S64+S76+S91),(S99+S43+S44+S51)-20%*(S45-S44-S43+S53-S51+S64+S76+S91),0)","v":0},{"$f":"IF((T99+T43+T44+T51)>20%*(T45-T44-T43+T53-T51+T64+T76+T91),(T99+T43+T44+T51)-20%*(T45-T44-T43+T53-T51+T64+T76+T91),0)","v":0}]
[null,"DETRAZIONE PER SPESE PUBBLICITA' E PROMOZIONE  OLTRE IL 20% MASSIMO AMMISSIBILE",null,null,null,null,null,null,null,null,null,null,null,null,null,null,null,{"$f":"IF((R84)>20%*(R45-R44-R43+R53-R51+R64+R91+R76),(R84)-20%*(R45-R44-R43+R53-R51+R64+R91+R76),0)","v":0},{"$f":"IF((S84)>20%*(S45-S44-S43+S53-S51+S64+S91+S76),(S84)-20%*(S45-S44-S43+S53-S51+S64+S91+S76),0)","v":0},{"$f":"IF((T84)>20%*(T45-T44-T43+T53-T51+T64+T91+T76),(T84)-20%*(T45-T44-T43+T53-T51+T64+T91+T76),0)","v":0}]
[null,"DEFICIT  (differenza tra entrate e uscite - quota eccedente 20% spese generali e di funzionamento, pubblicità e promozione)",null,null,null,null,null,null,null,null,null,null,null,null,null,null,null,{"$f":"IF((-R106-R107-R108)<0,0,(-R106-R107-R108))","v":0},{"$f":"IF((-S106-S107-S108)<0,0,(-S106-S107-S108))","v":0},{"$f":"IF((-T106-T107-T108)<0,0,(-T106-T107-T108))","v":0}]
[null,"COSTI TOTALI AMMISSIBILI  (Totale complessivo dei costi - quota eccedente 20% spese generali e di funzionamento, pubblicità e promozione - costi in natura partner affiliati)",null,null,null,null,null,null,null,null,null,null,null,null,null,null,null,{"$f":"R104-R107-R108-R102","v":0},{"$f":"S104-S107-S108-S102","v":0},{"$f":"T104-T107-T108-T102","v":0}]
[null,"QUOTA MASSIMA 60% DELLE SPESE AMMISSIBILI",null,null,null,null,null,null,null,null,null,null,null,null,null,null,null,{"$f":"R110*60%","v":0},{"$f":"S110*60%","v":0},{"$f":"T110*60%","v":0}]
[null,"CONTRIBUTO ANNUALE LIQUIDABILE PARI AL MINOR VALORE TRA DEFICIT  E 60% SPESE AMMISSIBILI",null,null,null,null,null,null,null,null,null,null,null,null,null,null,null,{"$f":"IF(MIN(R109,R111)>80000,80000,MIN(R109,R111))","v":0},{"$f":"IF(MIN(S109,S111)>80000,80000,MIN(S109,S111))","v":0},0]
[]
[null,"IVA FORFETTARIA con esposizione dei costi/spese ammissibili e dei ricavi del Bilancio triennale e del Bilancio annuale  al netto dell’imposta (IVA esclusa)"]
[null,"IVA NON RECUPERABILE con esposizione dei costi/spese ammissibili e dei ricavi del Bilancio triennale e del Bilancio annuale al lordo dell’imposta (IVA inclusa)"]
[null,"* Non sono ammessi per lo stesso progetto contributi provenienti dal Dipartimento titolare del presente Avviso, dall’Agenzia Regionale Pugliapromozione, dal Consorzio Teatro Pubblico Pugliese e dalla Fondazione Apulia Film Commission."]
[]
[null,"Luogo e data",null,null,null,null,null,"\n__________________________________\nFirma digitale / timbro e firma del legale rappresentante / del soggetto munito dei poteri di mandato e di firma (allegare sempre copia fotostatica del documento di identità del sottoscrittore, tranne caso firma digitale)\n \n"]
[]
[null,"______________________________"]
[]
[]
[]
[null,"______________________________"]

{"sheet":"STUDI_RendicontoAnnualeInd","index":3,"n_rows":31,"n_cols":12,"rows_kept":31,"cut":false,"hidden":false,"merged":[[4,10,6,10],[4,11,6,11],[23,1,23,2],[24,2,30,3],[13,1,15,1],[16,1,16,2],[4,9,6,9],[7,1,7,2],[8,1,8,2],[9,1,9,2],[10,1,10,2],[4,8,6,8],[11,1,11,2],[12,1,12,2],[18,0,22,0],[18,1,18,2],[19,1,19,2],[20,1,20,2],[21,1,21,2],[22,1,22,2],[7,0,16,0],[0,0,1,7],[2,0,6,0],[2,1,6,2],[2,3,3,3],[2,4,2,7],[3,4,3,7],[4,4,6,4],[4,5,6,5],[4,7,6,7],[4,6,6,6]]}
["FSC Fondo di Sviluppo e Coesione 2014/2020 – “Patto per la Puglia”\nAVVISO PUBBLICO PER PRESENTARE INIZIATIVE PROGETTUALI RIGUARDANTI LE ATTIVITA' CULTURALI\nRENDICONTO ANNUALE DEGLI INDICATORI E DEI RISULTATI ATTESI (ALL. I DELL'AVVISO)"]
[]
["AMBITO DI ATTIVITA’","INDICATORE DA SELEZIONARE\n(in fase di consuntivo il beneficiario dovrà allegare documentazione, come indicato tra parentesi)",null,"VALORE DI RIFERIMENTO","TARGET PREVISTO "]
[null,null,null,null,"Terza annualità "]
[null,null,null,"Baseline","expected target","Implemented target","ACCERTATO_ Implemented target","%deviation","ACCERTATO_ %deviation","TIPOLOGIA DOCUMENTI A SUPPORTO ","Accertamento","Note"]
[null,null,null,"31.12.n"]
[null,null,null,"(Actual)"]
["RICERCHE E STUDI","1. Numero di volumi stampati e/o altri supporti multimediali prodotti (dotati di ISBN), relativi ai risultati di ricerche e studi (come da dichiarazione dell’editore)",null,null,null,null,null,{"$f":"IFERROR(IF(ISBLANK(E8),0,IF(F8/E8-1>0,0,F8/E8-1)),0)","v":0},{"$f":"IFERROR(IF(ISBLANK(E8),0,IF(G8/E8-1>0,0,G8/E8-1)),0)","v":0}]
[null,"2. Numero di volumi e/o supporti multimediali venduti, relativi ai risultati di ricerche e studi (come da dichiarazione dell’editore)",null,null,null,null,null,{"$f":"IFERROR(IF(ISBLANK(E9),0,IF(F9/E9-1>0,0,F9/E9-1)),0)","v":0},{"$f":"IFERROR(IF(ISBLANK(E9),0,IF(G9/E9-1>0,0,G9/E9-1)),0)","v":0}]
[null,"3. Numero di iniziative per la diffusione dei risultati presso università, scuole, enti di ricerca, enti pubblici della regione, ecc. (allegare documentazione comprovante le iniziative)",null,null,null,null,null,0,0]
[null,"4. Numero di copie gratuite destinate, in modo selettivo (diffusione mirata), a finalità sociali, formative e culturali (allegare elenco nominativi e ricevuta di consegna)",null,null,null,null,null,0,0]
[null,"5. Numero di ricercatori/esperti di livello almeno regionale coinvolti nella realizzazione di ricerche e studi (elenco del team negli atti ufficiali)",null,null,null,null,null,0,0]
[null,"6. Numero di corsi e concorsi (allegare documentazione comprovante attività formative e competitive)",null,null,null,null,null,0,0]
[null,"7. Numero di recensioni previste \n(allegare documentazione comprovante)","Testate, televisive ed emittenti radiofoniche",null,null,null,null,0,0]
[null,null,"Riviste di settore",null,null,null,null,0,0]
[null,null,"Web e social network",null,null,null,null,0,0]
[null,"8. Numero di canali da utilizzare per la comunicazione dell’evento e la disseminazione dei risultati - max 3: cartaceo, informatico, multimediale (allegare documentazione comprovante)",null,null,null,null,null,0,0]
[null,null,null,null,null,null,null,null,0]
["TUTTI","Giornate lavorative",null,null,null,{"$f":"Personale!D130","v":0},{"$f":"Personale!D131","v":0},{"$f":"IFERROR(IF(ISBLANK(E19),0,IF(F19/E19-1>0,0,F19/E19-1)),0)","v":0},0]
[null,"Oneri sociali",null,null,null,{"$f":"Personale!G130","v":0},{"$f":"Personale!G131","v":0},{"$f":"IFERROR(IF(ISBLANK(E20),0,IF(F20/E20-1>0,0,F20/E20-1)),0)","v":0},0]
[null,"Giornate lavorative di personale di età inferiore ai 35 anni",null,null,null,{"$f":"Personale!E130","v":0},{"$f":"Personale!E131","v":0},{"$f":"IFERROR(IF(ISBLANK(E21),0,IF(F21/E21-1>0,0,F21/E21-1)),0)","v":0},0]
[null,"Totale complessivo delle “risorse proprie”",null,null,null,{"$f":"'Bilancio terza annualità'!S30+'Bilancio terza annualità'!S34+'Bilancio terza annualità'!S21","v":0},{"$f":"'Bilancio terza annualità'!T30+'Bilancio terza annualità'!T34+'Bilancio terza annualità'!T21","v":0},{"$f":"IFERROR(IF(ISBLANK(E22),0,IF(F22/E22-1>0,0,F22/E22-1)),0)","v":0},0]
[null,"Totale complessivo delle “altre risorse pubbliche”",null,null,null,{"$f":"'Bilancio terza annualità'!S13","v":0},{"$f":"'Bilancio terza annualità'!T13","v":0},{"$f":"IFERROR(IF(ISBLANK(E23),0,IF(F23/E23-1>0,0,F23/E23-1)),0)","v":0},0]
[null,"Media aritmetica della variazione degli indicatori",null,null,null,null,null,{"$f":"IFERROR(AVERAGEIF(H8:H23,\"<0\"),0)","v":0},{"$f":"IFERROR(AVERAGEIF(I8:I23,\"<0\"),0)","v":0}]
["Luogo e data",null,"__________________________________\nFirma digitale / \ntimbro e firma del  legale rappresentante / \n del soggetto munito dei poteri di mandato e di firma\n(allegare sempre copia fotostatica del documento di identità \ndel sottoscrittore, tranne caso firma digitale)\n \n"]
[]
["______________________________"]
[]
[]
[]
["______________________________"]

{"sheet":"RASSEGNE_RendicontoAnnualeInd","index":4,"n_rows":32,"n_cols":12,"rows_kept":32,"cut":false,"hidden":false,"merged":[[24,1,24,2],[25,2,31,3],[19,0,23,0],[19,1,19,2],[20,1,20,2],[21,1,21,2],[22,1,22,2],[23,1,23,2],[7,0,17,0],[14,1,16,1],[17,1,17,2],[4,9,6,9],[7,1,7,2],[8,1,8,2],[9,1,9,2],[10,1,10,2],[11,1,11,2],[12,1,12,2],[13,1,13,2],[4,8,6,8],[4,10,6,10],[4,11,6,11],[0,0,1,7],[2,0,6,0],[2,1,6,2],[2,3,3,3],[2,4,2,7],[3,4,3,7],[4,4,6,4],[4,5,6,5],[4,7,6,7],[4,6,6,6]]}
["FSC Fondo di Sviluppo e Coesione 2014/2020 – “Patto per la Puglia”\nAVVISO PUBBLICO PER PRESENTARE INIZIATIVE PROGETTUALI RIGUARDANTI LE ATTIVITA' CULTURALI\nRENDICONTO ANNUALE DEGLI INDICATORI E DEI RISULTATI ATTESI (ALL. I DELL'AVVISO)"]
[]
["AMBITO DI ATTIVITA’","INDICATORE DA SELEZIONARE\n(in fase di consuntivo il beneficiario dovrà allegare documentazione, come indicato tra parentesi)",null,"VALORE DI RIFERIMENTO","TARGET PREVISTO "]
[null,null,null,null,"Terza annualità "]
[null,null,null,"Baseline","expected target","Implemented target","ACCERTATO_ Implemented target","%deviation","ACCERTATO_ %deviation","TIPOLOGIA DOCUMENTI A SUPPORTO ","Accertamento","Note"]
[null,null,null,"31.12.n"]
[null,null,null,"(Actual)"]
["EVENTI E RASSEGNE","1. Numero di giornate di attività realizzate prevalentemente sul territorio regionale in un anno",null,null,null,null,null,{"$f":"IFERROR(IF(ISBLANK(E8),0,IF(F8/E8-1>0,0,F8/E8-1)),0)","v":0},{"$f":"IFERROR(IF(ISBLANK(E8),0,IF(G8/E8-1>0,0,G8/E8-1)),0)","v":0}]
[null,"2. Numero di artisti coinvolti in attività performativa di rilievo almeno regionale",null,null,null,null,null,0,{"$f":"IFERROR(IF(ISBLANK(E9),0,IF(G9/E9-1>0,0,G9/E9-1)),0)","v":0}]
[null,"3. Numero di progetti ad hoc per l’avvicinamento di bambini, adolescenti e giovani (es. laboratori, esposizioni ad hoc), e di iniziative in collaborazione con le scuole primarie e secondarie di primo e secondo grado (come da lettere di intenti sottoscritte)",null,null,null,null,null,0,0]
[null,"4. Numero di iniziative per il coinvolgimento di fasce di fruitori costituite da persone in situazione di svantaggio (comunità di recupero, comunità per minori, per immigrati, ecc.) e anziani (RSA, comunità di anziani, circoli cittadini, ecc.) (come da dichiarazione resa dal responsabile dell’organizzazione)",null,null,null,null,null,0,0]
[null,"5. Numero di corsi e concorsi (allegare documentazione comprovante attività formative e competitive)",null,null,null,null,null,0,0]
[null,"6. Numero di ingressi a pagamento (sbigliettamento)",null,null,null,null,null,{"$f":"IFERROR(IF(ISBLANK(E13),0,IF(F13/E13-1>0,0,F13/E13-1)),0)","v":0},0]
[null,"7. Numero questionari di valutazione della gestione e della qualità dell’iniziativa (fornire il dato relativo a ciascuna annualità del triennio, nonché informazioni sulla metodologia di raccolta dei dati e sulla valutazione media del gradimento)",null,null,null,null,null,0,0]
[null,"8. Numero di recensioni previste \n(allegare documentazione comprovante)","Testate, televisive ed emittenti radiofoniche",null,null,null,null,0,0]
[null,null,"Riviste di settore",null,null,null,null,0,0]
[null,null,"Web e social network",null,null,null,null,0,0]
[null,"9. Numero di canali da utilizzare per la comunicazione dell’evento e la disseminazione dei risultati - max 3: cartaceo, informatico, multimediale (allegare documentazione comprovante)",null,null,null,null,null,0,0]
[null,null,null,null,null,null,{"$f":"Personale!D131","v":0}]
["TUTTI","Giornate lavorative",null,null,null,{"$f":"Personale!D130","v":0},{"$f":"Personale!D131","v":0},{"$f":"IFERROR(IF(ISBLANK(E20),0,IF(F20/E20-1>0,0,F20/E20-1)),0)","v":0},{"$f":"IFERROR(IF(ISBLANK(E20),0,IF(G20/E20-1>0,0,G20/E20-1)),0)","v":0}]
[null,"Oneri sociali",null,null,null,{"$f":"Personale!G130","v":0},{"$f":"Personale!G131","v":0},{"$f":"IFERROR(IF(ISBLANK(E21),0,IF(F21/E21-1>0,0,F21/E21-1)),0)","v":0},0]
[null,"Giornate lavorative di personale di età inferiore ai 35 anni",null,null,null,{"$f":"Personale!E130","v":0},{"$f":"Personale!E131","v":0},{"$f":"IFERROR(IF(ISBLANK(E22),0,IF(F22/E22-1>0,0,F22/E22-1)),0)","v":0},0]
[null,"Totale complessivo delle “risorse proprie”",null,null,null,{"$f":"'Bilancio terza annualità'!S30+'Bilancio terza annualità'!S34+'Bilancio terza annualità'!S21","v":0},{"$f":"'Bilancio terza annualità'!T30+'Bilancio terza annualità'!T34+'Bilancio terza annualità'!T21","v":0},{"$f":"IFERROR(IF(ISBLANK(E23),0,IF(F23/E23-1>0,0,F23/E23-1)),0)","v":0},0]
[null,"Totale complessivo delle “altre risorse pubbliche”",null,null,null,{"$f":"'Bilancio terza annualità'!S13","v":0},{"$f":"'Bilancio terza annualità'!T13","v":0},{"$f":"IFERROR(IF(ISBLANK(E24),0,IF(F24/E24-1>0,0,F24/E24-1)),0)","v":0},0]
[null,"Media aritmetica della variazione degli indicatori",null,null,null,null,null,{"$f":"IFERROR(AVERAGEIF(H8:H24,\"<0\"),0)","v":0},{"$f":"IFERROR(AVERAGEIF(I8:I24,\"<0\"),0)","v":0}]
["Luogo e data",null,"__________________________________\nFirma digitale / \ntimbro e firma del  legale rappresentante / \n del soggetto munito dei poteri di mandato e di firma\n(allegare sempre copia fotostatica del documento di identità \ndel sottoscrittore, tranne caso firma digitale)\n \n"]
[]
["______________________________"]
[]
[]
[]
["______________________________"]

{"sheet":"PREMI_RendicontoAnnualeInd","index":5,"n_rows":32,"n_cols":12,"rows_kept":32,"cut":false,"hidden":false,"merged":[[7,0,17,0],[14,1,16,1],[17,1,17,2],[0,0,1,7],[23,1,23,2],[7,1,7,2],[12,1,12,2],[20,1,20,2],[21,1,21,2],[2,0,6,0],[19,0,23,0],[3,4,3,7],[4,5,6,5],[2,3,3,3],[4,4,6,4],[2,4,2,7],[4,10,6,10],[4,11,6,11],[4,7,6,7],[4,9,6,9],[25,2,31,3],[10,1,10,2],[13,1,13,2],[11,1,11,2],[22,1,22,2],[2,1,6,2],[19,1,19,2],[8,1,8,2],[9,1,9,2],[24,1,24,2],[4,6,6,6],[4,8,6,8]]}
["FSC Fondo di Sviluppo e Coesione 2014/2020 – “Patto per la Puglia”\nAVVISO PUBBLICO PER PRESENTARE INIZIATIVE PROGETTUALI RIGUARDANTI LE ATTIVITA' CULTURALI\nRENDICONTO ANNUALE DEGLI INDICATORI E DEI RISULTATI ATTESI (ALL. I DELL'AVVISO)"]
[]
["AMBITO DI ATTIVITA’","INDICATORE DA SELEZIONARE\n(in fase di consuntivo il beneficiario dovrà allegare documentazione, come indicato tra parentesi)",null,"VALORE DI RIFERIMENTO","TARGET PREVISTO "]
[null,null,null,null,"Terza annualità "]
[null,null,null,"Baseline","expected target","Implemented target","ACCERTATO_ Implemented target","%deviation","ACCERTATO_ %deviation","TIPOLOGIA DOCUMENTI A SUPPORTO ","Accertamento","Note"]
[null,null,null,"31.12.n"]
[null,null,null,"(Actual)"]
["PREMI","1. Numero di giornate di attività che lo svolgimento dell’iniziativa prevede, realizzate prevalentemente sul territorio regionale in un anno (allegare materiale promozionale)",null,null,null,null,null,{"$f":"IFERROR(IF(ISBLANK(E8),0,IF(F8/E8-1>0,0,F8/E8-1)),0)","v":0},{"$f":"IFERROR(IF(ISBLANK(E8),0,IF(G8/E8-1>0,0,G8/E8-1)),0)","v":0}]
[null,"2. Numero di testimonial o opinion leader coinvolti di rilievo almeno regionale, diversi dai concorrenti (come da lettere di accettazione degli inviti sottoscritte)",null,null,null,null,null,0,{"$f":"IFERROR(IF(ISBLANK(E9),0,IF(G9/E9-1>0,0,G9/E9-1)),0)","v":0}]
[null,"3. Numero di personalità culturali e scientifiche di rilievo regionale, nazionale o internazionale coinvolte in qualità di giurati (elenco giuria da bando)",null,null,null,null,null,0,0]
[null,"4. Numero di progetti ad hoc, relativi al riconoscimento delle eccellenze e alla valorizzazione di nuovi talenti rivolti a bambini, adolescenti e giovani (es. laboratori, esposizioni ad hoc), e di iniziative in collaborazione con le scuole primarie e secondarie di primo e secondo grado (come da lettere di intenti sottoscritte)",null,null,null,null,null,0,0]
[null,"5. Numero di soggetti che concorrono ai premi (elenco partecipanti per categoria)",null,null,null,null,null,0,0]
[null,"6. Numero di categorie premiate (elenco categorie da bando)",null,null,null,null,null,0,0]
[null,"7. Numero questionari di valutazione della gestione e della qualità dell’iniziativa (fornire il dato relativo a ciascuna annualità del triennio, nonché informazioni sulla metodologia di raccolta dei dati e sulla valutazione media del gradimento)",null,null,null,null,null,0,0]
[null,"8. Numero di recensioni previste \n(allegare documentazione comprovante)","Testate, televisive ed emittenti radiofoniche",null,null,null,null,0,0]
[null,null,"Riviste di settore",null,null,null,null,0,0]
[null,null,"Web e social network",null,null,null,null,0,0]
[null,"9. Numero di canali da utilizzare per la comunicazione dell’evento e la disseminazione dei risultati - max 3: cartaceo, informatico, multimediale (allegare documentazione comprovante)",null,null,null,null,null,0,0]
[]
["TUTTI","Giornate lavorative",null,null,null,{"$f":"Personale!D130","v":0},{"$f":"Personale!D131","v":0},{"$f":"IFERROR(IF(ISBLANK(E20),0,IF(F20/E20-1>0,0,F20/E20-1)),0)","v":0},{"$f":"IFERROR(IF(ISBLANK(E20),0,IF(G20/E20-1>0,0,G20/E20-1)),0)","v":0}]
[null,"Oneri sociali",null,null,null,{"$f":"Personale!G130","v":0},{"$f":"Personale!G131","v":0},{"$f":"IFERROR(IF(ISBLANK(E21),0,IF(F21/E21-1>0,0,F21/E21-1)),0)","v":0},0]
[null,"Giornate lavorative di personale di età inferiore ai 35 anni",null,null,null,{"$f":"Personale!E130","v":0},{"$f":"Personale!E131","v":0},{"$f":"IFERROR(IF(ISBLANK(E22),0,IF(F22/E22-1>0,0,F22/E22-1)),0)","v":0},0]
[null,"Totale complessivo delle “risorse proprie”",null,null,null,{"$f":"'Bilancio terza annualità'!S30+'Bilancio terza annualità'!S34+'Bilancio terza annualità'!S21","v":0},{"$f":"'Bilancio terza annualità'!T30+'Bilancio terza annualità'!T34+'Bilancio terza annualità'!T21","v":0},{"$f":"IFERROR(IF(ISBLANK(E23),0,IF(F23/E23-1>0,0,F23/E23-1)),0)","v":0},0]
[null,"Totale complessivo delle “altre risorse pubbliche”",null,null,null,{"$f":"'Bilancio terza annualità'!S13","v":0},{"$f":"'Bilancio terza annualità'!T13","v":0},{"$f":"IFERROR(IF(ISBLANK(E24),0,IF(F24/E24-1>0,0,F24/E24-1)),0)","v":0},0]
[null,"Media aritmetica della variazione degli indicatori",null,null,null,null,null,{"$f":"IFERROR(AVERAGEIF(H8:H24,\"<0\"),0)","v":0},{"$f":"IFERROR(AVERAGEIF(I8:I24,\"<0\"),0)","v":0}]
["Luogo e data",null,"__________________________________\nFirma digitale / \ntimbro e firma del  legale rappresentante / \n del soggetto munito dei poteri di mandato e di firma\n(allegare sempre copia fotostatica del documento di identità \ndel sottoscrittore, tranne caso firma digitale)\n \n"]
[]
["______________________________"]
[]
[]
[]
["______________________________"]

{"sheet":"MANIF.ESP_RendicontoAnnualeInd","index":6,"n_rows":35,"n_cols":12,"rows_kept":35,"cut":false,"hidden":false,"merged":[[7,0,20,0],[7,1,7,2],[8,1,8,2],[9,1,9,2],[10,1,10,2],[11,1,11,2],[12,1,12,2],[13,1,13,2],[14,1,14,2],[15,1,15,2],[16,1,16,2],[17,1,19,1],[20,1,20,2],[27,1,27,2],[28,2,34,3],[22,0,26,0],[22,1,22,2],[23,1,23,2],[24,1,24,2],[25,1,25,2],[26,1,26,2],[4,10,6,10],[4,11,6,11],[4,9,6,9],[0,0,1,7],[2,0,6,0],[2,1,6,2],[2,3,3,3],[2,4,2,7],[3,4,3,7],[4,4,6,4],[4,5,6,5],[4,7,6,7],[4,6,6,6],[4,8,6,8]]}
["FSC Fondo di Sviluppo e Coesione 2014/2020 – “Patto per la Puglia”\nAVVISO PUBBLICO PER PRESENTARE INIZIATIVE PROGETTUALI RIGUARDANTI LE ATTIVITA' CULTURALI\nRENDICONTO ANNUALE DEGLI INDICATORI E DEI RISULTATI ATTESI (ALL. I DELL'AVVISO)"]
[]
["AMBITO DI ATTIVITA’","INDICATORE DA SELEZIONARE\n(in fase di consuntivo il beneficiario dovrà allegare documentazione, come indicato tra parentesi)",null,"VALORE DI RIFERIMENTO","TARGET PREVISTO "]
[null,null,null,null,"Terza annualità "]
[null,null,null,"Baseline","expected target","Implemented target","ACCERTATO_ Implemented target","%deviation","ACCERTATO_ %deviation","TIPOLOGIA DOCUMENTI A SUPPORTO ","Accertamento","Note"]
[null,null,null,"31.12.n"]
[null,null,null,"(Actual)"]
["MANIFESTAZIONI ESPOSITIVE","1. Numero di giornate di attività espositiva realizzate prevalentemente sul territorio regionale in un anno (allegare materiale promozionale)",null,null,null,null,null,{"$f":"IFERROR(IF(ISBLANK(E8),0,IF(F8/E8-1>0,0,F8/E8-1)),0)","v":0},{"$f":"IFERROR(IF(ISBLANK(E8),0,IF(G8/E8-1>0,0,G8/E8-1)),0)","v":0}]
[null,"2. Numero ore apertura non rientranti nella fascia ordinaria/Numero ore apertura (% di aperture straordinarie)\nEs. notte bianca, notte dei ricercatori, ecc. (allegare materiale promozionale)",null,null,null,null,null,0,{"$f":"IFERROR(IF(ISBLANK(E9),0,IF(G9/E9-1>0,0,G9/E9-1)),0)","v":0}]
[null,"3. Numero di ingressi a pagamento-sbigliettamento (certificazione incassi)",null,null,null,null,null,0,0]
[null,"4. Numero di differenti località in cui annualmente si svolge la manifestazione espositiva (allegare materiale promozionale) ",null,null,null,null,null,0,0]
[null,"5. Numero di istituzioni scolastiche o associazioni che partecipano in qualità di fruitori (come da dichiarazione resa dal dirigente scolastico o dal presidente dell’associazione)",null,null,null,null,null,0,0]
[null,"6. Numero di iniziative per il coinvolgimento di fasce di fruitori costituite da persone in situazione di svantaggio (comunità di recupero, comunità per minori, per immigrati, ecc.) e anziani (RSA, comunità di anziani, circoli cittadini, ecc.) (come da dichiarazione resa dal responsabile dell’organizzazione)",null,null,null,null,null,0,0]
[null,"7. Numero di giornate di attività espositiva in cui sono presenti testimonial e opinion leader di rilievo almeno regionale, diversi dagli artisti espositori (come da lettere di accettazione degli inviti sottoscritte)",null,null,null,null,null,0,0]
[null,"8. Numero di progetti ad hoc per l’avvicinamento di bambini, adolescenti e giovani (es. laboratori, esposizioni ad hoc), e altre iniziative in collaborazione con le scuole primarie e secondarie di primo e secondo grado (come da lettere di intenti sottoscritte)",null,null,null,null,null,0,0]
[null,"9. Numero di corsi e concorsi (allegare documentazione comprovante attività formative e competitive)",null,null,null,null,null,0,0]
[null,"10. Numero questionari di valutazione della gestione e della qualità dell’iniziativa (fornire il dato relativo a ciascuna annualità del triennio, nonché informazioni sulla metodologia di raccolta dei dati e sulla valutazione media del gradimento)",null,null,null,null,null,0,0]
[null,"11. Numero di recensioni previste \n(allegare documentazione comprovante)","Testate, televisive ed emittenti radiofoniche",null,null,null,null,0,0]
[null,null,"Riviste di settore",null,null,null,null,0,0]
[null,null,"Web e social network",null,null,null,null,0,0]
[null,"12. Numero di canali da utilizzare per la comunicazione dell’evento e la disseminazione dei risultati - max 3: cartaceo, informatico, multimediale (allegare documentazione comprovante)",null,null,null,null,null,0,0]
[]
["TUTTI","Giornate lavorative",null,null,null,{"$f":"Personale!D130","v":0},{"$f":"Personale!D131","v":0},{"$f":"IFERROR(IF(ISBLANK(E23),0,IF(F23/E23-1>0,0,F23/E23-1)),0)","v":0},{"$f":"IFERROR(IF(ISBLANK(E23),0,IF(G23/E23-1>0,0,G23/E23-1)),0)","v":0}]
[null,"Oneri sociali",null,null,null,{"$f":"Personale!G130","v":0},{"$f":"Personale!G131","v":0},{"$f":"IFERROR(IF(ISBLANK(E24),0,IF(F24/E24-1>0,0,F24/E24-1)),0)","v":0},0]
[null,"Giornate lavorative di personale di età inferiore ai 35 anni",null,null,null,{"$f":"Personale!E130","v":0},{"$f":"Personale!E131","v":0},{"$f":"IFERROR(IF(ISBLANK(E25),0,IF(F25/E25-1>0,0,F25/E25-1)),0)","v":0},0]
[null,"Totale complessivo delle “risorse proprie”",null,null,null,{"$f":"'Bilancio terza annualità'!S30+'Bilancio terza annualità'!S34+'Bilancio terza annualità'!S21","v":0},{"$f":"'Bilancio terza annualità'!T30+'Bilancio terza annualità'!T34+'Bilancio terza annualità'!T21","v":0},{"$f":"IFERROR(IF(ISBLANK(E26),0,IF(F26/E26-1>0,0,F26/E26-1)),0)","v":0},0]
[null,"Totale complessivo delle “altre risorse pubbliche”",null,null,null,{"$f":"'Bilancio terza annualità'!S13","v":0},{"$f":"'Bilancio terza annualità'!T13","v":0},{"$f":"IFERROR(IF(ISBLANK(E27),0,IF(F27/E27-1>0,0,F27/E27-1)),0)","v":0},0]
[null,"Media aritmetica della variazione degli indicatori",null,null,null,null,null,{"$f":"IFERROR(AVERAGEIF(H8:H27,\"<0\"),0)","v":0},{"$f":"IFERROR(AVERAGEIF(I8:I27,\"<0\"),0)","v":0}]
["Luogo e data",null,"__________________________________\nFirma digitale / \ntimbro e firma del  legale rappresentante / \n del soggetto munito dei poteri di mandato e di firma\n(allegare sempre copia fotostatica del documento di identità \ndel sottoscrittore, tranne caso firma digitale)\n \n"]
[]
["______________________________"]
[]
[]
[]
["______________________________"]

{"sheet":"EDITORIA_RendicontoAnnualeInd","index":7,"n_rows":33,"n_cols":12,"rows_kept":33,"cut":false,"hidden":false,"merged":[[25,1,25,2],[26,2,32,3],[7,0,18,0],[15,1,17,1],[18,1,18,2],[20,0,24,0],[20,1,20,2],[21,1,21,2],[22,1,22,2],[23,1,23,2],[24,1,24,2],[11,1,11,2],[12,1,12,2],[13,1,13,2],[14,1,14,2],[7,1,7,2],[8,1,8,2],[9,1,9,2],[10,1,10,2],[4,8,6,8],[4,10,6,10],[4,11,6,11],[0,0,1,7],[2,0,6,0],[2,1,6,2],[2,3,3,3],[2,4,2,7],[3,4,3,7],[4,4,6,4],[4,5,6,5],[4,7,6,7],[4,6,6,6],[4,9,6,9]]}
["FSC Fondo di Sviluppo e Coesione 2014/2020 – “Patto per la Puglia”\nAVVISO PUBBLICO PER PRESENTARE INIZIATIVE PROGETTUALI RIGUARDANTI LE ATTIVITA' CULTURALI\nRENDICONTO ANNUALE DEGLI INDICATORI E DEI RISULTATI ATTESI (ALL. I DELL'AVVISO)"]
[]
["AMBITO DI ATTIVITA’","INDICATORE DA SELEZIONARE\n(in fase di consuntivo il beneficiario dovrà allegare documentazione, come indicato tra parentesi)",null,"VALORE DI RIFERIMENTO","TARGET PREVISTO "]
[null,null,null,null,"Terza annualità "]
[null,null,null,"Baseline","expected target","Implemented target","ACCERTATO_ Implemented target","%deviation","ACCERTATO_ %deviation","TIPOLOGIA DOCUMENTI A SUPPORTO ","Accertamento","Note"]
[null,null,null,"31.12.n"]
[null,null,null,"(Actual)"]
["PROGETTI EDITORIALI E INIZIATIVE PER LA PROMOZIONE DELLA LETTURA","1. Numero di copie gratuite destinate, in modo selettivo (diffusione mirata), a finalità sociali, formative e culturali (allegare elenco nominativi e ricevuta di consegna)",null,null,null,null,null,{"$f":"IFERROR(IF(ISBLANK(E8),0,IF(F8/E8-1>0,0,F8/E8-1)),0)","v":0},{"$f":"IFERROR(IF(ISBLANK(E8),0,IF(G8/E8-1>0,0,G8/E8-1)),0)","v":0}]
[null,"2. Numero di iniziative finalizzate alla promozione della lettura per le fasce giovanili e per i lettori “deboli” (allegare documentazione comprovante l’evento)",null,null,null,null,null,0,{"$f":"IFERROR(IF(ISBLANK(E9),0,IF(G9/E9-1>0,0,G9/E9-1)),0)","v":0}]
[null,"3. Numero di scuole primarie e secondarie di primo o secondo grado e università presso le quali il progetto editoriale e la pubblicazione vengono presentati nel corso di una manifestazione pubblica (come da dichiarazione resa dal dirigente scolastico o dal direttore del dipartimento)",null,null,null,null,null,0,0]
[null,"4. Numero di eventi e iniziative per il coinvolgimento di fasce di fruitori costituite da persone in situazione di svantaggio (comunità di recupero, comunità per minori, per immigrati, ecc.) e anziani (RSA, comunità di anziani, circoli cittadini, ecc.) (come da dichiarazione resa dal responsabile dell’organizzazione)",null,null,null,null,null,0,0]
[null,"5. Numero di volumi stampati e/o altri supporti multimediali (es. e-book) dotati di ISBN, prodotti in merito alle iniziative programmate, da distribuire (come da dichiarazione dell’editore)",null,null,null,null,null,0,0]
[null,"6. Numero di corsi e concorsi (allegare documentazione comprovante attività formative e competitive)",null,null,null,null,null,0,0]
[null,"7. Numero convegni, seminari e workshop collegati ai progetti editoriali (allegare documentazione comprovante l’evento)",null,null,null,null,null,0,0]
[null,"8. Numero questionari di valutazione della gestione e della qualità dell’iniziativa (fornire il dato relativo a ciascuna annualità del triennio, nonché informazioni sulla metodologia di raccolta dei dati e sulla valutazione media del gradimento)",null,null,null,null,null,0,0]
[null,"9. Numero di recensioni previste \n(allegare documentazione comprovante)","Testate, televisive ed emittenti radiofoniche",null,null,null,null,0,0]
[null,null,"Riviste di settore",null,null,null,null,0,0]
[null,null,"Web e social network",null,null,null,null,0,0]
[null,"10. Numero di canali da utilizzare per la comunicazione dell’evento e la disseminazione dei risultati - max 3: cartaceo, informatico, multimediale (allegare documentazione comprovante)",null,null,null,null,null,0,0]
[]
["TUTTI","Giornate lavorative",null,null,null,{"$f":"Personale!D130","v":0},{"$f":"Personale!D131","v":0},{"$f":"IFERROR(IF(ISBLANK(E21),0,IF(F21/E21-1>0,0,F21/E21-1)),0)","v":0},{"$f":"IFERROR(IF(ISBLANK(E21),0,IF(G21/E21-1>0,0,G21/E21-1)),0)","v":0}]
[null,"Oneri sociali",null,null,null,{"$f":"Personale!G130","v":0},{"$f":"Personale!G131","v":0},{"$f":"IFERROR(IF(ISBLANK(E22),0,IF(F22/E22-1>0,0,F22/E22-1)),0)","v":0},0]
[null,"Giornate lavorative di personale di età inferiore ai 35 anni",null,null,null,{"$f":"Personale!E130","v":0},{"$f":"Personale!E131","v":0},{"$f":"IFERROR(IF(ISBLANK(E23),0,IF(F23/E23-1>0,0,F23/E23-1)),0)","v":0},0]
[null,"Totale complessivo delle “risorse proprie”",null,null,null,{"$f":"'Bilancio terza annualità'!S30+'Bilancio terza annualità'!S34+'Bilancio terza annualità'!S21","v":0},{"$f":"'Bilancio terza annualità'!T30+'Bilancio terza annualità'!T34+'Bilancio terza annualità'!T21","v":0},{"$f":"IFERROR(IF(ISBLANK(E24),0,IF(F24/E24-1>0,0,F24/E24-1)),0)","v":0},0]
[null,"Totale complessivo delle “altre risorse pubbliche”",null,null,null,{"$f":"'Bilancio terza annualità'!S13","v":0},{"$f":"'Bilancio terza annualità'!T13","v":0},{"$f":"IFERROR(IF(ISBLANK(E25),0,IF(F25/E25-1>0,0,F25/E25-1)),0)","v":0},0]
[null,"Media aritmetica della variazione degli indicatori",null,null,null,null,null,{"$f":"IFERROR(AVERAGEIF(H8:H25,\"<0\"),0)","v":0},{"$f":"IFERROR(AVERAGEIF(I8:I25,\"<0\"),0)","v":0}]
["Luogo e data",null,"__________________________________\nFirma digitale / \ntimbro e firma del  legale rappresentante / \n del soggetto munito dei poteri di mandato e di firma\n(allegare sempre copia fotostatica del documento di identità \ndel sottoscrittore, tranne caso firma digitale)\n \n"]
[]
["______________________________"]
[]
[]
[]
["______________________________"]

{"sheet":"CONVEGNI_RendicontoAnnualeInd","index":8,"n_rows":38,"n_cols":12,"rows_kept":38,"cut":false,"hidden":false,"merged":[[30,1,30,2],[31,2,37,3],[7,0,23,0],[7,1,7,2],[8,1,8,2],[9,1,9,2],[10,1,10,2],[11,1,11,2],[12,1,12,2],[13,1,13,2],[15,1,15,2],[19,1,19,2],[25,0,29,0],[25,1,25,2],[26,1,26,2],[14,1,14,2],[27,1,27,2],[28,1,28,2],[29,1,29,2],[23,1,23,2],[16,1,16,2],[17,1,17,2],[18,1,18,2],[20,1,22,1],[4,10,6,10],[4,11,6,11],[4,9,6,9],[0,0,1,7],[2,0,6,0],[2,1,6,2],[2,3,3,3],[2,4,2,7],[3,4,3,7],[4,4,6,4],[4,5,6,5],[4,7,6,7],[4,6,6,6],[4,8,6,8]]}
["FSC Fondo di Sviluppo e Coesione 2014/2020 – “Patto per la Puglia”\nAVVISO PUBBLICO PER PRESENTARE INIZIATIVE PROGETTUALI RIGUARDANTI LE ATTIVITA' CULTURALI\nRENDICONTO ANNUALE DEGLI INDICATORI E DEI RISULTATI ATTESI (ALL. I DELL'AVVISO)"]
[]
["AMBITO DI ATTIVITA’","INDICATORE DA SELEZIONARE\n(in fase di consuntivo il beneficiario dovrà allegare documentazione, come indicato tra parentesi)",null,"VALORE DI RIFERIMENTO","TARGET PREVISTO "]
[null,null,null,null,"Terza annualità "]
[null,null,null,"Baseline","expected target","Implemented target","ACCERTATO_ Implemented target","%deviation","ACCERTATO_ %deviation","TIPOLOGIA DOCUMENTI A SUPPORTO ","Accertamento","Note"]
[null,null,null,"31.12.n"]
[null,null,null,"(Actual)"]
["CONVEGNI, SEMINARI, WORKSHOP","1. Numero di giornate di attività realizzate prevalentemente sul territorio regionale in un anno.",null,null,null,null,null,{"$f":"IFERROR(IF(ISBLANK(E8),0,IF(F8/E8-1>0,0,F8/E8-1)),0)","v":0},{"$f":"IFERROR(IF(ISBLANK(E8),0,IF(G8/E8-1>0,0,G8/E8-1)),0)","v":0}]
[null,"2. Numero di partecipanti (allegare liste di partecipanti)",null,null,null,null,null,0,{"$f":"IFERROR(IF(ISBLANK(E9),0,IF(G9/E9-1>0,0,G9/E9-1)),0)","v":0}]
[null,"3. Numero di volumi stampati e/o altri supporti multimediali (es. e-book) dotati di ISBN, prodotti a seguito delle iniziative programmate, da distribuire (come da dichiarazione dell’editore).",null,null,null,null,null,0,0]
[null,"4. Numero di volumi e/o supporti multimediali (es. e-book) dotati di ISBN, prodotti a seguito delle iniziative programmate, che sono stati venduti (come da dichiarazione dell’Editore)",null,null,null,null,null,0,0]
[null,"5. Numero di relatori coinvolti di rilievo almeno regionale (come da lettere di accettazione degli inviti sottoscritte)",null,null,null,null,null,0,0]
[null,"6. Numero istituzioni scolastiche o associazioni coinvolte in qualità di fruitori (come da dichiarazione resa dal dirigente scolastico o dal presidente dell’associazione)",null,null,null,null,null,0,0]
[null,"7. Numero di eventi che prevedono il rilascio di crediti formativi (CFU) per gli studenti da parte di Università che patrocinano l’evento (allegare a consuntivo deliberazioni del Consiglio di Dipartimento)",null,null,null,null,null,0,0]
[null,"8. Numero di eventi che prevedono il rilascio di crediti formativi (formazione professionale continua) da parte di ordini professionali per i propri iscritti (allegare a consuntivo deliberazioni del Consiglio dell’Ordine)",null,null,null,null,null,0,0]
[null,"9. Numero di studenti che partecipano all’evento e beneficiano dei crediti formativi (come da elenco dei partecipanti trasmesso alla Segreteria Studenti dell’Università)",null,null,null,null,null,0,0]
[null,"10. Numero di professionisti che partecipano all’evento e beneficiano dei crediti formativi (come da certificazione dell’Ordine professionale di appartenenza)",null,null,null,null,null,0,0]
[null,"11. Numero questionari di valutazione della gestione e della qualità dell’iniziativa (fornire il dato relativo a ciascuna annualità del triennio, nonché informazioni sulla metodologia di raccolta dei dati e sulla valutazione media del gradimento)",null,null,null,null,null,0,0]
[null,"12. Numero di iniziative per il coinvolgimento di fasce di partecipanti costituite da persone in situazione di svantaggio (comunità di recupero, comunità per minori, per immigrati, ecc.) e anziani (RSA, comunità di anziani, circoli cittadini, ecc.) (come da dichiarazione resa dal responsabile dell’organizzazione)",null,null,null,null,null,0,0]
[null,"13. Numero concorsi (allegare documentazione comprovante attività competitive)",null,null,null,null,null,0,0]
[null,"14. Numero di recensioni previste \n(allegare documentazione comprovante)","Testate, televisive ed emittenti radiofoniche",null,null,null,null,0,0]
[null,null,"Riviste di settore",null,null,null,null,0,0]
[null,null,"Web e social network",null,null,null,null,0,0]
[null,"15. Numero di canali da utilizzare per la comunicazione dell’evento e la disseminazione dei risultati - max 3: cartaceo, informatico, multimediale (allegare documentazione comprovante)",null,null,null,null,null,0,0]
[]
["TUTTI","Giornate lavorative",null,null,null,{"$f":"Personale!D130","v":0},{"$f":"Personale!D131","v":0},{"$f":"IFERROR(IF(ISBLANK(E26),0,IF(F26/E26-1>0,0,F26/E26-1)),0)","v":0},{"$f":"IFERROR(IF(ISBLANK(E26),0,IF(G26/E26-1>0,0,G26/E26-1)),0)","v":0}]
[null,"Oneri sociali",null,null,null,{"$f":"Personale!G130","v":0},{"$f":"Personale!G131","v":0},{"$f":"IFERROR(IF(ISBLANK(E27),0,IF(F27/E27-1>0,0,F27/E27-1)),0)","v":0},0]
[null,"Giornate lavorative di personale di età inferiore ai 35 anni",null,null,null,{"$f":"Personale!E130","v":0},{"$f":"Personale!E131","v":0},{"$f":"IFERROR(IF(ISBLANK(E28),0,IF(F28/E28-1>0,0,F28/E28-1)),0)","v":0},0]
[null,"Totale complessivo delle “risorse proprie”",null,null,null,{"$f":"'Bilancio terza annualità'!S30+'Bilancio terza annualità'!S34+'Bilancio terza annualità'!S21","v":0},{"$f":"'Bilancio terza annualità'!T30+'Bilancio terza annualità'!T34+'Bilancio terza annualità'!T21","v":0},{"$f":"IFERROR(IF(ISBLANK(E29),0,IF(F29/E29-1>0,0,F29/E29-1)),0)","v":0},0]
[null,"Totale complessivo delle “altre risorse pubbliche”",null,null,null,{"$f":"'Bilancio terza annualità'!S13","v":0},{"$f":"'Bilancio terza annualità'!T13","v":0},{"$f":"IFERROR(IF(ISBLANK(E30),0,IF(F30/E30-1>0,0,F30/E30-1)),0)","v":0},0]
[null,"Media aritmetica della variazione degli indicatori",null,null,null,null,null,{"$f":"IFERROR(AVERAGEIF(H8:H30,\"<0\"),0)","v":0},{"$f":"IFERROR(AVERAGEIF(I8:I30,\"<0\"),0)","v":0}]
["Luogo e data",null,"__________________________________\nFirma digitale / \ntimbro e firma del  legale rappresentante / \n del soggetto munito dei poteri di mandato e di firma\n(allegare sempre copia fotostatica del documento di identità \ndel sottoscrittore, tranne caso firma digitale)\n \n"]
[]
["______________________________"]
[]
[]
[]
["______________________________"]